Transaction Date,Local Authority Department,BENEFICIARY,Purpose,Amount,Non Recoverable,Merchant Category
01-10-2022,Environment and Sustainable Transport,Juniper Ventures Ltd,Cleaning Services,10777.56,0,COMMERCIAL SUPPLIER
01-10-2022,Inclusive Economy & Housing,Adam Khan Architects,"Maintenance - Equipment, Furniture And Materials",42276.28,0,COMMERCIAL SUPPLIER
01-10-2022,oneSource,Daisy Corporate Services Trading Ltd,Land Line Telephone Costs,4826.42,0,COMMERCIAL SUPPLIER
01-10-2022,oneSource,Daisy Corporate Services Trading Ltd,Land Line Telephone Costs,2159.71,0,COMMERCIAL SUPPLIER
01-10-2022,Housing Revenue Account,Daisy Corporate Services Trading Ltd,Cyclical/Planned Maintenance - Mechanical And Electrical,321.12,0,COMMERCIAL SUPPLIER
01-10-2022,oneSource,Daisy Corporate Services Trading Ltd,Land Line Telephone Costs,14673.33,0,COMMERCIAL SUPPLIER
01-10-2022,Housing Revenue Account,Daisy Corporate Services Trading Ltd,Land Line Telephone Costs,770.28,0,COMMERCIAL SUPPLIER
01-10-2022,Housing Revenue Account,Daisy Corporate Services Trading Ltd,Land Line Telephone Costs,3379.73,0,COMMERCIAL SUPPLIER
01-10-2022,oneSource - Non Shared,Royal Docks Management Authority Ltd,Facilities Management,5313,0,VENDOR
01-10-2022,Children and Young People,Personal Information - Redacted,Legal Fees,883,0,INDIVIDUALS
01-10-2022,Children and Young People,Film Skool Deluxe,Private Contractors Payment - Other,3668,0,NON COMMERCIAL SUPPLIER
01-10-2022,Marketing,Personal Information - Redacted,Events,625,0,INDIVIDUALS
01-10-2022,Environment and Sustainable Transport,BC Digger Hire & Grounworks Ltd,Open Spaces Works,645,0,CIS
01-10-2022,Environment and Sustainable Transport,BC Digger Hire & Grounworks Ltd,Open Spaces Works,1845,0,CIS
01-10-2022,oneSource,Bdi Securities,Security Services (Excluding Premises),891,0,COMMERCIAL SUPPLIER
01-10-2022,oneSource,Bdi Securities,Security Services (Excluding Premises),378,0,COMMERCIAL SUPPLIER
01-10-2022,Inclusive Economy & Housing,Titan Containers A/S,Hire - Equipment Furniture And Materials,286.75,0,VENDOR
01-10-2022,oneSource - Non Shared,The Forklift Company,Vehicle Hire,433.33,0,COMMERCIAL SUPPLIER
01-10-2022,RMS,Travis Perkins Trading Company Ltd,Building Alterations And Materials,271.24,0,COMMERCIAL SUPPLIER
01-10-2022,RMS,Travis Perkins Trading Company Ltd,Building Alterations And Materials,167,0,COMMERCIAL SUPPLIER
01-10-2022,RMS,Travis Perkins Trading Company Ltd,Building Alterations And Materials,127,0,COMMERCIAL SUPPLIER
01-10-2022,RMS,Travis Perkins Trading Company Ltd,Building Alterations And Materials,173.2,0,COMMERCIAL SUPPLIER
01-10-2022,RMS,Travis Perkins Trading Company Ltd,Building Alterations And Materials,499.56,0,COMMERCIAL SUPPLIER
01-10-2022,RMS,Travis Perkins Trading Company Ltd,Building Alterations And Materials,386.5,0,COMMERCIAL SUPPLIER
01-10-2022,Children and Young People,Britannia K9 Security Ltd,Security Of Premises,2212.5,0,COMMERCIAL SUPPLIER
01-10-2022,Environment and Sustainable Transport,Portakabin Ltd,Premises Hire - Facilities,2373.33,0,COMMERCIAL SUPPLIER
01-10-2022,Children and Young People,Bonny Downs Community Association.,Events,1608,0,VENDOR
01-10-2022,Children and Young People,Early Start Group Ltd,Private Contractors Payment - Other,112879,0,COMMERCIAL SUPPLIER
01-10-2022,Children and Young People,Early Start Group Ltd,Private Contractors Payment - Other,55679,0,COMMERCIAL SUPPLIER
01-10-2022,Children and Young People,CVA Education Consultancy Ltd,Consultancy Fees,375,0,PUBLIC CORPORATION
01-10-2022,Marketing,Personal Information - Redacted,Catering And Vending Supplies,7.57,0,Employee
01-10-2022,Marketing,Personal Information - Redacted,Catering And Vending Supplies,12,0,Employee
01-10-2022,Marketing,Personal Information - Redacted,"Purchase - Equipment, Furniture And Materials",12.49,0,Employee
01-10-2022,Marketing,Personal Information - Redacted,"Purchase - Equipment, Furniture And Materials",26.25,0,Employee
01-10-2022,Marketing,Personal Information - Redacted,"Purchase - Equipment, Furniture And Materials",20,0,Employee
01-10-2022,Marketing,Personal Information - Redacted,Catering And Vending Supplies,65.21,0,Employee
01-10-2022,Children and Young People,Personal Information - Redacted,Catering And Vending Supplies,89,0,Employee
01-10-2022,Children and Young People,Personal Information - Redacted,Catering And Vending Supplies,312.5,0,Employee
01-10-2022,Marketing,RPM Ltd,Events,9999,0,COMMERCIAL SUPPLIER
01-10-2022,Inclusive Economy & Housing,London Letting & Management Ltd t/a Marlin Apartment,Rents Payable,275007.2,0,COMMERCIAL SUPPLIER
01-10-2022,Environment and Sustainable Transport,Chipside Ltd,Private Contractors Payment - Other,667.5,0,COMMERCIAL SUPPLIER
01-10-2022,Inclusive Economy & Housing,Single Homeless Project,Private Contractors Payment - Other,10000,0,COMMERCIAL SUPPLIER
01-10-2022,Environment and Sustainable Transport,Tarmac Kier Joint Venture,Open Spaces Works,5443.96,0,LOCAL AUTHORITY SERVICES
01-10-2022,Environment and Sustainable Transport,Tarmac Kier Joint Venture,Open Spaces Works,86193.3,0,LOCAL AUTHORITY SERVICES
01-10-2022,Environment and Sustainable Transport,Tarmac Kier Joint Venture,"Maintenance - Equipment, Furniture And Materials",2496.32,0,LOCAL AUTHORITY SERVICES
01-10-2022,Housing Revenue Account,Swan Housing Group,Professional Services - General,855613.28,0,VENDOR
02-10-2022,Adults & Health,J Wallis Consulting Ltd,Consultancy Fees,900,0,COMMERCIAL SUPPLIER
02-10-2022,RMS,Travis Perkins Trading Company Ltd,Building Alterations And Materials,236.36,0,COMMERCIAL SUPPLIER
02-10-2022,Adults & Health,York Hotel,Supported Other Accommodation - Private Contractors Payment,300,0,COMMERCIAL SUPPLIER
02-10-2022,Adults & Health,York Hotel,Supported Other Accommodation - Private Contractors Payment,420,0,COMMERCIAL SUPPLIER
02-10-2022,Adults & Health,York Hotel,Supported Other Accommodation - Private Contractors Payment,420,0,COMMERCIAL SUPPLIER
02-10-2022,RMS,cer Financial Ltd,Agency Staff,520,0,COMMERCIAL SUPPLIER
02-10-2022,RMS,cer Financial Ltd,Agency Staff,360,0,COMMERCIAL SUPPLIER
02-10-2022,RMS,cer Financial Ltd,Agency Staff,360,0,COMMERCIAL SUPPLIER
02-10-2022,RMS,cer Financial Ltd,Agency Staff,400,0,COMMERCIAL SUPPLIER
02-10-2022,RMS,cer Financial Ltd,Agency Staff,520,0,COMMERCIAL SUPPLIER
02-10-2022,RMS,cer Financial Ltd,Agency Staff,360,0,COMMERCIAL SUPPLIER
02-10-2022,RMS,cer Financial Ltd,Agency Staff,360,0,COMMERCIAL SUPPLIER
02-10-2022,RMS,cer Financial Ltd,Agency Staff,360,0,COMMERCIAL SUPPLIER
02-10-2022,RMS,cer Financial Ltd,Agency Staff,360,0,COMMERCIAL SUPPLIER
02-10-2022,RMS,cer Financial Ltd,Agency Staff,360,0,COMMERCIAL SUPPLIER
02-10-2022,RMS,cer Financial Ltd,Agency Staff,520,0,COMMERCIAL SUPPLIER
02-10-2022,RMS,cer Financial Ltd,Agency Staff,360,0,COMMERCIAL SUPPLIER
02-10-2022,RMS,cer Financial Ltd,Agency Staff,110,0,COMMERCIAL SUPPLIER
02-10-2022,RMS,cer Financial Ltd,Agency Staff,360,0,COMMERCIAL SUPPLIER
02-10-2022,RMS,cer Financial Ltd,Agency Staff,360,0,COMMERCIAL SUPPLIER
02-10-2022,RMS,cer Financial Ltd,Agency Staff,360,0,COMMERCIAL SUPPLIER
02-10-2022,RMS,cer Financial Ltd,Agency Staff,360,0,COMMERCIAL SUPPLIER
02-10-2022,RMS,cer Financial Ltd,Agency Staff,360,0,COMMERCIAL SUPPLIER
02-10-2022,RMS,cer Financial Ltd,Agency Staff,360,0,COMMERCIAL SUPPLIER
02-10-2022,RMS,cer Financial Ltd,Agency Staff,360,0,COMMERCIAL SUPPLIER
02-10-2022,RMS,cer Financial Ltd,Agency Staff,360,0,COMMERCIAL SUPPLIER
02-10-2022,RMS,cer Financial Ltd,Agency Staff,360,0,COMMERCIAL SUPPLIER
02-10-2022,Environment and Sustainable Transport,Complete Ecology Ltd,Surveys,1410,0,COMMERCIAL SUPPLIER
02-10-2022,Marketing,Star Books International,"Books, Publications And Resources",810.8,0,VENDOR
02-10-2022,Adults & Health,Liberty Centre Ltd,Daycare - Private Contractors Payment,356,0,COMMERCIAL SUPPLIER
02-10-2022,Adults & Health,Liberty Centre Ltd,Daycare - Private Contractors Payment,356,0,COMMERCIAL SUPPLIER
02-10-2022,Adults & Health,Liberty Centre Ltd,Daycare - Private Contractors Payment,356,0,COMMERCIAL SUPPLIER
02-10-2022,Children and Young People,Personal Information - Redacted,Ict Software,99.92,0,Employee
02-10-2022,Children and Young People,Personal Information - Redacted,Land Line Telephone Costs,6,0,Employee
02-10-2022,Children and Young People,Personal Information - Redacted,Catering And Vending Supplies,88.7,0,Employee
02-10-2022,Children and Young People,Personal Information - Redacted,Ict Software,54.22,0,Employee
02-10-2022,Children and Young People,Personal Information - Redacted,Ict Software,99.92,0,Employee
02-10-2022,Children and Young People,Personal Information - Redacted,Ict Software,32.62,0,Employee
02-10-2022,Children and Young People,Personal Information - Redacted,Stationery,216.49,0,Employee
02-10-2022,Children and Young People,Personal Information - Redacted,Ict Software,45,0,Employee
02-10-2022,Children and Young People,Personal Information - Redacted,Stationery,16.66,0,Employee
02-10-2022,Children and Young People,Personal Information - Redacted,Professional Services - General,26.33,0,Employee
02-10-2022,Children and Young People,Personal Information - Redacted,Ict Software,320,0,Employee
02-10-2022,Children and Young People,Personal Information - Redacted,Stationery,216.5,0,Employee
02-10-2022,Children and Young People,Personal Information - Redacted,Ict Software,21.12,0,Employee
02-10-2022,Children and Young People,Personal Information - Redacted,Catering And Vending Supplies,62.97,0,Employee
02-10-2022,Children and Young People,Personal Information - Redacted,Catering And Vending Supplies,51.96,0,Employee
02-10-2022,Children and Young People,Personal Information - Redacted,Stationery,16.66,0,Employee
02-10-2022,Environment and Sustainable Transport,Personal Information - Redacted,Catering And Vending Supplies,159.87,0,Employee
02-10-2022,Environment and Sustainable Transport,Personal Information - Redacted,Catering And Vending Supplies,14.83,0,Employee
02-10-2022,Inclusive Economy & Housing,Hungerburger Ltd T/a Barking Hotel,Rents Payable,29137,0,COMMERCIAL SUPPLIER
02-10-2022,Inclusive Economy & Housing,Hungerburger Ltd T/a Barking Hotel,Rents Payable,4534,0,COMMERCIAL SUPPLIER
02-10-2022,Adults & Health,Liberty Centre Ltd,Daycare - Private Contractors Payment,1272,0,COMMERCIAL SUPPLIER
02-10-2022,Adults & Health,Liberty Centre Ltd,Daycare - Private Contractors Payment,1272,0,COMMERCIAL SUPPLIER
02-10-2022,Adults & Health,Liberty Centre Ltd,Daycare - Private Contractors Payment,1272,0,COMMERCIAL SUPPLIER
02-10-2022,Marketing,Personal Information - Redacted,Events,849.79,0,INDIVIDUALS
02-10-2022,RMS,Travis Perkins Trading Company Ltd,"Purchase - Equipment, Furniture And Materials",62699.87,0,COMMERCIAL SUPPLIER
02-10-2022,RMS,Travis Perkins Trading Company Ltd,"Purchase - Equipment, Furniture And Materials",3110.48,0,COMMERCIAL SUPPLIER
02-10-2022,RMS,Travis Perkins Trading Company Ltd,"Purchase - Equipment, Furniture And Materials",4476.77,0,COMMERCIAL SUPPLIER
02-10-2022,RMS,Travis Perkins Trading Company Ltd,"Purchase - Equipment, Furniture And Materials",5909.08,0,COMMERCIAL SUPPLIER
02-10-2022,RMS,Travis Perkins Trading Company Ltd,"Purchase - Equipment, Furniture And Materials",6434.07,0,COMMERCIAL SUPPLIER
02-10-2022,RMS,Travis Perkins Trading Company Ltd,"Purchase - Equipment, Furniture And Materials",5172.59,0,COMMERCIAL SUPPLIER
02-10-2022,RMS,Travis Perkins Trading Company Ltd,"Purchase - Equipment, Furniture And Materials",1659.44,0,COMMERCIAL SUPPLIER
02-10-2022,RMS,Travis Perkins Trading Company Ltd,"Purchase - Equipment, Furniture And Materials",114.99,0,COMMERCIAL SUPPLIER
02-10-2022,RMS,Travis Perkins Trading Company Ltd,"Purchase - Equipment, Furniture And Materials",562.32,0,COMMERCIAL SUPPLIER
02-10-2022,RMS,Travis Perkins Trading Company Ltd,"Purchase - Equipment, Furniture And Materials",67545.96,0,COMMERCIAL SUPPLIER
02-10-2022,RMS,Travis Perkins Trading Company Ltd,"Purchase - Equipment, Furniture And Materials",280.38,0,COMMERCIAL SUPPLIER
03-10-2022,Adults & Health,Uniting Friends,Daycare - Private Contractors Payment,288.2,0,VENDOR
03-10-2022,Adults & Health,Uniting Friends,Daycare - Private Contractors Payment,360.25,0,VENDOR
03-10-2022,Adults & Health,Uniting Friends,Daycare - Private Contractors Payment,360.25,0,VENDOR
03-10-2022,Adults & Health,Uniting Friends,Daycare - Private Contractors Payment,360.25,0,VENDOR
03-10-2022,Adults & Health,Uniting Friends,Daycare - Private Contractors Payment,140,0,VENDOR
03-10-2022,Adults & Health,Uniting Friends,Daycare - Private Contractors Payment,140,0,VENDOR
03-10-2022,Adults & Health,Uniting Friends,Daycare - Private Contractors Payment,360.25,0,VENDOR
03-10-2022,Adults & Health,Uniting Friends,Daycare - Private Contractors Payment,360.25,0,VENDOR
03-10-2022,Adults & Health,Uniting Friends,Daycare - Private Contractors Payment,360.25,0,VENDOR
03-10-2022,Adults & Health,Uniting Friends,Daycare - Private Contractors Payment,360.25,0,VENDOR
03-10-2022,Adults & Health,Voiceability,Private Contractors Payment - Other,15625,0,COMMERCIAL SUPPLIER
03-10-2022,Marketing,Onsar Ltd,Events,304.2,0,COMMERCIAL SUPPLIER
03-10-2022,Adults & Health,Fight For Peace.,Arts And Leisure Costs,7700,0,VENDOR
03-10-2022,Marketing,Bollywood Vibes,Events,620,0,NON COMMERCIAL SUPPLIER
03-10-2022,Marketing,Rip Fitness.,Events,960,0,COMMERCIAL SUPPLIER
03-10-2022,Marketing,Rip Fitness.,Events,440,0,COMMERCIAL SUPPLIER
03-10-2022,Marketing,Personal Information - Redacted,Events,900,0,INDIVIDUALS
03-10-2022,Adults & Health,London Care Plc,Home Care - Private Contractors Payment,163.8,0,COMMERCIAL SUPPLIER
03-10-2022,Adults & Health,London Care Plc,Home Care - Private Contractors Payment,18.72,0,COMMERCIAL SUPPLIER
03-10-2022,Adults & Health,London Care Plc,Home Care - Private Contractors Payment,65.52,0,COMMERCIAL SUPPLIER
03-10-2022,Adults & Health,London Care Plc,Home Care - Private Contractors Payment,18.72,0,COMMERCIAL SUPPLIER
03-10-2022,Adults & Health,London Care Plc,Home Care - Private Contractors Payment,65.52,0,COMMERCIAL SUPPLIER
03-10-2022,Adults & Health,London Care Plc,Home Care - Private Contractors Payment,65.52,0,COMMERCIAL SUPPLIER
03-10-2022,Adults & Health,London Care Plc,Home Care - Private Contractors Payment,163.8,0,COMMERCIAL SUPPLIER
03-10-2022,Adults & Health,London Care Plc,Home Care - Private Contractors Payment,163.83,0,COMMERCIAL SUPPLIER
03-10-2022,Adults & Health,London Care Plc,Home Care - Private Contractors Payment,65.52,0,COMMERCIAL SUPPLIER
03-10-2022,Adults & Health,London Care Plc,Home Care - Private Contractors Payment,18.72,0,COMMERCIAL SUPPLIER
03-10-2022,Adults & Health,London Care Plc,Home Care - Private Contractors Payment,18.72,0,COMMERCIAL SUPPLIER
03-10-2022,Adults & Health,London Care Plc,Home Care - Private Contractors Payment,163.8,0,COMMERCIAL SUPPLIER
03-10-2022,Adults & Health,London Care Plc,Home Care - Private Contractors Payment,393.12,0,COMMERCIAL SUPPLIER
03-10-2022,Adults & Health,London Care Plc,Home Care - Private Contractors Payment,163.8,0,COMMERCIAL SUPPLIER
03-10-2022,Adults & Health,London Care Plc,Reablement,210.6,0,COMMERCIAL SUPPLIER
03-10-2022,Adults & Health,London Care Plc,Home Care - Private Contractors Payment,18.72,0,COMMERCIAL SUPPLIER
03-10-2022,Adults & Health,London Care Plc,Home Care - Private Contractors Payment,163.8,0,COMMERCIAL SUPPLIER
03-10-2022,Adults & Health,London Care Plc,Home Care - Private Contractors Payment,163.8,0,COMMERCIAL SUPPLIER
03-10-2022,Adults & Health,London Care Plc,Home Care - Private Contractors Payment,65.52,0,COMMERCIAL SUPPLIER
03-10-2022,Adults & Health,London Care Plc,Home Care - Private Contractors Payment,18.72,0,COMMERCIAL SUPPLIER
03-10-2022,Adults & Health,London Care Plc,Home Care - Private Contractors Payment,65.52,0,COMMERCIAL SUPPLIER
03-10-2022,Adults & Health,London Care Plc,Home Care - Private Contractors Payment,18.72,0,COMMERCIAL SUPPLIER
03-10-2022,Adults & Health,London Care Plc,Home Care - Private Contractors Payment,163.8,0,COMMERCIAL SUPPLIER
03-10-2022,Adults & Health,London Care Plc,Home Care - Private Contractors Payment,163.8,0,COMMERCIAL SUPPLIER
03-10-2022,Adults & Health,London Care Plc,Home Care - Private Contractors Payment,18.72,0,COMMERCIAL SUPPLIER
03-10-2022,Adults & Health,London Care Plc,Home Care - Private Contractors Payment,65.52,0,COMMERCIAL SUPPLIER
03-10-2022,Adults & Health,London Care Plc,Home Care - Private Contractors Payment,65.52,0,COMMERCIAL SUPPLIER
03-10-2022,Adults & Health,London Care Plc,Home Care - Private Contractors Payment,229.32,0,COMMERCIAL SUPPLIER
03-10-2022,Adults & Health,London Care Plc,Home Care - Private Contractors Payment,229.32,0,COMMERCIAL SUPPLIER
03-10-2022,Adults & Health,London Care Plc,Home Care - Private Contractors Payment,229.32,0,COMMERCIAL SUPPLIER
03-10-2022,Adults & Health,London Care Plc,Home Care - Private Contractors Payment,229.32,0,COMMERCIAL SUPPLIER
03-10-2022,Environment and Sustainable Transport,R.A.M Fleet Solutions Ltd,"Purchase - Equipment, Furniture And Materials",4182.5,0,COMMERCIAL SUPPLIER
03-10-2022,Children and Young People,Docklands Day Nursery,Contact Costs (Placements),1375,0,NON COMMERCIAL SUPPLIER
03-10-2022,RMS,Winkhaus Ltd,Building Alterations And Materials,275.28,0,COMMERCIAL SUPPLIER
03-10-2022,Marketing,Askews and Holts Library Services Ltd,"Books, Publications And Resources",11.73,0,COMMERCIAL SUPPLIER
03-10-2022,Marketing,Askews and Holts Library Services Ltd,"Books, Publications And Resources",573.88,0,COMMERCIAL SUPPLIER
03-10-2022,Marketing,Askews and Holts Library Services Ltd,"Books, Publications And Resources",2311.96,0,COMMERCIAL SUPPLIER
03-10-2022,Marketing,Askews and Holts Library Services Ltd,"Books, Publications And Resources",3492.69,0,COMMERCIAL SUPPLIER
03-10-2022,Marketing,Askews and Holts Library Services Ltd,"Books, Publications And Resources",917.88,0,COMMERCIAL SUPPLIER
03-10-2022,Housing Revenue Account,CTR Triangle Ltd,Professional Services - General,90560,0,VENDOR
03-10-2022,Adults & Health,Essex County Council,Residential Placements - Private Contractors Payment,250,0,LOCAL AUTHORITY SERVICES
03-10-2022,oneSource - Non Shared,ABCA SYSTEMS LTD,Facilities Management,28.5,0,COMMERCIAL SUPPLIER
03-10-2022,oneSource - Non Shared,ABCA SYSTEMS LTD,Facilities Management,195.26,0,COMMERCIAL SUPPLIER
03-10-2022,oneSource - Non Shared,ABCA SYSTEMS LTD,Facilities Management,26.94,0,COMMERCIAL SUPPLIER
03-10-2022,oneSource - Non Shared,ABCA SYSTEMS LTD,Facilities Management,65,0,COMMERCIAL SUPPLIER
03-10-2022,oneSource - Non Shared,ABCA SYSTEMS LTD,Facilities Management,208.21,0,COMMERCIAL SUPPLIER
03-10-2022,oneSource - Non Shared,ABCA SYSTEMS LTD,Facilities Management,321.25,0,COMMERCIAL SUPPLIER
03-10-2022,Children and Young People,Gordon Care Services Limited,Client Transport,1360,0,COMMERCIAL SUPPLIER
03-10-2022,Children and Young People,Gordon Care Services Limited,Client Transport,1680,0,COMMERCIAL SUPPLIER
03-10-2022,Children and Young People,Gordon Care Services Limited,Client Transport,840,0,COMMERCIAL SUPPLIER
03-10-2022,Adults & Health,Chosen Care Group Ltd,Home Care - Private Contractors Payment,167.65,0,VENDOR
03-10-2022,Adults & Health,Chosen Care Group Ltd,Home Care - Private Contractors Payment,162.86,0,VENDOR
03-10-2022,Adults & Health,Chosen Care Group Ltd,Home Care - Private Contractors Payment,38.32,0,VENDOR
03-10-2022,Adults & Health,Chosen Care Group Ltd,Home Care - Private Contractors Payment,38.32,0,VENDOR
03-10-2022,Adults & Health,Chosen Care Group Ltd,Home Care - Private Contractors Payment,19.16,0,VENDOR
03-10-2022,Adults & Health,Chosen Care Group Ltd,Home Care - Private Contractors Payment,100.59,0,VENDOR
03-10-2022,Adults & Health,Chosen Care Group Ltd,Home Care - Private Contractors Payment,234.71,0,VENDOR
03-10-2022,Adults & Health,Chosen Care Group Ltd,Home Care - Private Contractors Payment,167.65,0,VENDOR
03-10-2022,Adults & Health,Chosen Care Group Ltd,Daycare - Private Contractors Payment,287.4,0,VENDOR
03-10-2022,Adults & Health,Chosen Care Group Ltd,Home Care - Private Contractors Payment,301.77,0,VENDOR
03-10-2022,Adults & Health,Chosen Care Group Ltd,Home Care - Private Contractors Payment,435.89,0,VENDOR
03-10-2022,Adults & Health,Chosen Care Group Ltd,Daycare - Private Contractors Payment,67.06,0,VENDOR
03-10-2022,Adults & Health,Chosen Care Group Ltd,Home Care - Private Contractors Payment,234.71,0,VENDOR
03-10-2022,Adults & Health,Chosen Care Group Ltd,Home Care - Private Contractors Payment,191.6,0,VENDOR
03-10-2022,Adults & Health,Chosen Care Group Ltd,Home Care - Private Contractors Payment,71.85,0,VENDOR
03-10-2022,Adults & Health,Chosen Care Group Ltd,Home Care - Private Contractors Payment,234.71,0,VENDOR
03-10-2022,Adults & Health,Chosen Care Group Ltd,Home Care - Private Contractors Payment,325.5,0,VENDOR
03-10-2022,Adults & Health,Chosen Care Group Ltd,Daycare - Private Contractors Payment,28.74,0,VENDOR
03-10-2022,Adults & Health,Chosen Care Group Ltd,Home Care - Private Contractors Payment,268.24,0,VENDOR
03-10-2022,Adults & Health,Chosen Care Group Ltd,Daycare - Private Contractors Payment,19.16,0,VENDOR
03-10-2022,Adults & Health,Chosen Care Group Ltd,Home Care - Private Contractors Payment,402.36,0,VENDOR
03-10-2022,Adults & Health,Chosen Care Group Ltd,Home Care - Private Contractors Payment,167.65,0,VENDOR
03-10-2022,Adults & Health,Chosen Care Group Ltd,Home Care - Private Contractors Payment,301.77,0,VENDOR
03-10-2022,Adults & Health,Chosen Care Group Ltd,Home Care - Private Contractors Payment,301.77,0,VENDOR
03-10-2022,Adults & Health,Chosen Care Group Ltd,Home Care - Private Contractors Payment,100.59,0,VENDOR
03-10-2022,Adults & Health,Chosen Care Group Ltd,Daycare - Private Contractors Payment,172.44,0,VENDOR
03-10-2022,Adults & Health,Chosen Care Group Ltd,Home Care - Private Contractors Payment,603.54,0,VENDOR
03-10-2022,Adults & Health,Chosen Care Group Ltd,Home Care - Private Contractors Payment,95.8,0,VENDOR
03-10-2022,Adults & Health,Chosen Care Group Ltd,Daycare - Private Contractors Payment,306.56,0,VENDOR
03-10-2022,Adults & Health,Chosen Care Group Ltd,Home Care - Private Contractors Payment,134.12,0,VENDOR
03-10-2022,Adults & Health,Chosen Care Group Ltd,Home Care - Private Contractors Payment,67.06,0,VENDOR
03-10-2022,Adults & Health,Chosen Care Group Ltd,Home Care - Private Contractors Payment,134.12,0,VENDOR
03-10-2022,Adults & Health,Chosen Care Group Ltd,Home Care - Private Contractors Payment,19.16,0,VENDOR
03-10-2022,Adults & Health,Chosen Care Group Ltd,Home Care - Private Contractors Payment,38.32,0,VENDOR
03-10-2022,Adults & Health,Chosen Care Group Ltd,Daycare - Private Contractors Payment,47.9,0,VENDOR
03-10-2022,Adults & Health,Chosen Care Group Ltd,Home Care - Private Contractors Payment,153.28,0,VENDOR
03-10-2022,Adults & Health,Chosen Care Group Ltd,Home Care - Private Contractors Payment,282.61,0,VENDOR
03-10-2022,Adults & Health,Chosen Care Group Ltd,Home Care - Private Contractors Payment,459.84,0,VENDOR
03-10-2022,Adults & Health,Chosen Care Group Ltd,Home Care - Private Contractors Payment,38.32,0,VENDOR
03-10-2022,Adults & Health,Chosen Care Group Ltd,Home Care - Private Contractors Payment,234.71,0,VENDOR
03-10-2022,Adults & Health,Chosen Care Group Ltd,Home Care - Private Contractors Payment,167.65,0,VENDOR
03-10-2022,Adults & Health,Chosen Care Group Ltd,Daycare - Private Contractors Payment,47.9,0,VENDOR
03-10-2022,Adults & Health,Chosen Care Group Ltd,Daycare - Private Contractors Payment,76.64,0,VENDOR
03-10-2022,Adults & Health,Chosen Care Group Ltd,Home Care - Private Contractors Payment,167.65,0,VENDOR
03-10-2022,Adults & Health,Chosen Care Group Ltd,Home Care - Private Contractors Payment,162.86,0,VENDOR
03-10-2022,Adults & Health,Chosen Care Group Ltd,Home Care - Private Contractors Payment,167.65,0,VENDOR
03-10-2022,Adults & Health,Chosen Care Group Ltd,Home Care - Private Contractors Payment,215.55,0,VENDOR
03-10-2022,Adults & Health,Chosen Care Group Ltd,Home Care - Private Contractors Payment,301.77,0,VENDOR
03-10-2022,Adults & Health,Chosen Care Group Ltd,Home Care - Private Contractors Payment,95.8,0,VENDOR
03-10-2022,Adults & Health,Chosen Care Group Ltd,Home Care - Private Contractors Payment,167.65,0,VENDOR
03-10-2022,Adults & Health,Chosen Care Group Ltd,Daycare - Private Contractors Payment,57.48,0,VENDOR
03-10-2022,Adults & Health,Chosen Care Group Ltd,Home Care - Private Contractors Payment,172.44,0,VENDOR
03-10-2022,Adults & Health,Chosen Care Group Ltd,Home Care - Private Contractors Payment,340.09,0,VENDOR
03-10-2022,Adults & Health,Chosen Care Group Ltd,Home Care - Private Contractors Payment,38.32,0,VENDOR
03-10-2022,Adults & Health,Chosen Care Group Ltd,Home Care - Private Contractors Payment,301.77,0,VENDOR
03-10-2022,Adults & Health,Chosen Care Group Ltd,Daycare - Private Contractors Payment,67.06,0,VENDOR
03-10-2022,Adults & Health,Chosen Care Group Ltd,Home Care - Private Contractors Payment,95.8,0,VENDOR
03-10-2022,Adults & Health,Chosen Care Group Ltd,Home Care - Private Contractors Payment,38.32,0,VENDOR
03-10-2022,Adults & Health,Chosen Care Group Ltd,Home Care - Private Contractors Payment,153.28,0,VENDOR
03-10-2022,Adults & Health,Chosen Care Group Ltd,Daycare - Private Contractors Payment,172.44,0,VENDOR
03-10-2022,Adults & Health,Chosen Care Group Ltd,Daycare - Private Contractors Payment,28.74,0,VENDOR
03-10-2022,Adults & Health,Chosen Care Group Ltd,Home Care - Private Contractors Payment,402.36,0,VENDOR
03-10-2022,Adults & Health,Chosen Care Group Ltd,Home Care - Private Contractors Payment,167.65,0,VENDOR
03-10-2022,Adults & Health,Chosen Care Group Ltd,Home Care - Private Contractors Payment,38.32,0,VENDOR
03-10-2022,Adults & Health,Chosen Care Group Ltd,Home Care - Private Contractors Payment,325.5,0,VENDOR
03-10-2022,Adults & Health,Chosen Care Group Ltd,Home Care - Private Contractors Payment,95.8,0,VENDOR
03-10-2022,Adults & Health,Chosen Care Group Ltd,Home Care - Private Contractors Payment,201.18,0,VENDOR
03-10-2022,Adults & Health,Chosen Care Group Ltd,Home Care - Private Contractors Payment,100.59,0,VENDOR
03-10-2022,Adults & Health,Chosen Care Group Ltd,Daycare - Private Contractors Payment,28.74,0,VENDOR
03-10-2022,Adults & Health,Chosen Care Group Ltd,Home Care - Private Contractors Payment,234.71,0,VENDOR
03-10-2022,Adults & Health,Chosen Care Group Ltd,Home Care - Private Contractors Payment,301.77,0,VENDOR
03-10-2022,Adults & Health,Chosen Care Group Ltd,Home Care - Private Contractors Payment,234.71,0,VENDOR
03-10-2022,Adults & Health,Chosen Care Group Ltd,Daycare - Private Contractors Payment,19.16,0,VENDOR
03-10-2022,Adults & Health,Chosen Care Group Ltd,Home Care - Private Contractors Payment,100.59,0,VENDOR
03-10-2022,Adults & Health,Chosen Care Group Ltd,Home Care - Private Contractors Payment,67.06,0,VENDOR
03-10-2022,Adults & Health,Chosen Care Group Ltd,Home Care - Private Contractors Payment,268.24,0,VENDOR
03-10-2022,Adults & Health,Chosen Care Group Ltd,Home Care - Private Contractors Payment,28.74,0,VENDOR
03-10-2022,Adults & Health,Chosen Care Group Ltd,Home Care - Private Contractors Payment,167.65,0,VENDOR
03-10-2022,Adults & Health,Chosen Care Group Ltd,Home Care - Private Contractors Payment,603.54,0,VENDOR
03-10-2022,Adults & Health,Chosen Care Group Ltd,Home Care - Private Contractors Payment,354.46,0,VENDOR
03-10-2022,Adults & Health,Chosen Care Group Ltd,Home Care - Private Contractors Payment,359.25,0,VENDOR
03-10-2022,Adults & Health,Chosen Care Group Ltd,Home Care - Private Contractors Payment,435.89,0,VENDOR
03-10-2022,Adults & Health,Chosen Care Group Ltd,Home Care - Private Contractors Payment,57.48,0,VENDOR
03-10-2022,Adults & Health,Chosen Care Group Ltd,Daycare - Private Contractors Payment,19.16,0,VENDOR
03-10-2022,Adults & Health,Chosen Care Group Ltd,Home Care - Private Contractors Payment,14.37,0,VENDOR
03-10-2022,Adults & Health,Chosen Care Group Ltd,Daycare - Private Contractors Payment,28.74,0,VENDOR
03-10-2022,Adults & Health,Chosen Care Group Ltd,Home Care - Private Contractors Payment,38.32,0,VENDOR
03-10-2022,Adults & Health,Chosen Care Group Ltd,Home Care - Private Contractors Payment,71.85,0,VENDOR
03-10-2022,Adults & Health,Chosen Care Group Ltd,Home Care - Private Contractors Payment,9.58,0,VENDOR
03-10-2022,Adults & Health,Chosen Care Group Ltd,Home Care - Private Contractors Payment,1528.01,0,VENDOR
03-10-2022,Adults & Health,Chosen Care Group Ltd,Daycare - Private Contractors Payment,38.32,0,VENDOR
03-10-2022,Adults & Health,Chosen Care Group Ltd,Home Care - Private Contractors Payment,134.12,0,VENDOR
03-10-2022,Adults & Health,Chosen Care Group Ltd,Daycare - Private Contractors Payment,172.44,0,VENDOR
03-10-2022,Adults & Health,Chosen Care Group Ltd,Home Care - Private Contractors Payment,234.71,0,VENDOR
03-10-2022,Adults & Health,Chosen Care Group Ltd,Home Care - Private Contractors Payment,301.77,0,VENDOR
03-10-2022,Adults & Health,Chosen Care Group Ltd,Home Care - Private Contractors Payment,38.32,0,VENDOR
03-10-2022,Adults & Health,Chosen Care Group Ltd,Home Care - Private Contractors Payment,215.55,0,VENDOR
03-10-2022,Adults & Health,Chosen Care Group Ltd,Home Care - Private Contractors Payment,268.24,0,VENDOR
03-10-2022,Adults & Health,Chosen Care Group Ltd,Home Care - Private Contractors Payment,19.16,0,VENDOR
03-10-2022,Adults & Health,Chosen Care Group Ltd,Home Care - Private Contractors Payment,1572.48,0,VENDOR
03-10-2022,Adults & Health,Chosen Care Group Ltd,Home Care - Private Contractors Payment,95.8,0,VENDOR
03-10-2022,Adults & Health,Chosen Care Group Ltd,Respite Care - Private Contractors Payment,134.12,0,VENDOR
03-10-2022,Adults & Health,Chosen Care Group Ltd,Home Care - Private Contractors Payment,201.18,0,VENDOR
03-10-2022,Adults & Health,Chosen Care Group Ltd,Home Care - Private Contractors Payment,134.12,0,VENDOR
03-10-2022,Adults & Health,Chosen Care Group Ltd,Home Care - Private Contractors Payment,301.77,0,VENDOR
03-10-2022,Adults & Health,Chosen Care Group Ltd,Daycare - Private Contractors Payment,287.4,0,VENDOR
03-10-2022,Adults & Health,Chosen Care Group Ltd,Home Care - Private Contractors Payment,67.06,0,VENDOR
03-10-2022,Adults & Health,Chosen Care Group Ltd,Home Care - Private Contractors Payment,71.85,0,VENDOR
03-10-2022,Adults & Health,Chosen Care Group Ltd,Home Care - Private Contractors Payment,536.48,0,VENDOR
03-10-2022,Adults & Health,Chosen Care Group Ltd,Daycare - Private Contractors Payment,28.74,0,VENDOR
03-10-2022,Adults & Health,Chosen Care Group Ltd,Home Care - Private Contractors Payment,996.32,0,VENDOR
03-10-2022,Adults & Health,Chosen Care Group Ltd,Home Care - Private Contractors Payment,134.12,0,VENDOR
03-10-2022,Adults & Health,Chosen Care Group Ltd,Home Care - Private Contractors Payment,67.06,0,VENDOR
03-10-2022,Adults & Health,Chosen Care Group Ltd,Home Care - Private Contractors Payment,52.69,0,VENDOR
03-10-2022,Adults & Health,Chosen Care Group Ltd,Home Care - Private Contractors Payment,38.32,0,VENDOR
03-10-2022,Adults & Health,Chosen Care Group Ltd,Home Care - Private Contractors Payment,234.71,0,VENDOR
03-10-2022,Adults & Health,Chosen Care Group Ltd,Home Care - Private Contractors Payment,1572.48,0,VENDOR
03-10-2022,Adults & Health,Chosen Care Group Ltd,Home Care - Private Contractors Payment,167.65,0,VENDOR
03-10-2022,Adults & Health,Chosen Care Group Ltd,Home Care - Private Contractors Payment,340.09,0,VENDOR
03-10-2022,Adults & Health,Chosen Care Group Ltd,Home Care - Private Contractors Payment,67.06,0,VENDOR
03-10-2022,Adults & Health,Chosen Care Group Ltd,Home Care - Private Contractors Payment,301.77,0,VENDOR
03-10-2022,Adults & Health,Chosen Care Group Ltd,Home Care - Private Contractors Payment,134.12,0,VENDOR
03-10-2022,Adults & Health,Chosen Care Group Ltd,Respite Care - Private Contractors Payment,134.12,0,VENDOR
03-10-2022,Adults & Health,Chosen Care Group Ltd,Daycare - Private Contractors Payment,287.4,0,VENDOR
03-10-2022,Adults & Health,Chosen Care Group Ltd,Home Care - Private Contractors Payment,38.32,0,VENDOR
03-10-2022,Adults & Health,Chosen Care Group Ltd,Home Care - Private Contractors Payment,340.09,0,VENDOR
03-10-2022,Adults & Health,Chosen Care Group Ltd,Home Care - Private Contractors Payment,100.59,0,VENDOR
03-10-2022,Adults & Health,Chosen Care Group Ltd,Home Care - Private Contractors Payment,67.06,0,VENDOR
03-10-2022,Adults & Health,Chosen Care Group Ltd,Home Care - Private Contractors Payment,38.32,0,VENDOR
03-10-2022,Adults & Health,Chosen Care Group Ltd,Respite Care - Private Contractors Payment,134.12,0,VENDOR
03-10-2022,Adults & Health,Chosen Care Group Ltd,Home Care - Private Contractors Payment,234.71,0,VENDOR
03-10-2022,Adults & Health,Chosen Care Group Ltd,Home Care - Private Contractors Payment,167.65,0,VENDOR
03-10-2022,Adults & Health,Chosen Care Group Ltd,Home Care - Private Contractors Payment,234.71,0,VENDOR
03-10-2022,Adults & Health,Chosen Care Group Ltd,Home Care - Private Contractors Payment,359.25,0,VENDOR
03-10-2022,Adults & Health,Chosen Care Group Ltd,Home Care - Private Contractors Payment,536.48,0,VENDOR
03-10-2022,Adults & Health,Chosen Care Group Ltd,Home Care - Private Contractors Payment,28.74,0,VENDOR
03-10-2022,Adults & Health,Chosen Care Group Ltd,Home Care - Private Contractors Payment,100.59,0,VENDOR
03-10-2022,Adults & Health,Chosen Care Group Ltd,Home Care - Private Contractors Payment,268.24,0,VENDOR
03-10-2022,Adults & Health,Chosen Care Group Ltd,Home Care - Private Contractors Payment,301.77,0,VENDOR
03-10-2022,Adults & Health,Chosen Care Group Ltd,Daycare - Private Contractors Payment,76.64,0,VENDOR
03-10-2022,Adults & Health,Chosen Care Group Ltd,Home Care - Private Contractors Payment,38.32,0,VENDOR
03-10-2022,Adults & Health,Chosen Care Group Ltd,Home Care - Private Contractors Payment,134.12,0,VENDOR
03-10-2022,Adults & Health,Chosen Care Group Ltd,Home Care - Private Contractors Payment,201.18,0,VENDOR
03-10-2022,Adults & Health,Chosen Care Group Ltd,Home Care - Private Contractors Payment,215.55,0,VENDOR
03-10-2022,Adults & Health,Chosen Care Group Ltd,Home Care - Private Contractors Payment,19.16,0,VENDOR
03-10-2022,Adults & Health,Chosen Care Group Ltd,Home Care - Private Contractors Payment,95.8,0,VENDOR
03-10-2022,Adults & Health,Chosen Care Group Ltd,Daycare - Private Contractors Payment,28.74,0,VENDOR
03-10-2022,Adults & Health,Chosen Care Group Ltd,Home Care - Private Contractors Payment,100.59,0,VENDOR
03-10-2022,Adults & Health,Chosen Care Group Ltd,Home Care - Private Contractors Payment,201.18,0,VENDOR
03-10-2022,Adults & Health,Chosen Care Group Ltd,Home Care - Private Contractors Payment,268.24,0,VENDOR
03-10-2022,Adults & Health,Chosen Care Group Ltd,Home Care - Private Contractors Payment,167.65,0,VENDOR
03-10-2022,Adults & Health,Chosen Care Group Ltd,Home Care - Private Contractors Payment,201.18,0,VENDOR
03-10-2022,Adults & Health,Chosen Care Group Ltd,Home Care - Private Contractors Payment,435.89,0,VENDOR
03-10-2022,Adults & Health,Chosen Care Group Ltd,Home Care - Private Contractors Payment,1572.48,0,VENDOR
03-10-2022,Adults & Health,Chosen Care Group Ltd,Daycare - Private Contractors Payment,38.32,0,VENDOR
03-10-2022,Adults & Health,Chosen Care Group Ltd,Home Care - Private Contractors Payment,201.18,0,VENDOR
03-10-2022,Adults & Health,Chosen Care Group Ltd,Home Care - Private Contractors Payment,536.48,0,VENDOR
03-10-2022,Adults & Health,Chosen Care Group Ltd,Home Care - Private Contractors Payment,258.66,0,VENDOR
03-10-2022,Adults & Health,Chosen Care Group Ltd,Daycare - Private Contractors Payment,47.9,0,VENDOR
03-10-2022,Adults & Health,Chosen Care Group Ltd,Daycare - Private Contractors Payment,19.16,0,VENDOR
03-10-2022,Adults & Health,Chosen Care Group Ltd,Home Care - Private Contractors Payment,301.77,0,VENDOR
03-10-2022,Adults & Health,Chosen Care Group Ltd,Respite Care - Private Contractors Payment,134.12,0,VENDOR
03-10-2022,Adults & Health,Chosen Care Group Ltd,Home Care - Private Contractors Payment,268.24,0,VENDOR
03-10-2022,Adults & Health,Chosen Care Group Ltd,Home Care - Private Contractors Payment,38.32,0,VENDOR
03-10-2022,Adults & Health,Chosen Care Group Ltd,Home Care - Private Contractors Payment,167.65,0,VENDOR
03-10-2022,Adults & Health,Chosen Care Group Ltd,Home Care - Private Contractors Payment,134.12,0,VENDOR
03-10-2022,Adults & Health,Chosen Care Group Ltd,Home Care - Private Contractors Payment,234.71,0,VENDOR
03-10-2022,Adults & Health,Chosen Care Group Ltd,Daycare - Private Contractors Payment,67.06,0,VENDOR
03-10-2022,Adults & Health,Chosen Care Group Ltd,Home Care - Private Contractors Payment,301.77,0,VENDOR
03-10-2022,Adults & Health,Chosen Care Group Ltd,Daycare - Private Contractors Payment,38.32,0,VENDOR
03-10-2022,Adults & Health,Chosen Care Group Ltd,Home Care - Private Contractors Payment,114.96,0,VENDOR
03-10-2022,Adults & Health,Chosen Care Group Ltd,Daycare - Private Contractors Payment,28.74,0,VENDOR
03-10-2022,Adults & Health,Chosen Care Group Ltd,Home Care - Private Contractors Payment,100.59,0,VENDOR
03-10-2022,Adults & Health,Chosen Care Group Ltd,Home Care - Private Contractors Payment,95.8,0,VENDOR
03-10-2022,Adults & Health,Chosen Care Group Ltd,Daycare - Private Contractors Payment,287.4,0,VENDOR
03-10-2022,Adults & Health,Chosen Care Group Ltd,Home Care - Private Contractors Payment,536.48,0,VENDOR
03-10-2022,Adults & Health,Chosen Care Group Ltd,Home Care - Private Contractors Payment,67.06,0,VENDOR
03-10-2022,Adults & Health,Chosen Care Group Ltd,Home Care - Private Contractors Payment,134.12,0,VENDOR
03-10-2022,Adults & Health,Chosen Care Group Ltd,Home Care - Private Contractors Payment,86.22,0,VENDOR
03-10-2022,Adults & Health,Chosen Care Group Ltd,Home Care - Private Contractors Payment,167.65,0,VENDOR
03-10-2022,Adults & Health,Chosen Care Group Ltd,Daycare - Private Contractors Payment,47.9,0,VENDOR
03-10-2022,Adults & Health,Chosen Care Group Ltd,Home Care - Private Contractors Payment,325.5,0,VENDOR
03-10-2022,Adults & Health,Chosen Care Group Ltd,Home Care - Private Contractors Payment,38.32,0,VENDOR
03-10-2022,Adults & Health,Chosen Care Group Ltd,Home Care - Private Contractors Payment,167.65,0,VENDOR
03-10-2022,Adults & Health,Chosen Care Group Ltd,Home Care - Private Contractors Payment,100.59,0,VENDOR
03-10-2022,Adults & Health,Chosen Care Group Ltd,Home Care - Private Contractors Payment,234.71,0,VENDOR
03-10-2022,Adults & Health,Chosen Care Group Ltd,Home Care - Private Contractors Payment,38.32,0,VENDOR
03-10-2022,Adults & Health,Chosen Care Group Ltd,Daycare - Private Contractors Payment,172.44,0,VENDOR
03-10-2022,Adults & Health,Chosen Care Group Ltd,Home Care - Private Contractors Payment,603.54,0,VENDOR
03-10-2022,Adults & Health,Chosen Care Group Ltd,Home Care - Private Contractors Payment,435.89,0,VENDOR
03-10-2022,Adults & Health,Chosen Care Group Ltd,Home Care - Private Contractors Payment,95.8,0,VENDOR
03-10-2022,Adults & Health,Chosen Care Group Ltd,Home Care - Private Contractors Payment,57.48,0,VENDOR
03-10-2022,Adults & Health,Chosen Care Group Ltd,Home Care - Private Contractors Payment,100.59,0,VENDOR
03-10-2022,Adults & Health,Chosen Care Group Ltd,Home Care - Private Contractors Payment,301.77,0,VENDOR
03-10-2022,Adults & Health,Chosen Care Group Ltd,Home Care - Private Contractors Payment,38.32,0,VENDOR
03-10-2022,Adults & Health,Chosen Care Group Ltd,Home Care - Private Contractors Payment,1719.92,0,VENDOR
03-10-2022,Adults & Health,Chosen Care Group Ltd,Home Care - Private Contractors Payment,57.48,0,VENDOR
03-10-2022,Adults & Health,Chosen Care Group Ltd,Home Care - Private Contractors Payment,19.16,0,VENDOR
03-10-2022,Adults & Health,Chosen Care Group Ltd,Daycare - Private Contractors Payment,19.16,0,VENDOR
03-10-2022,Adults & Health,Chosen Care Group Ltd,Home Care - Private Contractors Payment,215.55,0,VENDOR
03-10-2022,Adults & Health,Chosen Care Group Ltd,Home Care - Private Contractors Payment,71.85,0,VENDOR
03-10-2022,Adults & Health,Chosen Care Group Ltd,Home Care - Private Contractors Payment,268.24,0,VENDOR
03-10-2022,Adults & Health,Chosen Care Group Ltd,Home Care - Private Contractors Payment,167.65,0,VENDOR
03-10-2022,Adults & Health,Chosen Care Group Ltd,Daycare - Private Contractors Payment,76.64,0,VENDOR
03-10-2022,Adults & Health,Chosen Care Group Ltd,Home Care - Private Contractors Payment,234.71,0,VENDOR
03-10-2022,Adults & Health,Chosen Care Group Ltd,Home Care - Private Contractors Payment,67.06,0,VENDOR
03-10-2022,Adults & Health,Chosen Care Group Ltd,Home Care - Private Contractors Payment,536.48,0,VENDOR
03-10-2022,Adults & Health,Chosen Care Group Ltd,Home Care - Private Contractors Payment,134.12,0,VENDOR
03-10-2022,Adults & Health,Chosen Care Group Ltd,Home Care - Private Contractors Payment,167.65,0,VENDOR
03-10-2022,Adults & Health,Chosen Care Group Ltd,Daycare - Private Contractors Payment,67.06,0,VENDOR
03-10-2022,Adults & Health,Chosen Care Group Ltd,Home Care - Private Contractors Payment,38.32,0,VENDOR
03-10-2022,Adults & Health,Chosen Care Group Ltd,Home Care - Private Contractors Payment,603.54,0,VENDOR
03-10-2022,Adults & Health,Chosen Care Group Ltd,Home Care - Private Contractors Payment,167.65,0,VENDOR
03-10-2022,Adults & Health,Chosen Care Group Ltd,Home Care - Private Contractors Payment,162.86,0,VENDOR
03-10-2022,Adults & Health,Chosen Care Group Ltd,Home Care - Private Contractors Payment,359.25,0,VENDOR
03-10-2022,Adults & Health,Chosen Care Group Ltd,Home Care - Private Contractors Payment,234.71,0,VENDOR
03-10-2022,Adults & Health,Chosen Care Group Ltd,Home Care - Private Contractors Payment,19.16,0,VENDOR
03-10-2022,Adults & Health,Chosen Care Group Ltd,Home Care - Private Contractors Payment,100.59,0,VENDOR
03-10-2022,Adults & Health,Chosen Care Group Ltd,Home Care - Private Contractors Payment,234.71,0,VENDOR
03-10-2022,Adults & Health,Chosen Care Group Ltd,Daycare - Private Contractors Payment,306.56,0,VENDOR
03-10-2022,Adults & Health,Chosen Care Group Ltd,Home Care - Private Contractors Payment,134.12,0,VENDOR
03-10-2022,Adults & Health,Chosen Care Group Ltd,Home Care - Private Contractors Payment,38.32,0,VENDOR
03-10-2022,Adults & Health,Chosen Care Group Ltd,Home Care - Private Contractors Payment,28.74,0,VENDOR
03-10-2022,Adults & Health,Chosen Care Group Ltd,Home Care - Private Contractors Payment,234.71,0,VENDOR
03-10-2022,Adults & Health,Chosen Care Group Ltd,Home Care - Private Contractors Payment,196.39,0,VENDOR
03-10-2022,Adults & Health,Chosen Care Group Ltd,Home Care - Private Contractors Payment,201.84,0,VENDOR
03-10-2022,Adults & Health,Chosen Care Group Ltd,Home Care - Private Contractors Payment,167.65,0,VENDOR
03-10-2022,Adults & Health,Chosen Care Group Ltd,Home Care - Private Contractors Payment,268.24,0,VENDOR
03-10-2022,Adults & Health,Chosen Care Group Ltd,Home Care - Private Contractors Payment,38.32,0,VENDOR
03-10-2022,Adults & Health,Chosen Care Group Ltd,Home Care - Private Contractors Payment,316.14,0,VENDOR
03-10-2022,Adults & Health,Chosen Care Group Ltd,Home Care - Private Contractors Payment,301.77,0,VENDOR
03-10-2022,Adults & Health,Chosen Care Group Ltd,Home Care - Private Contractors Payment,234.71,0,VENDOR
03-10-2022,Adults & Health,Chosen Care Group Ltd,Home Care - Private Contractors Payment,38.32,0,VENDOR
03-10-2022,Adults & Health,Chosen Care Group Ltd,Home Care - Private Contractors Payment,67.06,0,VENDOR
03-10-2022,Adults & Health,Chosen Care Group Ltd,Home Care - Private Contractors Payment,536.48,0,VENDOR
03-10-2022,Adults & Health,Chosen Care Group Ltd,Home Care - Private Contractors Payment,52.69,0,VENDOR
03-10-2022,Adults & Health,Chosen Care Group Ltd,Home Care - Private Contractors Payment,234.71,0,VENDOR
03-10-2022,Adults & Health,Chosen Care Group Ltd,Home Care - Private Contractors Payment,268.24,0,VENDOR
03-10-2022,Adults & Health,Chosen Care Group Ltd,Home Care - Private Contractors Payment,100.59,0,VENDOR
03-10-2022,Adults & Health,Chosen Care Group Ltd,Daycare - Private Contractors Payment,19.16,0,VENDOR
03-10-2022,Adults & Health,Chosen Care Group Ltd,Daycare - Private Contractors Payment,28.74,0,VENDOR
03-10-2022,Adults & Health,Chosen Care Group Ltd,Home Care - Private Contractors Payment,301.77,0,VENDOR
03-10-2022,Adults & Health,Chosen Care Group Ltd,Daycare - Private Contractors Payment,19.16,0,VENDOR
03-10-2022,Adults & Health,Chosen Care Group Ltd,Daycare - Private Contractors Payment,76.64,0,VENDOR
03-10-2022,Adults & Health,Chosen Care Group Ltd,Home Care - Private Contractors Payment,340.09,0,VENDOR
03-10-2022,Adults & Health,Chosen Care Group Ltd,Home Care - Private Contractors Payment,119.75,0,VENDOR
03-10-2022,Adults & Health,Chosen Care Group Ltd,Daycare - Private Contractors Payment,38.32,0,VENDOR
03-10-2022,Children and Young People,Atherton Consultancy Ltd,Legal Fees,1560,0,COMMERCIAL SUPPLIER
03-10-2022,Adults & Health,Floron Residential Home,Residential Placements - Private Contractors Payment,602.48,0,COMMERCIAL SUPPLIER
03-10-2022,Adults & Health,Floron Residential Home,Residential Placements - Private Contractors Payment,750.68,0,COMMERCIAL SUPPLIER
03-10-2022,Adults & Health,Floron Residential Home,Residential Placements - Private Contractors Payment,639.53,0,COMMERCIAL SUPPLIER
03-10-2022,Adults & Health,Floron Residential Home,Residential Placements - Private Contractors Payment,639.53,0,COMMERCIAL SUPPLIER
03-10-2022,Adults & Health,Floron Residential Home,Residential Placements - Private Contractors Payment,602.48,0,COMMERCIAL SUPPLIER
03-10-2022,Adults & Health,Floron Residential Home,Residential Placements - Private Contractors Payment,639.53,0,COMMERCIAL SUPPLIER
03-10-2022,Adults & Health,Floron Residential Home,Residential Placements - Private Contractors Payment,639.53,0,COMMERCIAL SUPPLIER
03-10-2022,Adults & Health,Floron Residential Home,Residential Placements - Private Contractors Payment,639.53,0,COMMERCIAL SUPPLIER
03-10-2022,Adults & Health,Floron Residential Home,Residential Placements - Private Contractors Payment,602.48,0,COMMERCIAL SUPPLIER
03-10-2022,Adults & Health,Floron Residential Home,Residential Placements - Private Contractors Payment,639.53,0,COMMERCIAL SUPPLIER
03-10-2022,Adults & Health,Floron Residential Home,Residential Placements - Private Contractors Payment,639.53,0,COMMERCIAL SUPPLIER
03-10-2022,Adults & Health,Floron Residential Home,Residential Placements - Private Contractors Payment,639.53,0,COMMERCIAL SUPPLIER
03-10-2022,Adults & Health,Floron Residential Home,Residential Placements - Private Contractors Payment,602.48,0,COMMERCIAL SUPPLIER
03-10-2022,Adults & Health,Floron Residential Home,Residential Placements - Private Contractors Payment,602.48,0,COMMERCIAL SUPPLIER
03-10-2022,Adults & Health,Floron Residential Home,Residential Placements - Private Contractors Payment,639.53,0,COMMERCIAL SUPPLIER
03-10-2022,Adults & Health,Floron Residential Home,Residential Placements - Private Contractors Payment,639.53,0,COMMERCIAL SUPPLIER
03-10-2022,Adults & Health,Floron Residential Home,Residential Placements - Private Contractors Payment,639.53,0,COMMERCIAL SUPPLIER
03-10-2022,Adults & Health,Floron Residential Home,Residential Placements - Private Contractors Payment,602.48,0,COMMERCIAL SUPPLIER
03-10-2022,Adults & Health,Floron Residential Home,Residential Placements - Private Contractors Payment,602.48,0,COMMERCIAL SUPPLIER
03-10-2022,Adults & Health,Floron Residential Home,Residential Placements - Private Contractors Payment,639.53,0,COMMERCIAL SUPPLIER
03-10-2022,Adults & Health,Floron Residential Home,Residential Placements - Private Contractors Payment,639.53,0,COMMERCIAL SUPPLIER
03-10-2022,Adults & Health,Floron Residential Home,Residential Placements - Private Contractors Payment,602.48,0,COMMERCIAL SUPPLIER
03-10-2022,Adults & Health,Floron Residential Home,Residential Placements - Private Contractors Payment,639.53,0,COMMERCIAL SUPPLIER
03-10-2022,Adults & Health,Floron Residential Home,Residential Placements - Private Contractors Payment,639.53,0,COMMERCIAL SUPPLIER
03-10-2022,Adults & Health,Floron Residential Home,Residential Placements - Private Contractors Payment,639.53,0,COMMERCIAL SUPPLIER
03-10-2022,Adults & Health,Floron Residential Home,Residential Placements - Private Contractors Payment,639.53,0,COMMERCIAL SUPPLIER
03-10-2022,Adults & Health,Floron Residential Home,Residential Placements - Private Contractors Payment,602.48,0,COMMERCIAL SUPPLIER
03-10-2022,Adults & Health,Floron Residential Home,Residential Placements - Private Contractors Payment,639.53,0,COMMERCIAL SUPPLIER
03-10-2022,Adults & Health,Floron Residential Home,Residential Placements - Private Contractors Payment,639.53,0,COMMERCIAL SUPPLIER
03-10-2022,Adults & Health,Floron Residential Home,Residential Placements - Private Contractors Payment,639.53,0,COMMERCIAL SUPPLIER
03-10-2022,Adults & Health,Floron Residential Home,Residential Placements - Private Contractors Payment,602.48,0,COMMERCIAL SUPPLIER
03-10-2022,Adults & Health,Floron Residential Home,Residential Placements - Private Contractors Payment,602.48,0,COMMERCIAL SUPPLIER
03-10-2022,Environment and Sustainable Transport,Quality TM & Events Ltd,"Purchase - Equipment, Furniture And Materials",365,0,COMMERCIAL SUPPLIER
03-10-2022,Dedicated Schools Budget,Jigsaw Occupational Therapy Ltd,Occupational Health,604.8,0,COMMERCIAL SUPPLIER
03-10-2022,Dedicated Schools Budget,Jigsaw Occupational Therapy Ltd,Private Contractors Payment - Other,1227.2,0,COMMERCIAL SUPPLIER
03-10-2022,Dedicated Schools Budget,Jigsaw Occupational Therapy Ltd,Private Contractors Payment - Other,1782,0,COMMERCIAL SUPPLIER
03-10-2022,Children and Young People,Goldline Cars Ltd,Client Transport,1995,0,COMMERCIAL SUPPLIER
03-10-2022,Children and Young People,Goldline Cars Ltd,Client Transport,560,0,COMMERCIAL SUPPLIER
03-10-2022,Children and Young People,Goldline Cars Ltd,Client Transport,1480,0,COMMERCIAL SUPPLIER
03-10-2022,Children and Young People,Goldline Cars Ltd,Client Transport,1710,0,COMMERCIAL SUPPLIER
03-10-2022,Children and Young People,Goldline Cars Ltd,Client Transport,720,0,COMMERCIAL SUPPLIER
03-10-2022,Adults & Health,Eastway Care Ltd,Daycare - Private Contractors Payment,233.6,0,COMMERCIAL SUPPLIER
03-10-2022,Adults & Health,Eastway Care Ltd,Daycare - Private Contractors Payment,645.3,0,COMMERCIAL SUPPLIER
03-10-2022,Adults & Health,Eastway Care Ltd,Daycare - Private Contractors Payment,116.8,0,COMMERCIAL SUPPLIER
03-10-2022,Adults & Health,Eastway Care Ltd,Daycare - Private Contractors Payment,570.24,0,COMMERCIAL SUPPLIER
03-10-2022,Adults & Health,Eastway Care Ltd,Daycare - Private Contractors Payment,233.6,0,COMMERCIAL SUPPLIER
03-10-2022,Adults & Health,Eastway Care Ltd,Daycare - Private Contractors Payment,570.24,0,COMMERCIAL SUPPLIER
03-10-2022,Adults & Health,Eastway Care Ltd,Daycare - Private Contractors Payment,233.6,0,COMMERCIAL SUPPLIER
03-10-2022,Adults & Health,Eastway Care Ltd,Daycare - Private Contractors Payment,233.6,0,COMMERCIAL SUPPLIER
03-10-2022,Adults & Health,Eastway Care Ltd,Daycare - Private Contractors Payment,950.4,0,COMMERCIAL SUPPLIER
03-10-2022,Adults & Health,Eastway Care Ltd,Daycare - Private Contractors Payment,380.16,0,COMMERCIAL SUPPLIER
03-10-2022,Adults & Health,Eastway Care Ltd,Daycare - Private Contractors Payment,350.4,0,COMMERCIAL SUPPLIER
03-10-2022,Adults & Health,Eastway Care Ltd,Daycare - Private Contractors Payment,584,0,COMMERCIAL SUPPLIER
03-10-2022,Adults & Health,Eastway Care Ltd,Daycare - Private Contractors Payment,516.24,0,COMMERCIAL SUPPLIER
03-10-2022,Adults & Health,Eastway Care Ltd,Daycare - Private Contractors Payment,584,0,COMMERCIAL SUPPLIER
03-10-2022,Adults & Health,Eastway Care Ltd,Daycare - Private Contractors Payment,950.4,0,COMMERCIAL SUPPLIER
03-10-2022,Adults & Health,Eastway Care Ltd,Daycare - Private Contractors Payment,380.16,0,COMMERCIAL SUPPLIER
03-10-2022,Adults & Health,Eastway Care Ltd,Daycare - Private Contractors Payment,380.16,0,COMMERCIAL SUPPLIER
03-10-2022,Adults & Health,Eastway Care Ltd,Daycare - Private Contractors Payment,950.4,0,COMMERCIAL SUPPLIER
03-10-2022,Adults & Health,Eastway Care Ltd,Daycare - Private Contractors Payment,467.2,0,COMMERCIAL SUPPLIER
03-10-2022,Adults & Health,Eastway Care Ltd,Daycare - Private Contractors Payment,350.4,0,COMMERCIAL SUPPLIER
03-10-2022,Adults & Health,Eastway Care Ltd,Daycare - Private Contractors Payment,584,0,COMMERCIAL SUPPLIER
03-10-2022,Adults & Health,Eastway Care Ltd,Daycare - Private Contractors Payment,475.75,0,COMMERCIAL SUPPLIER
03-10-2022,Adults & Health,Eastway Care Ltd,Daycare - Private Contractors Payment,233.6,0,COMMERCIAL SUPPLIER
03-10-2022,Adults & Health,Eastway Care Ltd,Daycare - Private Contractors Payment,570.24,0,COMMERCIAL SUPPLIER
03-10-2022,Adults & Health,Eastway Care Ltd,Daycare - Private Contractors Payment,233.6,0,COMMERCIAL SUPPLIER
03-10-2022,Adults & Health,Eastway Care Ltd,Daycare - Private Contractors Payment,350.4,0,COMMERCIAL SUPPLIER
03-10-2022,Adults & Health,Eastway Care Ltd,Daycare - Private Contractors Payment,380.16,0,COMMERCIAL SUPPLIER
03-10-2022,Adults & Health,Eastway Care Ltd,Daycare - Private Contractors Payment,570.24,0,COMMERCIAL SUPPLIER
03-10-2022,Adults & Health,Eastway Care Ltd,Daycare - Private Contractors Payment,584,0,COMMERCIAL SUPPLIER
03-10-2022,Adults & Health,Eastway Care Ltd,Daycare - Private Contractors Payment,584,0,COMMERCIAL SUPPLIER
03-10-2022,Adults & Health,Eastway Care Ltd,Daycare - Private Contractors Payment,233.6,0,COMMERCIAL SUPPLIER
03-10-2022,Adults & Health,Eastway Care Ltd,Respite Care - Private Contractors Payment,190.08,0,COMMERCIAL SUPPLIER
03-10-2022,Adults & Health,Eastway Care Ltd,Daycare - Private Contractors Payment,950.4,0,COMMERCIAL SUPPLIER
03-10-2022,Adults & Health,Eastway Care Ltd,Daycare - Private Contractors Payment,350.4,0,COMMERCIAL SUPPLIER
03-10-2022,Adults & Health,Eastway Care Ltd,Daycare - Private Contractors Payment,584,0,COMMERCIAL SUPPLIER
03-10-2022,Adults & Health,Eastway Care Ltd,Daycare - Private Contractors Payment,516.24,0,COMMERCIAL SUPPLIER
03-10-2022,Adults & Health,Eastway Care Ltd,Daycare - Private Contractors Payment,584,0,COMMERCIAL SUPPLIER
03-10-2022,Adults & Health,Eastway Care Ltd,Daycare - Private Contractors Payment,380.16,0,COMMERCIAL SUPPLIER
03-10-2022,Adults & Health,Eastway Care Ltd,Daycare - Private Contractors Payment,380.16,0,COMMERCIAL SUPPLIER
03-10-2022,Adults & Health,Eastway Care Ltd,Daycare - Private Contractors Payment,233.6,0,COMMERCIAL SUPPLIER
03-10-2022,Adults & Health,Eastway Care Ltd,Daycare - Private Contractors Payment,950.4,0,COMMERCIAL SUPPLIER
03-10-2022,Adults & Health,Eastway Care Ltd,Daycare - Private Contractors Payment,467.2,0,COMMERCIAL SUPPLIER
03-10-2022,Adults & Health,Eastway Care Ltd,Daycare - Private Contractors Payment,129.06,0,COMMERCIAL SUPPLIER
03-10-2022,Adults & Health,Eastway Care Ltd,Daycare - Private Contractors Payment,232.16,0,COMMERCIAL SUPPLIER
03-10-2022,Adults & Health,Eastway Care Ltd,Daycare - Private Contractors Payment,475.75,0,COMMERCIAL SUPPLIER
03-10-2022,Adults & Health,Eastway Care Ltd,Daycare - Private Contractors Payment,233.6,0,COMMERCIAL SUPPLIER
03-10-2022,Adults & Health,Eastway Care Ltd,Daycare - Private Contractors Payment,387.18,0,COMMERCIAL SUPPLIER
03-10-2022,Adults & Health,Eastway Care Ltd,Daycare - Private Contractors Payment,584,0,COMMERCIAL SUPPLIER
03-10-2022,Adults & Health,Eastway Care Ltd,Daycare - Private Contractors Payment,116.8,0,COMMERCIAL SUPPLIER
03-10-2022,Adults & Health,Eastway Care Ltd,Daycare - Private Contractors Payment,233.6,0,COMMERCIAL SUPPLIER
03-10-2022,Adults & Health,Eastway Care Ltd,Daycare - Private Contractors Payment,570.24,0,COMMERCIAL SUPPLIER
03-10-2022,Adults & Health,Eastway Care Ltd,Daycare - Private Contractors Payment,570.24,0,COMMERCIAL SUPPLIER
03-10-2022,Adults & Health,Eastway Care Ltd,Daycare - Private Contractors Payment,950.4,0,COMMERCIAL SUPPLIER
03-10-2022,Adults & Health,Eastway Care Ltd,Daycare - Private Contractors Payment,380.16,0,COMMERCIAL SUPPLIER
03-10-2022,Adults & Health,Eastway Care Ltd,Daycare - Private Contractors Payment,233.6,0,COMMERCIAL SUPPLIER
03-10-2022,Adults & Health,Eastway Care Ltd,Daycare - Private Contractors Payment,233.6,0,COMMERCIAL SUPPLIER
03-10-2022,Adults & Health,Eastway Care Ltd,Daycare - Private Contractors Payment,350.4,0,COMMERCIAL SUPPLIER
03-10-2022,Adults & Health,Eastway Care Ltd,Daycare - Private Contractors Payment,584,0,COMMERCIAL SUPPLIER
03-10-2022,Adults & Health,Eastway Care Ltd,Daycare - Private Contractors Payment,516.24,0,COMMERCIAL SUPPLIER
03-10-2022,Adults & Health,Eastway Care Ltd,Daycare - Private Contractors Payment,380.16,0,COMMERCIAL SUPPLIER
03-10-2022,Adults & Health,Eastway Care Ltd,Daycare - Private Contractors Payment,584,0,COMMERCIAL SUPPLIER
03-10-2022,Adults & Health,Eastway Care Ltd,Daycare - Private Contractors Payment,950.4,0,COMMERCIAL SUPPLIER
03-10-2022,Adults & Health,Eastway Care Ltd,Daycare - Private Contractors Payment,233.6,0,COMMERCIAL SUPPLIER
03-10-2022,Adults & Health,Eastway Care Ltd,Daycare - Private Contractors Payment,350.4,0,COMMERCIAL SUPPLIER
03-10-2022,Adults & Health,Eastway Care Ltd,Daycare - Private Contractors Payment,584,0,COMMERCIAL SUPPLIER
03-10-2022,Adults & Health,Eastway Care Ltd,Daycare - Private Contractors Payment,380.16,0,COMMERCIAL SUPPLIER
03-10-2022,Adults & Health,Eastway Care Ltd,Daycare - Private Contractors Payment,233.6,0,COMMERCIAL SUPPLIER
03-10-2022,Adults & Health,Eastway Care Ltd,Daycare - Private Contractors Payment,467.2,0,COMMERCIAL SUPPLIER
03-10-2022,Adults & Health,Eastway Care Ltd,Daycare - Private Contractors Payment,950.4,0,COMMERCIAL SUPPLIER
03-10-2022,Adults & Health,Eastway Care Ltd,Daycare - Private Contractors Payment,950.4,0,COMMERCIAL SUPPLIER
03-10-2022,Adults & Health,Eastway Care Ltd,Daycare - Private Contractors Payment,950.4,0,COMMERCIAL SUPPLIER
03-10-2022,Adults & Health,Eastway Care Ltd,Daycare - Private Contractors Payment,233.6,0,COMMERCIAL SUPPLIER
03-10-2022,Adults & Health,Eastway Care Ltd,Daycare - Private Contractors Payment,233.6,0,COMMERCIAL SUPPLIER
03-10-2022,Adults & Health,Eastway Care Ltd,Daycare - Private Contractors Payment,584,0,COMMERCIAL SUPPLIER
03-10-2022,Adults & Health,Eastway Care Ltd,Respite Care - Private Contractors Payment,190.08,0,COMMERCIAL SUPPLIER
03-10-2022,Adults & Health,Eastway Care Ltd,Daycare - Private Contractors Payment,950.4,0,COMMERCIAL SUPPLIER
03-10-2022,Adults & Health,Eastway Care Ltd,Daycare - Private Contractors Payment,190.08,0,COMMERCIAL SUPPLIER
03-10-2022,Adults & Health,Eastway Care Ltd,Daycare - Private Contractors Payment,233.6,0,COMMERCIAL SUPPLIER
03-10-2022,Adults & Health,Eastway Care Ltd,Daycare - Private Contractors Payment,570.24,0,COMMERCIAL SUPPLIER
03-10-2022,Adults & Health,Eastway Care Ltd,Daycare - Private Contractors Payment,129.06,0,COMMERCIAL SUPPLIER
03-10-2022,Adults & Health,Eastway Care Ltd,Daycare - Private Contractors Payment,475.75,0,COMMERCIAL SUPPLIER
03-10-2022,Adults & Health,Eastway Care Ltd,Daycare - Private Contractors Payment,232.16,0,COMMERCIAL SUPPLIER
03-10-2022,Adults & Health,Eastway Care Ltd,Daycare - Private Contractors Payment,387.18,0,COMMERCIAL SUPPLIER
03-10-2022,Adults & Health,Eastway Care Ltd,Daycare - Private Contractors Payment,584,0,COMMERCIAL SUPPLIER
03-10-2022,Adults & Health,Eastway Care Ltd,Daycare - Private Contractors Payment,116.8,0,COMMERCIAL SUPPLIER
03-10-2022,Adults & Health,Eastway Care Ltd,Daycare - Private Contractors Payment,233.6,0,COMMERCIAL SUPPLIER
03-10-2022,Adults & Health,Eastway Care Ltd,Daycare - Private Contractors Payment,350.4,0,COMMERCIAL SUPPLIER
03-10-2022,Adults & Health,Eastway Care Ltd,Daycare - Private Contractors Payment,190.08,0,COMMERCIAL SUPPLIER
03-10-2022,Adults & Health,Eastway Care Ltd,Daycare - Private Contractors Payment,950.4,0,COMMERCIAL SUPPLIER
03-10-2022,Adults & Health,Eastway Care Ltd,Daycare - Private Contractors Payment,584,0,COMMERCIAL SUPPLIER
03-10-2022,Adults & Health,Eastway Care Ltd,Daycare - Private Contractors Payment,237.92,0,COMMERCIAL SUPPLIER
03-10-2022,Adults & Health,Eastway Care Ltd,Daycare - Private Contractors Payment,950.4,0,COMMERCIAL SUPPLIER
03-10-2022,Adults & Health,Eastway Care Ltd,Daycare - Private Contractors Payment,584,0,COMMERCIAL SUPPLIER
03-10-2022,Adults & Health,Eastway Care Ltd,Daycare - Private Contractors Payment,233.6,0,COMMERCIAL SUPPLIER
03-10-2022,Adults & Health,Eastway Care Ltd,Daycare - Private Contractors Payment,233.6,0,COMMERCIAL SUPPLIER
03-10-2022,Adults & Health,Eastway Care Ltd,Daycare - Private Contractors Payment,387.18,0,COMMERCIAL SUPPLIER
03-10-2022,Adults & Health,Eastway Care Ltd,Daycare - Private Contractors Payment,516.24,0,COMMERCIAL SUPPLIER
03-10-2022,Adults & Health,Eastway Care Ltd,Daycare - Private Contractors Payment,584,0,COMMERCIAL SUPPLIER
03-10-2022,Adults & Health,Eastway Care Ltd,Daycare - Private Contractors Payment,233.6,0,COMMERCIAL SUPPLIER
03-10-2022,Adults & Health,Eastway Care Ltd,Daycare - Private Contractors Payment,950.4,0,COMMERCIAL SUPPLIER
03-10-2022,Adults & Health,Eastway Care Ltd,Daycare - Private Contractors Payment,645.3,0,COMMERCIAL SUPPLIER
03-10-2022,Adults & Health,Eastway Care Ltd,Daycare - Private Contractors Payment,129.06,0,COMMERCIAL SUPPLIER
03-10-2022,Adults & Health,Eastway Care Ltd,Daycare - Private Contractors Payment,950.4,0,COMMERCIAL SUPPLIER
03-10-2022,Adults & Health,Eastway Care Ltd,Daycare - Private Contractors Payment,380.16,0,COMMERCIAL SUPPLIER
03-10-2022,Adults & Health,Eastway Care Ltd,Daycare - Private Contractors Payment,380.16,0,COMMERCIAL SUPPLIER
03-10-2022,Adults & Health,Eastway Care Ltd,Daycare - Private Contractors Payment,950.4,0,COMMERCIAL SUPPLIER
03-10-2022,Adults & Health,Eastway Care Ltd,Daycare - Private Contractors Payment,233.6,0,COMMERCIAL SUPPLIER
03-10-2022,Adults & Health,Eastway Care Ltd,Daycare - Private Contractors Payment,350.4,0,COMMERCIAL SUPPLIER
03-10-2022,Adults & Health,Eastway Care Ltd,Daycare - Private Contractors Payment,584,0,COMMERCIAL SUPPLIER
03-10-2022,Adults & Health,Eastway Care Ltd,Daycare - Private Contractors Payment,950.4,0,COMMERCIAL SUPPLIER
03-10-2022,Adults & Health,Eastway Care Ltd,Daycare - Private Contractors Payment,584,0,COMMERCIAL SUPPLIER
03-10-2022,Adults & Health,Eastway Care Ltd,Respite Care - Private Contractors Payment,190.08,0,COMMERCIAL SUPPLIER
03-10-2022,Adults & Health,Eastway Care Ltd,Daycare - Private Contractors Payment,233.6,0,COMMERCIAL SUPPLIER
03-10-2022,Adults & Health,Eastway Care Ltd,Daycare - Private Contractors Payment,950.4,0,COMMERCIAL SUPPLIER
03-10-2022,Adults & Health,Eastway Care Ltd,Daycare - Private Contractors Payment,190.08,0,COMMERCIAL SUPPLIER
03-10-2022,Adults & Health,Eastway Care Ltd,Daycare - Private Contractors Payment,570.24,0,COMMERCIAL SUPPLIER
03-10-2022,Adults & Health,Eastway Care Ltd,Daycare - Private Contractors Payment,645.3,0,COMMERCIAL SUPPLIER
03-10-2022,Adults & Health,Eastway Care Ltd,Daycare - Private Contractors Payment,467.2,0,COMMERCIAL SUPPLIER
03-10-2022,Adults & Health,Eastway Care Ltd,Daycare - Private Contractors Payment,584,0,COMMERCIAL SUPPLIER
03-10-2022,Adults & Health,Eastway Care Ltd,Respite Care - Private Contractors Payment,190.08,0,COMMERCIAL SUPPLIER
03-10-2022,Adults & Health,Eastway Care Ltd,Daycare - Private Contractors Payment,950.4,0,COMMERCIAL SUPPLIER
03-10-2022,Adults & Health,Eastway Care Ltd,Daycare - Private Contractors Payment,190.08,0,COMMERCIAL SUPPLIER
03-10-2022,Adults & Health,Eastway Care Ltd,Daycare - Private Contractors Payment,380.16,0,COMMERCIAL SUPPLIER
03-10-2022,Adults & Health,Eastway Care Ltd,Daycare - Private Contractors Payment,233.6,0,COMMERCIAL SUPPLIER
03-10-2022,Adults & Health,Eastway Care Ltd,Daycare - Private Contractors Payment,645.3,0,COMMERCIAL SUPPLIER
03-10-2022,Adults & Health,Eastway Care Ltd,Daycare - Private Contractors Payment,129.06,0,COMMERCIAL SUPPLIER
03-10-2022,Adults & Health,Eastway Care Ltd,Daycare - Private Contractors Payment,232.16,0,COMMERCIAL SUPPLIER
03-10-2022,Adults & Health,Eastway Care Ltd,Daycare - Private Contractors Payment,475.75,0,COMMERCIAL SUPPLIER
03-10-2022,Adults & Health,Eastway Care Ltd,Daycare - Private Contractors Payment,387.18,0,COMMERCIAL SUPPLIER
03-10-2022,Adults & Health,Eastway Care Ltd,Daycare - Private Contractors Payment,584,0,COMMERCIAL SUPPLIER
03-10-2022,Adults & Health,Eastway Care Ltd,Daycare - Private Contractors Payment,233.6,0,COMMERCIAL SUPPLIER
03-10-2022,Adults & Health,Eastway Care Ltd,Daycare - Private Contractors Payment,570.24,0,COMMERCIAL SUPPLIER
03-10-2022,Adults & Health,Eastway Care Ltd,Daycare - Private Contractors Payment,116.8,0,COMMERCIAL SUPPLIER
03-10-2022,Adults & Health,Eastway Care Ltd,Daycare - Private Contractors Payment,233.6,0,COMMERCIAL SUPPLIER
03-10-2022,Adults & Health,Eastway Care Ltd,Daycare - Private Contractors Payment,570.24,0,COMMERCIAL SUPPLIER
03-10-2022,Adults & Health,Eastway Care Ltd,Daycare - Private Contractors Payment,380.16,0,COMMERCIAL SUPPLIER
03-10-2022,Adults & Health,Eastway Care Ltd,Daycare - Private Contractors Payment,233.6,0,COMMERCIAL SUPPLIER
03-10-2022,Adults & Health,Eastway Care Ltd,Daycare - Private Contractors Payment,233.6,0,COMMERCIAL SUPPLIER
03-10-2022,Adults & Health,Eastway Care Ltd,Daycare - Private Contractors Payment,950.4,0,COMMERCIAL SUPPLIER
03-10-2022,Adults & Health,Eastway Care Ltd,Daycare - Private Contractors Payment,516.24,0,COMMERCIAL SUPPLIER
03-10-2022,Adults & Health,Eastway Care Ltd,Daycare - Private Contractors Payment,320.08,0,COMMERCIAL SUPPLIER
03-10-2022,Adults & Health,Eastway Care Ltd,Daycare - Private Contractors Payment,516.24,0,COMMERCIAL SUPPLIER
03-10-2022,Adults & Health,Eastway Care Ltd,Daycare - Private Contractors Payment,516.24,0,COMMERCIAL SUPPLIER
03-10-2022,Adults & Health,Eastway Care Ltd,Daycare - Private Contractors Payment,570.24,0,COMMERCIAL SUPPLIER
03-10-2022,Adults & Health,Eastway Care Ltd,Daycare - Private Contractors Payment,2.16,0,COMMERCIAL SUPPLIER
03-10-2022,Adults & Health,Eastway Care Ltd,Daycare - Private Contractors Payment,233.6,0,COMMERCIAL SUPPLIER
03-10-2022,Adults & Health,Eastway Care Ltd,Daycare - Private Contractors Payment,233.6,0,COMMERCIAL SUPPLIER
03-10-2022,Adults & Health,Eastway Care Ltd,Daycare - Private Contractors Payment,233.6,0,COMMERCIAL SUPPLIER
03-10-2022,Adults & Health,Eastway Care Ltd,Daycare - Private Contractors Payment,233.6,0,COMMERCIAL SUPPLIER
03-10-2022,Adults & Health,Eastway Care Ltd,Daycare - Private Contractors Payment,570.24,0,COMMERCIAL SUPPLIER
03-10-2022,Adults & Health,Eastway Care Ltd,Daycare - Private Contractors Payment,570.24,0,COMMERCIAL SUPPLIER
03-10-2022,Adults & Health,Eastway Care Ltd,Daycare - Private Contractors Payment,570.24,0,COMMERCIAL SUPPLIER
03-10-2022,Adults & Health,Eastway Care Ltd,Daycare - Private Contractors Payment,570.24,0,COMMERCIAL SUPPLIER
03-10-2022,Adults & Health,Eastway Care Ltd,Daycare - Private Contractors Payment,954,0,COMMERCIAL SUPPLIER
03-10-2022,Adults & Health,Eastway Care Ltd,Daycare - Private Contractors Payment,954,0,COMMERCIAL SUPPLIER
03-10-2022,Adults & Health,Eastway Care Ltd,Daycare - Private Contractors Payment,954,0,COMMERCIAL SUPPLIER
03-10-2022,Adults & Health,Eastway Care Ltd,Daycare - Private Contractors Payment,939.6,0,COMMERCIAL SUPPLIER
03-10-2022,Adults & Health,Eastway Care Ltd,Daycare - Private Contractors Payment,570.9,0,COMMERCIAL SUPPLIER
03-10-2022,Adults & Health,Eastway Care Ltd,Daycare - Private Contractors Payment,570.9,0,COMMERCIAL SUPPLIER
03-10-2022,Adults & Health,Eastway Care Ltd,Daycare - Private Contractors Payment,568.26,0,COMMERCIAL SUPPLIER
03-10-2022,Adults & Health,Eastway Care Ltd,Daycare - Private Contractors Payment,570.9,0,COMMERCIAL SUPPLIER
03-10-2022,RMS,GB Macks Skips,Refuse Collection,1251.8,0,COMMERCIAL SUPPLIER
03-10-2022,RMS,Master Locking Systems Ltd,Building Alterations And Materials,55.94,0,COMMERCIAL SUPPLIER
03-10-2022,RMS,Master Locking Systems Ltd,Building Alterations And Materials,333.44,0,COMMERCIAL SUPPLIER
03-10-2022,Adults & Health,Avenue Property Construction Limited,Private Contractors Payment - Other,4311.75,0,CIS
03-10-2022,RMS,A M Forktrucks Ltd,Purchase Of Vehicles Related Costs,810.33,0,COMMERCIAL SUPPLIER
03-10-2022,RMS,A M Forktrucks Ltd,Purchase Of Vehicles Related Costs,433.33,0,COMMERCIAL SUPPLIER
03-10-2022,Housing Revenue Account,Mindme,"Purchase - Equipment, Furniture And Materials",1100,0,COMMERCIAL SUPPLIER
03-10-2022,Housing Revenue Account,Gas Contract Services LTD,Cyclical/Planned Maintenance - Mechanical And Electrical,2509.5,0,LOCAL AUTHORITY SERVICES
03-10-2022,Adults & Health,Forrest Enterprises Ltd,Staff Development And Training,1100,0,COMMERCIAL SUPPLIER
03-10-2022,Environment and Sustainable Transport,Ford Motor Company Ltd t/a PartsPlus,Highway Services,0.01,0,COMMERCIAL SUPPLIER
03-10-2022,Environment and Sustainable Transport,Ford Motor Company Ltd t/a PartsPlus,Highway Services,15.28,0,COMMERCIAL SUPPLIER
03-10-2022,Environment and Sustainable Transport,Ford Motor Company Ltd t/a PartsPlus,Highway Services,5.21,0,COMMERCIAL SUPPLIER
03-10-2022,Environment and Sustainable Transport,Ford Motor Company Ltd t/a PartsPlus,Highway Services,17.44,0,COMMERCIAL SUPPLIER
03-10-2022,Environment and Sustainable Transport,Ford Motor Company Ltd t/a PartsPlus,Highway Services,13.01,0,COMMERCIAL SUPPLIER
03-10-2022,Environment and Sustainable Transport,Ford Motor Company Ltd t/a PartsPlus,Highway Services,5.7,0,COMMERCIAL SUPPLIER
03-10-2022,Environment and Sustainable Transport,Ford Motor Company Ltd t/a PartsPlus,Highway Services,48.4,0,COMMERCIAL SUPPLIER
03-10-2022,Environment and Sustainable Transport,Ford Motor Company Ltd t/a PartsPlus,Highway Services,22.5,0,COMMERCIAL SUPPLIER
03-10-2022,Environment and Sustainable Transport,Ford Motor Company Ltd t/a PartsPlus,Highway Services,22.97,0,COMMERCIAL SUPPLIER
03-10-2022,Environment and Sustainable Transport,Ford Motor Company Ltd t/a PartsPlus,Highway Services,22.97,0,COMMERCIAL SUPPLIER
03-10-2022,Environment and Sustainable Transport,Ford Motor Company Ltd t/a PartsPlus,Highway Services,61.5,0,COMMERCIAL SUPPLIER
03-10-2022,Environment and Sustainable Transport,Ford Motor Company Ltd t/a PartsPlus,Highway Services,0.01,0,COMMERCIAL SUPPLIER
03-10-2022,Environment and Sustainable Transport,Ford Motor Company Ltd t/a PartsPlus,Highway Services,29.24,0,COMMERCIAL SUPPLIER
03-10-2022,Environment and Sustainable Transport,Ford Motor Company Ltd t/a PartsPlus,Highway Services,19.94,0,COMMERCIAL SUPPLIER
03-10-2022,Environment and Sustainable Transport,Ford Motor Company Ltd t/a PartsPlus,Highway Services,24.21,0,COMMERCIAL SUPPLIER
03-10-2022,Environment and Sustainable Transport,Ford Motor Company Ltd t/a PartsPlus,Highway Services,62.1,0,COMMERCIAL SUPPLIER
03-10-2022,Environment and Sustainable Transport,Ford Motor Company Ltd t/a PartsPlus,Highway Services,0.01,0,COMMERCIAL SUPPLIER
03-10-2022,Environment and Sustainable Transport,Ford Motor Company Ltd t/a PartsPlus,Highway Services,61.5,0,COMMERCIAL SUPPLIER
03-10-2022,Environment and Sustainable Transport,Ford Motor Company Ltd t/a PartsPlus,Highway Services,7.39,0,COMMERCIAL SUPPLIER
03-10-2022,Environment and Sustainable Transport,Ford Motor Company Ltd t/a PartsPlus,Highway Services,28.3,0,COMMERCIAL SUPPLIER
03-10-2022,Environment and Sustainable Transport,Ford Motor Company Ltd t/a PartsPlus,Highway Services,26.07,0,COMMERCIAL SUPPLIER
03-10-2022,Environment and Sustainable Transport,Ford Motor Company Ltd t/a PartsPlus,Highway Services,304.38,0,COMMERCIAL SUPPLIER
03-10-2022,Adults & Health,Futures for Shared Lives Ltd,Adult Placement Scheme - Private Contractors Payment,536.27,0,NON COMMERCIAL SUPPLIER
03-10-2022,Adults & Health,Futures for Shared Lives Ltd,Adult Placement Scheme - Private Contractors Payment,536.27,0,NON COMMERCIAL SUPPLIER
03-10-2022,Adults & Health,Futures for Shared Lives Ltd,Adult Placement Scheme - Private Contractors Payment,536.27,0,NON COMMERCIAL SUPPLIER
03-10-2022,Adults & Health,Futures for Shared Lives Ltd,Adult Placement Scheme - Private Contractors Payment,689.49,0,NON COMMERCIAL SUPPLIER
03-10-2022,oneSource - Non Shared,Financial Data Management PLC,Printing,2370.25,0,COMMERCIAL SUPPLIER
03-10-2022,Adults & Health,Rhythmic Care UK Ltd,Private Contractors Payment - Other,2376.44,0,COMMERCIAL SUPPLIER
03-10-2022,Adults & Health,Rhythmic Care UK Ltd,Private Contractors Payment - Other,2682.4,0,COMMERCIAL SUPPLIER
03-10-2022,Adults & Health,Rhythmic Care UK Ltd,Private Contractors Payment - Other,4560.08,0,COMMERCIAL SUPPLIER
03-10-2022,Children and Young People,Multi Horizons Ltd,Contact Costs (Placements),490,0,
03-10-2022,Children and Young People,Multi Horizons Ltd,Contact Costs (Placements),440,0,
03-10-2022,RMS,Inprova Group,Consultancy Fees,2250,0,VENDOR
03-10-2022,Children and Young People,Lextox,Legal Fees,1465,0,COMMERCIAL SUPPLIER
03-10-2022,Children and Young People,Lextox,Legal Fees,1201,0,COMMERCIAL SUPPLIER
03-10-2022,Children and Young People,The Kennedy and Elliott Partnership LLP,Residential Placements - Private Contractors Payment,4000,0,
03-10-2022,Children and Young People,The Kennedy and Elliott Partnership LLP,Residential Placements - Private Contractors Payment,1600,0,
03-10-2022,Children and Young People,The Kennedy and Elliott Partnership LLP,Residential Placements - Private Contractors Payment,1600,0,
03-10-2022,Children and Young People,The Kennedy and Elliott Partnership LLP,Residential Placements - Private Contractors Payment,4000,0,
03-10-2022,Children and Young People,The Kennedy and Elliott Partnership LLP,Residential Placements - Private Contractors Payment,4000,0,
03-10-2022,Children and Young People,The Kennedy and Elliott Partnership LLP,Residential Placements - Private Contractors Payment,1600,0,
03-10-2022,Children and Young People,The Kennedy and Elliott Partnership LLP,Residential Placements - Private Contractors Payment,1707.1,0,
03-10-2022,Children and Young People,The Kennedy and Elliott Partnership LLP,Residential Placements - Private Contractors Payment,4000,0,
03-10-2022,Adults & Health,Designserve Architectural And Project Management Services Ltd,Private Contractors Payment - Other,7875.78,0,COMMERCIAL SUPPLIER
03-10-2022,Environment and Sustainable Transport,Fast Fuel Services,Highway Services,500,0,COMMERCIAL SUPPLIER
03-10-2022,Environment and Sustainable Transport,Fast Fuel Services,Highway Services,250,0,COMMERCIAL SUPPLIER
03-10-2022,Adults & Health,Independent Living Alternatives,Home Care - Private Contractors Payment,2535.12,0,NON COMMERCIAL SUPPLIER
03-10-2022,Adults & Health,Independent Living Alternatives,Home Care - Private Contractors Payment,658.56,0,NON COMMERCIAL SUPPLIER
03-10-2022,Adults & Health,Independent Living Alternatives,Home Care - Private Contractors Payment,2535.12,0,NON COMMERCIAL SUPPLIER
03-10-2022,Adults & Health,Independent Living Alternatives,Home Care - Private Contractors Payment,2535.12,0,NON COMMERCIAL SUPPLIER
03-10-2022,Adults & Health,Independent Living Alternatives,Home Care - Private Contractors Payment,2535.12,0,NON COMMERCIAL SUPPLIER
03-10-2022,Marketing,London Councils,Private Contractors Payment - Other,65786,0,CENTRAL/GOVERNMENT DEPARTMENTS
03-10-2022,Environment and Sustainable Transport,Sparshatt Truck & Van Ltd,Highway Services,36.04,0,COMMERCIAL SUPPLIER
03-10-2022,Environment and Sustainable Transport,Sparshatt Truck & Van Ltd,Highway Services,457.56,0,COMMERCIAL SUPPLIER
03-10-2022,Environment and Sustainable Transport,Sparshatt Truck & Van Ltd,Highway Services,102.9,0,COMMERCIAL SUPPLIER
03-10-2022,Environment and Sustainable Transport,Sparshatt Truck & Van Ltd,Highway Services,0.01,0,COMMERCIAL SUPPLIER
03-10-2022,Environment and Sustainable Transport,Sparshatt Truck & Van Ltd,Highway Services,12.87,0,COMMERCIAL SUPPLIER
03-10-2022,Environment and Sustainable Transport,Sparshatt Truck & Van Ltd,Highway Services,23.31,0,COMMERCIAL SUPPLIER
03-10-2022,Environment and Sustainable Transport,Sparshatt Truck & Van Ltd,Highway Services,200.08,0,COMMERCIAL SUPPLIER
03-10-2022,Environment and Sustainable Transport,Sparshatt Truck & Van Ltd,Highway Services,30.74,0,COMMERCIAL SUPPLIER
03-10-2022,Environment and Sustainable Transport,Sparshatt Truck & Van Ltd,Highway Services,12.67,0,COMMERCIAL SUPPLIER
03-10-2022,Environment and Sustainable Transport,Sparshatt Truck & Van Ltd,Highway Services,88,0,COMMERCIAL SUPPLIER
03-10-2022,Environment and Sustainable Transport,Sparshatt Truck & Van Ltd,Highway Services,39.87,0,COMMERCIAL SUPPLIER
03-10-2022,Environment and Sustainable Transport,Sparshatt Truck & Van Ltd,Highway Services,135.5,0,COMMERCIAL SUPPLIER
03-10-2022,Environment and Sustainable Transport,Sparshatt Truck & Van Ltd,Highway Services,8.56,0,COMMERCIAL SUPPLIER
03-10-2022,RMS,Travis Perkins Trading Company Ltd,Building Alterations And Materials,389,0,COMMERCIAL SUPPLIER
03-10-2022,RMS,Travis Perkins Trading Company Ltd,Building Alterations And Materials,6699,0,COMMERCIAL SUPPLIER
03-10-2022,RMS,Travis Perkins Trading Company Ltd,Building Alterations And Materials,225,0,COMMERCIAL SUPPLIER
03-10-2022,RMS,Travis Perkins Trading Company Ltd,Building Alterations And Materials,258.5,0,COMMERCIAL SUPPLIER
03-10-2022,RMS,Travis Perkins Trading Company Ltd,Building Alterations And Materials,852.27,0,COMMERCIAL SUPPLIER
03-10-2022,oneSource - Non Shared,County Shutters & Doors Ltd,Security Services (Excluding Premises),1207,0,COMMERCIAL SUPPLIER
03-10-2022,Adults & Health,Cornerstone Care Services,Home Care - Private Contractors Payment,265.65,0,COMMERCIAL SUPPLIER
03-10-2022,Adults & Health,Cornerstone Care Services,Home Care - Private Contractors Payment,265.65,0,COMMERCIAL SUPPLIER
03-10-2022,Adults & Health,Cornerstone Care Services,Home Care - Private Contractors Payment,265.65,0,COMMERCIAL SUPPLIER
03-10-2022,Adults & Health,Cornerstone Care Services,Home Care - Private Contractors Payment,265.65,0,COMMERCIAL SUPPLIER
03-10-2022,Adults & Health,Cornerstone Care Services,Home Care - Private Contractors Payment,289.8,0,COMMERCIAL SUPPLIER
03-10-2022,Adults & Health,Cornerstone Care Services,Home Care - Private Contractors Payment,289.8,0,COMMERCIAL SUPPLIER
03-10-2022,Adults & Health,Cornerstone Care Services,Home Care - Private Contractors Payment,289.8,0,COMMERCIAL SUPPLIER
03-10-2022,Adults & Health,Cornerstone Care Services,Home Care - Private Contractors Payment,289.8,0,COMMERCIAL SUPPLIER
03-10-2022,Adults & Health,Cornerstone Care Services,Home Care - Private Contractors Payment,248.4,0,COMMERCIAL SUPPLIER
03-10-2022,Adults & Health,Cornerstone Care Services,Home Care - Private Contractors Payment,386.4,0,COMMERCIAL SUPPLIER
03-10-2022,Adults & Health,Cornerstone Care Services,Home Care - Private Contractors Payment,386.4,0,COMMERCIAL SUPPLIER
03-10-2022,Adults & Health,Cornerstone Care Services,Home Care - Private Contractors Payment,72.45,0,COMMERCIAL SUPPLIER
03-10-2022,Adults & Health,Cornerstone Care Services,Home Care - Private Contractors Payment,93.15,0,COMMERCIAL SUPPLIER
03-10-2022,Adults & Health,Cornerstone Care Services,Home Care - Private Contractors Payment,86.25,0,COMMERCIAL SUPPLIER
03-10-2022,Adults & Health,Cornerstone Care Services,Home Care - Private Contractors Payment,93.15,0,COMMERCIAL SUPPLIER
03-10-2022,Adults & Health,Cornerstone Care Services,Home Care - Private Contractors Payment,193.2,0,COMMERCIAL SUPPLIER
03-10-2022,Adults & Health,Cornerstone Care Services,Home Care - Private Contractors Payment,193.2,0,COMMERCIAL SUPPLIER
03-10-2022,Adults & Health,Cornerstone Care Services,Home Care - Private Contractors Payment,193.2,0,COMMERCIAL SUPPLIER
03-10-2022,Adults & Health,Cornerstone Care Services,Home Care - Private Contractors Payment,193.2,0,COMMERCIAL SUPPLIER
03-10-2022,Environment and Sustainable Transport,Harris Commercial Repairs Ltd,Highway Services,392.36,0,VENDOR
03-10-2022,Adults & Health,Cornerstone Care Services,Home Care - Private Contractors Payment,193.2,0,COMMERCIAL SUPPLIER
03-10-2022,Adults & Health,Cornerstone Care Services,Home Care - Private Contractors Payment,193.2,0,COMMERCIAL SUPPLIER
03-10-2022,Adults & Health,Cornerstone Care Services,Home Care - Private Contractors Payment,151.8,0,COMMERCIAL SUPPLIER
03-10-2022,Adults & Health,Cornerstone Care Services,Home Care - Private Contractors Payment,410.55,0,COMMERCIAL SUPPLIER
03-10-2022,Adults & Health,Cornerstone Care Services,Daycare - Private Contractors Payment,55.2,0,COMMERCIAL SUPPLIER
03-10-2022,Adults & Health,Cornerstone Care Services,Daycare - Private Contractors Payment,55.2,0,COMMERCIAL SUPPLIER
03-10-2022,Adults & Health,Cornerstone Care Services,Daycare - Private Contractors Payment,55.2,0,COMMERCIAL SUPPLIER
03-10-2022,Adults & Health,Cornerstone Care Services,Home Care - Private Contractors Payment,410.55,0,COMMERCIAL SUPPLIER
03-10-2022,Adults & Health,Cornerstone Care Services,Home Care - Private Contractors Payment,410.55,0,COMMERCIAL SUPPLIER
03-10-2022,Adults & Health,Cornerstone Care Services,Daycare - Private Contractors Payment,55.2,0,COMMERCIAL SUPPLIER
03-10-2022,Adults & Health,Cornerstone Care Services,Home Care - Private Contractors Payment,410.55,0,COMMERCIAL SUPPLIER
03-10-2022,Adults & Health,Cornerstone Care Services,Home Care - Private Contractors Payment,434.7,0,COMMERCIAL SUPPLIER
03-10-2022,Adults & Health,Cornerstone Care Services,Home Care - Private Contractors Payment,434.7,0,COMMERCIAL SUPPLIER
03-10-2022,Adults & Health,Cornerstone Care Services,Home Care - Private Contractors Payment,434.7,0,COMMERCIAL SUPPLIER
03-10-2022,Adults & Health,Cornerstone Care Services,Home Care - Private Contractors Payment,434.7,0,COMMERCIAL SUPPLIER
03-10-2022,Adults & Health,Cornerstone Care Services,Home Care - Private Contractors Payment,169.05,0,COMMERCIAL SUPPLIER
03-10-2022,Adults & Health,Cornerstone Care Services,Home Care - Private Contractors Payment,169.05,0,COMMERCIAL SUPPLIER
03-10-2022,Adults & Health,Cornerstone Care Services,Home Care - Private Contractors Payment,169.05,0,COMMERCIAL SUPPLIER
03-10-2022,Adults & Health,Cornerstone Care Services,Home Care - Private Contractors Payment,169.05,0,COMMERCIAL SUPPLIER
03-10-2022,Adults & Health,Cornerstone Care Services,Daycare - Private Contractors Payment,27.6,0,COMMERCIAL SUPPLIER
03-10-2022,Adults & Health,Cornerstone Care Services,Home Care - Private Contractors Payment,455.4,0,COMMERCIAL SUPPLIER
03-10-2022,Adults & Health,Cornerstone Care Services,Home Care - Private Contractors Payment,455.4,0,COMMERCIAL SUPPLIER
03-10-2022,Adults & Health,Cornerstone Care Services,Daycare - Private Contractors Payment,27.6,0,COMMERCIAL SUPPLIER
03-10-2022,Adults & Health,Cornerstone Care Services,Home Care - Private Contractors Payment,455.4,0,COMMERCIAL SUPPLIER
03-10-2022,Adults & Health,Cornerstone Care Services,Daycare - Private Contractors Payment,27.6,0,COMMERCIAL SUPPLIER
03-10-2022,Adults & Health,Cornerstone Care Services,Home Care - Private Contractors Payment,455.4,0,COMMERCIAL SUPPLIER
03-10-2022,Adults & Health,Cornerstone Care Services,Daycare - Private Contractors Payment,27.6,0,COMMERCIAL SUPPLIER
03-10-2022,Adults & Health,Cornerstone Care Services,Home Care - Private Contractors Payment,496.8,0,COMMERCIAL SUPPLIER
03-10-2022,Adults & Health,Cornerstone Care Services,Home Care - Private Contractors Payment,496.8,0,COMMERCIAL SUPPLIER
03-10-2022,Adults & Health,Cornerstone Care Services,Home Care - Private Contractors Payment,496.8,0,COMMERCIAL SUPPLIER
03-10-2022,Adults & Health,Cornerstone Care Services,Home Care - Private Contractors Payment,496.8,0,COMMERCIAL SUPPLIER
03-10-2022,Adults & Health,Cornerstone Care Services,Home Care - Private Contractors Payment,41.4,0,COMMERCIAL SUPPLIER
03-10-2022,Adults & Health,Cornerstone Care Services,Home Care - Private Contractors Payment,545.1,0,COMMERCIAL SUPPLIER
03-10-2022,Adults & Health,Cornerstone Care Services,Home Care - Private Contractors Payment,41.4,0,COMMERCIAL SUPPLIER
03-10-2022,Adults & Health,Cornerstone Care Services,Home Care - Private Contractors Payment,531.3,0,COMMERCIAL SUPPLIER
03-10-2022,Adults & Health,Cornerstone Care Services,Home Care - Private Contractors Payment,531.3,0,COMMERCIAL SUPPLIER
03-10-2022,Adults & Health,Cornerstone Care Services,Home Care - Private Contractors Payment,41.4,0,COMMERCIAL SUPPLIER
03-10-2022,Adults & Health,Cornerstone Care Services,Home Care - Private Contractors Payment,531.3,0,COMMERCIAL SUPPLIER
03-10-2022,Adults & Health,Cornerstone Care Services,Home Care - Private Contractors Payment,41.4,0,COMMERCIAL SUPPLIER
03-10-2022,Adults & Health,Cornerstone Care Services,Home Care - Private Contractors Payment,531.3,0,COMMERCIAL SUPPLIER
03-10-2022,Adults & Health,Cornerstone Care Services,Home Care - Private Contractors Payment,489.9,0,COMMERCIAL SUPPLIER
03-10-2022,Adults & Health,Cornerstone Care Services,Home Care - Private Contractors Payment,531.3,0,COMMERCIAL SUPPLIER
03-10-2022,Adults & Health,Cornerstone Care Services,Home Care - Private Contractors Payment,531.3,0,COMMERCIAL SUPPLIER
03-10-2022,Adults & Health,Cornerstone Care Services,Home Care - Private Contractors Payment,265.65,0,COMMERCIAL SUPPLIER
03-10-2022,Adults & Health,Cornerstone Care Services,Home Care - Private Contractors Payment,265.65,0,COMMERCIAL SUPPLIER
03-10-2022,Adults & Health,Cornerstone Care Services,Home Care - Private Contractors Payment,265.65,0,COMMERCIAL SUPPLIER
03-10-2022,Adults & Health,Cornerstone Care Services,Home Care - Private Contractors Payment,265.65,0,COMMERCIAL SUPPLIER
03-10-2022,oneSource - Non Shared,The Lock Father,Security Services (Excluding Premises),330,0,COMMERCIAL SUPPLIER
03-10-2022,Children and Young People,PHS Group Plc,Solid Fuel,630.96,0,COMMERCIAL SUPPLIER
03-10-2022,RMS,AMA Security Ltd,Private Contractors Payment - Other,493.15,0,COMMERCIAL SUPPLIER
03-10-2022,RMS,AMA Security Ltd,Private Contractors Payment - Other,550,0,COMMERCIAL SUPPLIER
03-10-2022,Inclusive Economy & Housing,Castle Water Ltd,Water And Sewerage,140.37,0,COMMERCIAL SUPPLIER
03-10-2022,Inclusive Economy & Housing,Castle Water Ltd,Water And Sewerage,133.52,0,COMMERCIAL SUPPLIER
03-10-2022,Environment and Sustainable Transport,Worldline IT Services UK Ltd Re Fuel Genie,Transport Fuel,226.63,0,COMMERCIAL SUPPLIER
03-10-2022,Environment and Sustainable Transport,Worldline IT Services UK Ltd Re Fuel Genie,Transport Fuel,1072.18,0,COMMERCIAL SUPPLIER
03-10-2022,Housing Revenue Account,Ask Legal Solicitors,Legal Fees,6645.74,0,COMMERCIAL SUPPLIER
03-10-2022,oneSource - Non Shared,Building A Future (Newham Schools) Limited,"Maintenance - Equipment, Furniture And Materials",276481.1,0,VENDOR
03-10-2022,oneSource - Non Shared,Building A Future (Newham Schools) Limited,"Maintenance - Equipment, Furniture And Materials",72819.36,0,VENDOR
03-10-2022,oneSource - Non Shared,Building A Future (Newham Schools) Limited,"Maintenance - Equipment, Furniture And Materials",72313.93,0,VENDOR
03-10-2022,oneSource - Non Shared,Newham Learning Partnership (Project Co) Limited,"Maintenance - Equipment, Furniture And Materials",290220.91,0,VENDOR
03-10-2022,oneSource - Non Shared,Newham Learning Partnership (Project Co) Limited,"Maintenance - Equipment, Furniture And Materials",358780.39,0,VENDOR
03-10-2022,oneSource,Royal Mail Group Plc,Postage And Courier Services,217.8,0,COMMERCIAL SUPPLIER
03-10-2022,oneSource,Royal Mail Group Plc,Postage And Courier Services,29633.47,0,COMMERCIAL SUPPLIER
03-10-2022,RMS,Benchmarx Kitchens and Joinery,Building Alterations And Materials,1141.18,0,COMMERCIAL SUPPLIER
03-10-2022,RMS,Benchmarx Kitchens and Joinery,Building Alterations And Materials,567.85,0,COMMERCIAL SUPPLIER
03-10-2022,Adults & Health,Kenward Trust,Professional Services - General,3196,0,COMMERCIAL SUPPLIER
03-10-2022,Dedicated Schools Budget,Personal Information - Redacted,Internal Recharges,94733,0,COMMERCIAL SUPPLIER
03-10-2022,Dedicated Schools Budget,Personal Information - Redacted,Schools - Transfer Payment,444,0,VENDOR
03-10-2022,Dedicated Schools Budget,Personal Information - Redacted,Schools - Transfer Payment,889,0,VENDOR
03-10-2022,Dedicated Schools Budget,Curwen Primary School t/aTapscott Learning Trust,Grants And Contributions,1332,0,COMMERCIAL SUPPLIER
03-10-2022,Dedicated Schools Budget,Sandringham Primary School,Grants And Contributions,1386,0,VENDOR
03-10-2022,Dedicated Schools Budget,Star Primary School,Grants And Contributions,756,0,VENDOR
03-10-2022,Dedicated Schools Budget,Oliver Thomas Nursery School,Grants And Contributions,3528,0,VENDOR
03-10-2022,Dedicated Schools Budget,Chobham Academy,Grants And Contributions,756,0,COMMERCIAL SUPPLIER
03-10-2022,Dedicated Schools Budget,Ellen Wilkinson Primary School,Grants And Contributions,1008,0,NON COMMERCIAL SUPPLIER
03-10-2022,Dedicated Schools Budget,Gainsborough Primary School t/a EKO Trust,Grants And Contributions,1008,0,NON COMMERCIAL SUPPLIER
03-10-2022,Dedicated Schools Budget,Kensington Primary School t/a Tapscott Learning Trust,Grants And Contributions,846,0,COMMERCIAL SUPPLIER
03-10-2022,Dedicated Schools Budget,Ranelagh Primary School t/a Tapscott Learning Trust,Grants And Contributions,378,0,COMMERCIAL SUPPLIER
03-10-2022,Dedicated Schools Budget,Southern Road Primary School.,Grants And Contributions,504,0,VENDOR
03-10-2022,Dedicated Schools Budget,Our Lady of Grace Catholic Academy Trust t/a St Anthony's Catholic Primary School,Grants And Contributions,252,0,COMMERCIAL SUPPLIER
03-10-2022,Dedicated Schools Budget,Manor Primary School,Grants And Contributions,369,0,VENDOR
03-10-2022,Dedicated Schools Budget,Keir Hardie Primary School,Grants And Contributions,252,0,VENDOR
03-10-2022,Dedicated Schools Budget,Earlham Primary School t/a EKO Trust,Grants And Contributions,612,0,NON COMMERCIAL SUPPLIER
03-10-2022,Dedicated Schools Budget,Winsor Primary School,Grants And Contributions,252,0,LOCAL AUTHORITY SERVICES
03-10-2022,Dedicated Schools Budget,Portway Primary School t/a Leading Learning Trust,Grants And Contributions,1008,0,COMMERCIAL SUPPLIER
03-10-2022,Dedicated Schools Budget,Agate Momentum Trust T/A Scott Wilkie Primary School,Grants And Contributions,252,0,COMMERCIAL SUPPLIER
03-10-2022,Dedicated Schools Budget,Sir John Heron Primary School,Grants And Contributions,378,0,NON COMMERCIAL SUPPLIER
03-10-2022,Dedicated Schools Budget,Gallions Primary School t/a New Vision Trust,Grants And Contributions,378,0,COMMERCIAL SUPPLIER
03-10-2022,Dedicated Schools Budget,Rebecca Cheetham Nursery & Children's Centre,Grants And Contributions,2520,0,VENDOR
03-10-2022,Dedicated Schools Budget,Vicarage Primary School t/a New Vision Trust,Grants And Contributions,252,0,NON COMMERCIAL SUPPLIER
03-10-2022,Dedicated Schools Budget,Salisbury Primary School,Grants And Contributions,504,0,NON COMMERCIAL SUPPLIER
03-10-2022,Dedicated Schools Budget,Our Lady of Grace Catholic Academy Trust t/a St Francis Catholic Primary School,Grants And Contributions,378,0,COMMERCIAL SUPPLIER
03-10-2022,Dedicated Schools Budget,Edith Kerrison Nursery School,Grants And Contributions,4158,0,VENDOR
03-10-2022,Dedicated Schools Budget,Essex Primary School,Grants And Contributions,378,0,NON COMMERCIAL SUPPLIER
03-10-2022,Dedicated Schools Budget,Elmhurst Primary School t/a New Vision Trust,Grants And Contributions,1215,0,NON COMMERCIAL SUPPLIER
03-10-2022,Dedicated Schools Budget,New City Primary School t/a The Boleyn Trust,Grants And Contributions,252,0,COMMERCIAL SUPPLIER
03-10-2022,Dedicated Schools Budget,Ronald Openshaw Nursery,Grants And Contributions,1260,0,VENDOR
03-10-2022,Dedicated Schools Budget,Sheringham Nursery School,Grants And Contributions,756,0,VENDOR
03-10-2022,Dedicated Schools Budget,Hartley Primary School t/a Learning in Harmony,Grants And Contributions,252,0,COMMERCIAL SUPPLIER
03-10-2022,Dedicated Schools Budget,North Beckton Primary School T/A The Tapscott Learning Trust,Grants And Contributions,999,0,COMMERCIAL SUPPLIER
03-10-2022,Dedicated Schools Budget,Central Park Primary School,Grants And Contributions,468,0,VENDOR
03-10-2022,Dedicated Schools Budget,Cleves Primary School t/a Boleyn Trust,Grants And Contributions,504,0,COMMERCIAL SUPPLIER
03-10-2022,Dedicated Schools Budget,St Helens t/a Our Lady of Grace Academy,Grants And Contributions,1386,0,INDIVIDUALS
03-10-2022,Dedicated Schools Budget,St Stephens Nursery School,Grants And Contributions,630,0,VENDOR
03-10-2022,Dedicated Schools Budget,Sheringham Nursery School,Private Contractors Payment - Other,2400,0,VENDOR
03-10-2022,Adults & Health,Highland Care Uk Ltd,Home Care - Private Contractors Payment,164.15,0,VENDOR
03-10-2022,Adults & Health,Highland Care Uk Ltd,Home Care - Private Contractors Payment,147.4,0,VENDOR
03-10-2022,Adults & Health,Highland Care Uk Ltd,Home Care - Private Contractors Payment,12,0,VENDOR
03-10-2022,Adults & Health,Highland Care Uk Ltd,Daycare - Private Contractors Payment,60,0,VENDOR
03-10-2022,Adults & Health,Highland Care Uk Ltd,Home Care - Private Contractors Payment,450,0,VENDOR
03-10-2022,Adults & Health,Highland Care Uk Ltd,Daycare - Private Contractors Payment,60,0,VENDOR
03-10-2022,Adults & Health,Highland Care Uk Ltd,Home Care - Private Contractors Payment,12,0,VENDOR
03-10-2022,Adults & Health,Highland Care Uk Ltd,Home Care - Private Contractors Payment,450,0,VENDOR
03-10-2022,Adults & Health,Highland Care Uk Ltd,Daycare - Private Contractors Payment,60,0,VENDOR
03-10-2022,Adults & Health,Highland Care Uk Ltd,Home Care - Private Contractors Payment,12,0,VENDOR
03-10-2022,Adults & Health,Highland Care Uk Ltd,Home Care - Private Contractors Payment,450,0,VENDOR
03-10-2022,Adults & Health,Highland Care Uk Ltd,Home Care - Private Contractors Payment,12,0,VENDOR
03-10-2022,Adults & Health,Highland Care Uk Ltd,Daycare - Private Contractors Payment,60,0,VENDOR
03-10-2022,Adults & Health,Highland Care Uk Ltd,Home Care - Private Contractors Payment,450,0,VENDOR
03-10-2022,Adults & Health,Highland Care Uk Ltd,Home Care - Private Contractors Payment,351.75,0,VENDOR
03-10-2022,Adults & Health,Highland Care Uk Ltd,Home Care - Private Contractors Payment,351.75,0,VENDOR
03-10-2022,Adults & Health,Highland Care Uk Ltd,Home Care - Private Contractors Payment,351.75,0,VENDOR
03-10-2022,Adults & Health,Highland Care Uk Ltd,Home Care - Private Contractors Payment,351.75,0,VENDOR
03-10-2022,Dedicated Schools Budget,Tamba Day Nursery Ltd,Payment To Health Authorities,500,0,NON COMMERCIAL SUPPLIER
03-10-2022,Dedicated Schools Budget,Little Stars Day Care,Payment To Health Authorities,500,0,NON COMMERCIAL SUPPLIER
03-10-2022,Children and Young People,Eleanor Smith School t/a EKO Trust,Schools - Transfer Payment,1067,0,COMMERCIAL SUPPLIER
03-10-2022,oneSource,Stripe OLT,Ict Maintenance And Support,14595,0,VENDOR
03-10-2022,Environment and Sustainable Transport,Group Tyre Wholesale Ltd,Highway Services,313.8,0,COMMERCIAL SUPPLIER
03-10-2022,RMS,Beacon Scaffolding Ltd,Private Contractors Payment - Other,1486.08,0,CIS
03-10-2022,RMS,Beacon Scaffolding Ltd,Private Contractors Payment - Other,743.04,0,CIS
03-10-2022,RMS,Beacon Scaffolding Ltd,Private Contractors Payment - Other,617.28,0,CIS
03-10-2022,RMS,Beacon Scaffolding Ltd,Private Contractors Payment - Other,743.04,0,CIS
03-10-2022,RMS,Beacon Scaffolding Ltd,Private Contractors Payment - Other,619.2,0,CIS
03-10-2022,RMS,Beacon Scaffolding Ltd,Private Contractors Payment - Other,835.92,0,CIS
03-10-2022,Children and Young People,Theatre Royal Stratford East,Arts And Leisure Costs,23832,0,NON COMMERCIAL SUPPLIER
03-10-2022,Children and Young People,Theatre Royal Stratford East,Arts And Leisure Costs,40000,0,NON COMMERCIAL SUPPLIER
03-10-2022,Inclusive Economy & Housing,Ronin Ltd,Staff Recruitment Costs,2875,0,COMMERCIAL SUPPLIER
03-10-2022,Children and Young People,Jamores Limited T/A Jamores Homes,Residential Placements - Private Contractors Payment,6674.33,0,INDIVIDUALS
03-10-2022,Children and Young People,Jamores Limited T/A Jamores Homes,Residential Placements - Private Contractors Payment,4672,0,INDIVIDUALS
03-10-2022,Children and Young People,Jamores Limited T/A Jamores Homes,Residential Placements - Private Contractors Payment,4672,0,INDIVIDUALS
03-10-2022,Children and Young People,Jamores Limited T/A Jamores Homes,Residential Placements - Private Contractors Payment,4672,0,INDIVIDUALS
03-10-2022,Children and Young People,Personal Information - Redacted,Legal Fees,2500,0,COMMERCIAL SUPPLIER
03-10-2022,RMS,Door-Stop International Ltd,Building Alterations And Materials,621.26,0,VENDOR
03-10-2022,RMS,Door-Stop International Ltd,Building Alterations And Materials,571.45,0,VENDOR
03-10-2022,Housing Revenue Account,Personal Information - Redacted,Legal Fees,650,0,COMMERCIAL SUPPLIER
03-10-2022,oneSource,Cisilion Ltd,Ict Hardware,1762.36,0,COMMERCIAL SUPPLIER
03-10-2022,oneSource,Cisilion Ltd,Ict Hardware,15,0,COMMERCIAL SUPPLIER
03-10-2022,oneSource,Cisilion Ltd,Ict Hardware,87570,0,COMMERCIAL SUPPLIER
03-10-2022,Adults & Health,Highland Care Uk Ltd,Home Care - Private Contractors Payment,126,0,VENDOR
03-10-2022,Adults & Health,Highland Care Uk Ltd,Home Care - Private Contractors Payment,126,0,VENDOR
03-10-2022,Adults & Health,Highland Care Uk Ltd,Home Care - Private Contractors Payment,126,0,VENDOR
03-10-2022,Adults & Health,Highland Care Uk Ltd,Home Care - Private Contractors Payment,126,0,VENDOR
03-10-2022,Transformation,Qexi Consulting Limited,Consultancy Fees,10875,0,COMMERCIAL SUPPLIER
03-10-2022,Environment and Sustainable Transport,Andrew Pritchard Ltd,Consultancy Fees,4800,0,INDIVIDUALS
03-10-2022,Children and Young People,Personal Information - Redacted,Ict Software,7.99,0,Employee
03-10-2022,Children and Young People,Personal Information - Redacted,Ict Software,320,0,Employee
03-10-2022,Children and Young People,Personal Information - Redacted,Ict Software,92,0,Employee
03-10-2022,Children and Young People,Personal Information - Redacted,Professional Services - General,18.68,0,Employee
03-10-2022,Children and Young People,Personal Information - Redacted,Employee Allowances,-11,0,Employee
03-10-2022,Adults & Health,Rainbow Homecare Ltd,Home Care - Private Contractors Payment,28.08,0,VENDOR
03-10-2022,Adults & Health,Rainbow Homecare Ltd,Daycare - Private Contractors Payment,76.64,0,VENDOR
03-10-2022,Adults & Health,Rainbow Homecare Ltd,Home Care - Private Contractors Payment,37.44,0,VENDOR
03-10-2022,Adults & Health,Rainbow Homecare Ltd,Home Care - Private Contractors Payment,18.72,0,VENDOR
03-10-2022,Adults & Health,Rainbow Homecare Ltd,Home Care - Private Contractors Payment,28.08,0,VENDOR
03-10-2022,Adults & Health,Rainbow Homecare Ltd,Daycare - Private Contractors Payment,37.44,0,VENDOR
03-10-2022,Adults & Health,Rainbow Homecare Ltd,Home Care - Private Contractors Payment,18.72,0,VENDOR
03-10-2022,Adults & Health,Rainbow Homecare Ltd,Home Care - Private Contractors Payment,18.72,0,VENDOR
03-10-2022,Adults & Health,Rainbow Homecare Ltd,Home Care - Private Contractors Payment,28.08,0,VENDOR
03-10-2022,Adults & Health,Rainbow Homecare Ltd,Daycare - Private Contractors Payment,83.68,0,VENDOR
03-10-2022,Adults & Health,Rainbow Homecare Ltd,Daycare - Private Contractors Payment,40.96,0,VENDOR
03-10-2022,Adults & Health,Rainbow Homecare Ltd,Home Care - Private Contractors Payment,38.32,0,VENDOR
03-10-2022,Adults & Health,Rainbow Homecare Ltd,Respite Care - Private Contractors Payment,8.8,0,VENDOR
03-10-2022,Adults & Health,Rainbow Homecare Ltd,Daycare - Private Contractors Payment,78.4,0,VENDOR
03-10-2022,Adults & Health,Rainbow Homecare Ltd,Daycare - Private Contractors Payment,43.6,0,VENDOR
03-10-2022,Adults & Health,Rainbow Homecare Ltd,Daycare - Private Contractors Payment,105.92,0,VENDOR
03-10-2022,Adults & Health,Rainbow Homecare Ltd,Home Care - Private Contractors Payment,37.44,0,VENDOR
03-10-2022,Adults & Health,Rainbow Homecare Ltd,Respite Care - Private Contractors Payment,122.88,0,VENDOR
03-10-2022,Adults & Health,Rainbow Homecare Ltd,Home Care - Private Contractors Payment,51.2,0,VENDOR
03-10-2022,Adults & Health,Rainbow Homecare Ltd,Home Care - Private Contractors Payment,56.16,0,VENDOR
03-10-2022,Adults & Health,Rainbow Homecare Ltd,Home Care - Private Contractors Payment,18.72,0,VENDOR
03-10-2022,Adults & Health,Rainbow Homecare Ltd,Home Care - Private Contractors Payment,18.72,0,VENDOR
03-10-2022,Adults & Health,Rainbow Homecare Ltd,Home Care - Private Contractors Payment,18.72,0,VENDOR
03-10-2022,Adults & Health,Rainbow Homecare Ltd,Daycare - Private Contractors Payment,61.44,0,VENDOR
03-10-2022,Adults & Health,Rainbow Homecare Ltd,Daycare - Private Contractors Payment,74.88,0,VENDOR
03-10-2022,Adults & Health,Rainbow Homecare Ltd,Home Care - Private Contractors Payment,18.72,0,VENDOR
03-10-2022,Adults & Health,Rainbow Homecare Ltd,Respite Care - Private Contractors Payment,57.48,0,VENDOR
03-10-2022,Adults & Health,Rainbow Homecare Ltd,Daycare - Private Contractors Payment,40.96,0,VENDOR
03-10-2022,Adults & Health,Rainbow Homecare Ltd,Home Care - Private Contractors Payment,37.44,0,VENDOR
03-10-2022,Adults & Health,Rainbow Homecare Ltd,Home Care - Private Contractors Payment,46.8,0,VENDOR
03-10-2022,Adults & Health,Rainbow Homecare Ltd,Home Care - Private Contractors Payment,18.72,0,VENDOR
03-10-2022,Adults & Health,Rainbow Homecare Ltd,Home Care - Private Contractors Payment,42.12,0,VENDOR
03-10-2022,Adults & Health,Rainbow Homecare Ltd,Respite Care - Private Contractors Payment,74.88,0,VENDOR
03-10-2022,Adults & Health,Rainbow Homecare Ltd,Daycare - Private Contractors Payment,37.44,0,VENDOR
03-10-2022,Adults & Health,Rainbow Homecare Ltd,Respite Care - Private Contractors Payment,112.32,0,VENDOR
03-10-2022,Adults & Health,Rainbow Homecare Ltd,Home Care - Private Contractors Payment,37.44,0,VENDOR
03-10-2022,Adults & Health,Rainbow Homecare Ltd,Home Care - Private Contractors Payment,56.16,0,VENDOR
03-10-2022,Adults & Health,Rainbow Homecare Ltd,Daycare - Private Contractors Payment,168.48,0,VENDOR
03-10-2022,Adults & Health,Rainbow Homecare Ltd,Daycare - Private Contractors Payment,64.96,0,VENDOR
03-10-2022,Adults & Health,Rainbow Homecare Ltd,Daycare - Private Contractors Payment,42.72,0,VENDOR
03-10-2022,Adults & Health,Rainbow Homecare Ltd,Home Care - Private Contractors Payment,40.96,0,VENDOR
03-10-2022,Adults & Health,Rainbow Homecare Ltd,Home Care - Private Contractors Payment,46.08,0,VENDOR
03-10-2022,Adults & Health,Rainbow Homecare Ltd,Daycare - Private Contractors Payment,22.24,0,VENDOR
03-10-2022,Adults & Health,Rainbow Homecare Ltd,Daycare - Private Contractors Payment,32.48,0,VENDOR
03-10-2022,Adults & Health,Rainbow Homecare Ltd,Home Care - Private Contractors Payment,37.44,0,VENDOR
03-10-2022,Adults & Health,Rainbow Homecare Ltd,Respite Care - Private Contractors Payment,46.8,0,VENDOR
03-10-2022,Adults & Health,Rainbow Homecare Ltd,Daycare - Private Contractors Payment,40.96,0,VENDOR
03-10-2022,Adults & Health,Rainbow Homecare Ltd,Home Care - Private Contractors Payment,37.44,0,VENDOR
03-10-2022,Adults & Health,Rainbow Homecare Ltd,Daycare - Private Contractors Payment,74.88,0,VENDOR
03-10-2022,Adults & Health,Rainbow Homecare Ltd,Home Care - Private Contractors Payment,46.8,0,VENDOR
03-10-2022,Adults & Health,Rainbow Homecare Ltd,Home Care - Private Contractors Payment,18.72,0,VENDOR
03-10-2022,Adults & Health,Rainbow Homecare Ltd,Daycare - Private Contractors Payment,37.44,0,VENDOR
03-10-2022,Adults & Health,Rainbow Homecare Ltd,Home Care - Private Contractors Payment,18.72,0,VENDOR
03-10-2022,Adults & Health,Rainbow Homecare Ltd,Home Care - Private Contractors Payment,18.72,0,VENDOR
03-10-2022,Adults & Health,Rainbow Homecare Ltd,Home Care - Private Contractors Payment,18.72,0,VENDOR
03-10-2022,Adults & Health,Rainbow Homecare Ltd,Daycare - Private Contractors Payment,18.72,0,VENDOR
03-10-2022,Adults & Health,Rainbow Homecare Ltd,Home Care - Private Contractors Payment,18.72,0,VENDOR
03-10-2022,Adults & Health,Rainbow Homecare Ltd,Daycare - Private Contractors Payment,56.16,0,VENDOR
03-10-2022,Adults & Health,Rainbow Homecare Ltd,Daycare - Private Contractors Payment,76.64,0,VENDOR
03-10-2022,Adults & Health,Rainbow Homecare Ltd,Home Care - Private Contractors Payment,42.12,0,VENDOR
03-10-2022,Adults & Health,Rainbow Homecare Ltd,Respite Care - Private Contractors Payment,95.8,0,VENDOR
03-10-2022,Adults & Health,Rainbow Homecare Ltd,Home Care - Private Contractors Payment,37.44,0,VENDOR
03-10-2022,Adults & Health,Rainbow Homecare Ltd,Daycare - Private Contractors Payment,56.16,0,VENDOR
03-10-2022,Adults & Health,Rainbow Homecare Ltd,Home Care - Private Contractors Payment,38.32,0,VENDOR
03-10-2022,Adults & Health,Rainbow Homecare Ltd,Home Care - Private Contractors Payment,18.72,0,VENDOR
03-10-2022,Adults & Health,Rainbow Homecare Ltd,Daycare - Private Contractors Payment,37.44,0,VENDOR
03-10-2022,Adults & Health,Rainbow Homecare Ltd,Home Care - Private Contractors Payment,18.72,0,VENDOR
03-10-2022,Adults & Health,Rainbow Homecare Ltd,Home Care - Private Contractors Payment,37.44,0,VENDOR
03-10-2022,Adults & Health,Rainbow Homecare Ltd,Home Care - Private Contractors Payment,37.44,0,VENDOR
03-10-2022,Adults & Health,Rainbow Homecare Ltd,Home Care - Private Contractors Payment,28.08,0,VENDOR
03-10-2022,Adults & Health,Rainbow Homecare Ltd,Home Care - Private Contractors Payment,28.08,0,VENDOR
03-10-2022,Adults & Health,Rainbow Homecare Ltd,Daycare - Private Contractors Payment,37.44,0,VENDOR
03-10-2022,Adults & Health,Rainbow Homecare Ltd,Daycare - Private Contractors Payment,93.6,0,VENDOR
03-10-2022,Adults & Health,Rainbow Homecare Ltd,Home Care - Private Contractors Payment,37.44,0,VENDOR
03-10-2022,Adults & Health,Rainbow Homecare Ltd,Respite Care - Private Contractors Payment,46.8,0,VENDOR
03-10-2022,Adults & Health,Rainbow Homecare Ltd,Daycare - Private Contractors Payment,37.44,0,VENDOR
03-10-2022,Adults & Health,Rainbow Homecare Ltd,Daycare - Private Contractors Payment,28.08,0,VENDOR
03-10-2022,Adults & Health,Rainbow Homecare Ltd,Home Care - Private Contractors Payment,37.44,0,VENDOR
03-10-2022,Adults & Health,Rainbow Homecare Ltd,Daycare - Private Contractors Payment,37.44,0,VENDOR
03-10-2022,Adults & Health,Rainbow Homecare Ltd,Home Care - Private Contractors Payment,18.72,0,VENDOR
03-10-2022,Adults & Health,Rainbow Homecare Ltd,Home Care - Private Contractors Payment,18.72,0,VENDOR
03-10-2022,Adults & Health,Rainbow Homecare Ltd,Daycare - Private Contractors Payment,37.44,0,VENDOR
03-10-2022,Adults & Health,Rainbow Homecare Ltd,Home Care - Private Contractors Payment,18.72,0,VENDOR
03-10-2022,Adults & Health,Rainbow Homecare Ltd,Daycare - Private Contractors Payment,76.64,0,VENDOR
03-10-2022,Adults & Health,Rainbow Homecare Ltd,Home Care - Private Contractors Payment,37.44,0,VENDOR
03-10-2022,Adults & Health,Rainbow Homecare Ltd,Home Care - Private Contractors Payment,18.72,0,VENDOR
03-10-2022,Adults & Health,Rainbow Homecare Ltd,Daycare - Private Contractors Payment,56.16,0,VENDOR
03-10-2022,Adults & Health,Rainbow Homecare Ltd,Home Care - Private Contractors Payment,37.44,0,VENDOR
03-10-2022,Adults & Health,Rainbow Homecare Ltd,Home Care - Private Contractors Payment,37.44,0,VENDOR
03-10-2022,Adults & Health,Rainbow Homecare Ltd,Daycare - Private Contractors Payment,74.88,0,VENDOR
03-10-2022,Adults & Health,Rainbow Homecare Ltd,Home Care - Private Contractors Payment,46.8,0,VENDOR
03-10-2022,Adults & Health,Rainbow Homecare Ltd,Daycare - Private Contractors Payment,37.44,0,VENDOR
03-10-2022,Adults & Health,Rainbow Homecare Ltd,Home Care - Private Contractors Payment,18.72,0,VENDOR
03-10-2022,Adults & Health,Rainbow Homecare Ltd,Home Care - Private Contractors Payment,37.44,0,VENDOR
03-10-2022,Adults & Health,Rainbow Homecare Ltd,Daycare - Private Contractors Payment,37.44,0,VENDOR
03-10-2022,Adults & Health,Rainbow Homecare Ltd,Home Care - Private Contractors Payment,18.72,0,VENDOR
03-10-2022,Adults & Health,Rainbow Homecare Ltd,Daycare - Private Contractors Payment,37.44,0,VENDOR
03-10-2022,Adults & Health,Rainbow Homecare Ltd,Daycare - Private Contractors Payment,84.24,0,VENDOR
03-10-2022,Adults & Health,Rainbow Homecare Ltd,Home Care - Private Contractors Payment,28.08,0,VENDOR
03-10-2022,Adults & Health,Rainbow Homecare Ltd,Home Care - Private Contractors Payment,18.72,0,VENDOR
03-10-2022,Adults & Health,Rainbow Homecare Ltd,Daycare - Private Contractors Payment,74.88,0,VENDOR
03-10-2022,Adults & Health,Rainbow Homecare Ltd,Daycare - Private Contractors Payment,37.44,0,VENDOR
03-10-2022,Adults & Health,Rainbow Homecare Ltd,Home Care - Private Contractors Payment,28.08,0,VENDOR
03-10-2022,Adults & Health,Rainbow Homecare Ltd,Daycare - Private Contractors Payment,37.44,0,VENDOR
03-10-2022,Adults & Health,Rainbow Homecare Ltd,Daycare - Private Contractors Payment,93.6,0,VENDOR
03-10-2022,Adults & Health,Rainbow Homecare Ltd,Home Care - Private Contractors Payment,37.44,0,VENDOR
03-10-2022,Adults & Health,Rainbow Homecare Ltd,Respite Care - Private Contractors Payment,46.8,0,VENDOR
03-10-2022,Adults & Health,Rainbow Homecare Ltd,Home Care - Private Contractors Payment,18.72,0,VENDOR
03-10-2022,Adults & Health,Rainbow Homecare Ltd,Daycare - Private Contractors Payment,42.72,0,VENDOR
03-10-2022,Adults & Health,Rainbow Homecare Ltd,Daycare - Private Contractors Payment,40.96,0,VENDOR
03-10-2022,Adults & Health,Rainbow Homecare Ltd,Home Care - Private Contractors Payment,32.48,0,VENDOR
03-10-2022,Adults & Health,Rainbow Homecare Ltd,Daycare - Private Contractors Payment,7.92,0,VENDOR
03-10-2022,Adults & Health,Rainbow Homecare Ltd,Home Care - Private Contractors Payment,18.72,0,VENDOR
03-10-2022,Adults & Health,Rainbow Homecare Ltd,Daycare - Private Contractors Payment,74.88,0,VENDOR
03-10-2022,Adults & Health,Rainbow Homecare Ltd,Home Care - Private Contractors Payment,18.72,0,VENDOR
03-10-2022,Adults & Health,Rainbow Homecare Ltd,Home Care - Private Contractors Payment,20.48,0,VENDOR
03-10-2022,Adults & Health,Rainbow Homecare Ltd,Daycare - Private Contractors Payment,63.2,0,VENDOR
03-10-2022,Adults & Health,Rainbow Homecare Ltd,Daycare - Private Contractors Payment,45.36,0,VENDOR
03-10-2022,Adults & Health,Rainbow Homecare Ltd,Home Care - Private Contractors Payment,65.52,0,VENDOR
03-10-2022,Adults & Health,Rainbow Homecare Ltd,Daycare - Private Contractors Payment,95.68,0,VENDOR
03-10-2022,Adults & Health,Rainbow Homecare Ltd,Daycare - Private Contractors Payment,40.08,0,VENDOR
03-10-2022,Adults & Health,Rainbow Homecare Ltd,Home Care - Private Contractors Payment,20.48,0,VENDOR
03-10-2022,Adults & Health,Rainbow Homecare Ltd,Home Care - Private Contractors Payment,18.72,0,VENDOR
03-10-2022,Adults & Health,Rainbow Homecare Ltd,Home Care - Private Contractors Payment,18.72,0,VENDOR
03-10-2022,Adults & Health,Rainbow Homecare Ltd,Home Care - Private Contractors Payment,56.16,0,VENDOR
03-10-2022,Adults & Health,Rainbow Homecare Ltd,Daycare - Private Contractors Payment,40.96,0,VENDOR
03-10-2022,Adults & Health,Rainbow Homecare Ltd,Daycare - Private Contractors Payment,40.96,0,VENDOR
03-10-2022,Adults & Health,Rainbow Homecare Ltd,Home Care - Private Contractors Payment,28.4,0,VENDOR
03-10-2022,Adults & Health,Rainbow Homecare Ltd,Home Care - Private Contractors Payment,18.72,0,VENDOR
03-10-2022,Adults & Health,Rainbow Homecare Ltd,Home Care - Private Contractors Payment,20.48,0,VENDOR
03-10-2022,Adults & Health,Rainbow Homecare Ltd,Home Care - Private Contractors Payment,20.48,0,VENDOR
03-10-2022,Adults & Health,Rainbow Homecare Ltd,Home Care - Private Contractors Payment,51.2,0,VENDOR
03-10-2022,Adults & Health,Rainbow Homecare Ltd,Daycare - Private Contractors Payment,190.48,0,VENDOR
03-10-2022,Adults & Health,Rainbow Homecare Ltd,Home Care - Private Contractors Payment,30.72,0,VENDOR
03-10-2022,Adults & Health,Rainbow Homecare Ltd,Daycare - Private Contractors Payment,40.96,0,VENDOR
03-10-2022,Adults & Health,Rainbow Homecare Ltd,Home Care - Private Contractors Payment,37.44,0,VENDOR
03-10-2022,Adults & Health,Rainbow Homecare Ltd,Home Care - Private Contractors Payment,61.44,0,VENDOR
03-10-2022,Adults & Health,Rainbow Homecare Ltd,Daycare - Private Contractors Payment,36.22,0,VENDOR
03-10-2022,Adults & Health,Rainbow Homecare Ltd,Home Care - Private Contractors Payment,37.44,0,VENDOR
03-10-2022,Adults & Health,Rainbow Homecare Ltd,Home Care - Private Contractors Payment,48,0,VENDOR
03-10-2022,Adults & Health,Rainbow Homecare Ltd,Daycare - Private Contractors Payment,28.08,0,VENDOR
03-10-2022,Adults & Health,Rainbow Homecare Ltd,Respite Care - Private Contractors Payment,5.28,0,VENDOR
03-10-2022,Adults & Health,Rainbow Homecare Ltd,Home Care - Private Contractors Payment,61.44,0,VENDOR
03-10-2022,Adults & Health,Rainbow Homecare Ltd,Home Care - Private Contractors Payment,30.72,0,VENDOR
03-10-2022,Adults & Health,Rainbow Homecare Ltd,Home Care - Private Contractors Payment,18.72,0,VENDOR
03-10-2022,Adults & Health,Rainbow Homecare Ltd,Home Care - Private Contractors Payment,56.16,0,VENDOR
03-10-2022,Adults & Health,Rainbow Homecare Ltd,Home Care - Private Contractors Payment,18.72,0,VENDOR
03-10-2022,Adults & Health,Rainbow Homecare Ltd,Home Care - Private Contractors Payment,56.16,0,VENDOR
03-10-2022,Adults & Health,Rainbow Homecare Ltd,Home Care - Private Contractors Payment,18.72,0,VENDOR
03-10-2022,Adults & Health,Rainbow Homecare Ltd,Daycare - Private Contractors Payment,74.88,0,VENDOR
03-10-2022,Adults & Health,Rainbow Homecare Ltd,Daycare - Private Contractors Payment,56.16,0,VENDOR
03-10-2022,Adults & Health,Rainbow Homecare Ltd,Daycare - Private Contractors Payment,28.08,0,VENDOR
03-10-2022,Adults & Health,Rainbow Homecare Ltd,Home Care - Private Contractors Payment,46.8,0,VENDOR
03-10-2022,Adults & Health,Rainbow Homecare Ltd,Home Care - Private Contractors Payment,18.72,0,VENDOR
03-10-2022,Adults & Health,Rainbow Homecare Ltd,Home Care - Private Contractors Payment,42.12,0,VENDOR
03-10-2022,Adults & Health,Rainbow Homecare Ltd,Respite Care - Private Contractors Payment,95.8,0,VENDOR
03-10-2022,Adults & Health,Rainbow Homecare Ltd,Home Care - Private Contractors Payment,18.72,0,VENDOR
03-10-2022,Adults & Health,Rainbow Homecare Ltd,Daycare - Private Contractors Payment,28.08,0,VENDOR
03-10-2022,Adults & Health,Rainbow Homecare Ltd,Home Care - Private Contractors Payment,18.72,0,VENDOR
03-10-2022,Adults & Health,Rainbow Homecare Ltd,Home Care - Private Contractors Payment,65.52,0,VENDOR
03-10-2022,Adults & Health,Rainbow Homecare Ltd,Respite Care - Private Contractors Payment,95.8,0,VENDOR
03-10-2022,Adults & Health,Rainbow Homecare Ltd,Daycare - Private Contractors Payment,56.16,0,VENDOR
03-10-2022,Adults & Health,Rainbow Homecare Ltd,Daycare - Private Contractors Payment,37.44,0,VENDOR
03-10-2022,Adults & Health,Rainbow Homecare Ltd,Home Care - Private Contractors Payment,18.72,0,VENDOR
03-10-2022,Adults & Health,Rainbow Homecare Ltd,Home Care - Private Contractors Payment,38.32,0,VENDOR
03-10-2022,Adults & Health,Rainbow Homecare Ltd,Daycare - Private Contractors Payment,37.44,0,VENDOR
03-10-2022,Adults & Health,Rainbow Homecare Ltd,Home Care - Private Contractors Payment,56.16,0,VENDOR
03-10-2022,Adults & Health,Rainbow Homecare Ltd,Daycare - Private Contractors Payment,37.44,0,VENDOR
03-10-2022,Adults & Health,Rainbow Homecare Ltd,Daycare - Private Contractors Payment,56.16,0,VENDOR
03-10-2022,Adults & Health,Rainbow Homecare Ltd,Daycare - Private Contractors Payment,37.44,0,VENDOR
03-10-2022,Adults & Health,Rainbow Homecare Ltd,Home Care - Private Contractors Payment,18.72,0,VENDOR
03-10-2022,Adults & Health,Rainbow Homecare Ltd,Home Care - Private Contractors Payment,38.32,0,VENDOR
03-10-2022,Adults & Health,Rainbow Homecare Ltd,Home Care - Private Contractors Payment,18.72,0,VENDOR
03-10-2022,Adults & Health,Rainbow Homecare Ltd,Home Care - Private Contractors Payment,37.44,0,VENDOR
03-10-2022,Adults & Health,Rainbow Homecare Ltd,Home Care - Private Contractors Payment,56.16,0,VENDOR
03-10-2022,Adults & Health,Rainbow Homecare Ltd,Daycare - Private Contractors Payment,168.48,0,VENDOR
03-10-2022,Adults & Health,Rainbow Homecare Ltd,Respite Care - Private Contractors Payment,74.88,0,VENDOR
03-10-2022,Adults & Health,Rainbow Homecare Ltd,Daycare - Private Contractors Payment,37.44,0,VENDOR
03-10-2022,Adults & Health,Rainbow Homecare Ltd,Respite Care - Private Contractors Payment,112.32,0,VENDOR
03-10-2022,Adults & Health,Rainbow Homecare Ltd,Home Care - Private Contractors Payment,18.72,0,VENDOR
03-10-2022,Adults & Health,Rainbow Homecare Ltd,Home Care - Private Contractors Payment,18.72,0,VENDOR
03-10-2022,Adults & Health,Rainbow Homecare Ltd,Respite Care - Private Contractors Payment,191.6,0,VENDOR
03-10-2022,Adults & Health,Rainbow Homecare Ltd,Home Care - Private Contractors Payment,56.16,0,VENDOR
03-10-2022,Adults & Health,Rainbow Homecare Ltd,Daycare - Private Contractors Payment,37.44,0,VENDOR
03-10-2022,Adults & Health,Rainbow Homecare Ltd,Home Care - Private Contractors Payment,56.16,0,VENDOR
03-10-2022,Adults & Health,Rainbow Homecare Ltd,Home Care - Private Contractors Payment,18.72,0,VENDOR
03-10-2022,Adults & Health,Rainbow Homecare Ltd,Home Care - Private Contractors Payment,18.72,0,VENDOR
03-10-2022,Adults & Health,Rainbow Homecare Ltd,Daycare - Private Contractors Payment,74.88,0,VENDOR
03-10-2022,Adults & Health,Rainbow Homecare Ltd,Home Care - Private Contractors Payment,19.6,0,VENDOR
03-10-2022,Adults & Health,Rainbow Homecare Ltd,Home Care - Private Contractors Payment,56.16,0,VENDOR
03-10-2022,Adults & Health,Rainbow Homecare Ltd,Daycare - Private Contractors Payment,37.44,0,VENDOR
03-10-2022,Adults & Health,Rainbow Homecare Ltd,Home Care - Private Contractors Payment,18.72,0,VENDOR
03-10-2022,Adults & Health,Rainbow Homecare Ltd,Respite Care - Private Contractors Payment,143.7,0,VENDOR
03-10-2022,Adults & Health,Rainbow Homecare Ltd,Home Care - Private Contractors Payment,56.16,0,VENDOR
03-10-2022,Adults & Health,Rainbow Homecare Ltd,Daycare - Private Contractors Payment,37.44,0,VENDOR
03-10-2022,Adults & Health,Rainbow Homecare Ltd,Home Care - Private Contractors Payment,56.16,0,VENDOR
03-10-2022,Adults & Health,Rainbow Homecare Ltd,Home Care - Private Contractors Payment,37.44,0,VENDOR
03-10-2022,Adults & Health,Rainbow Homecare Ltd,Daycare - Private Contractors Payment,74.88,0,VENDOR
03-10-2022,Adults & Health,Rainbow Homecare Ltd,Daycare - Private Contractors Payment,74.88,0,VENDOR
03-10-2022,Adults & Health,Rainbow Homecare Ltd,Daycare - Private Contractors Payment,37.44,0,VENDOR
03-10-2022,Adults & Health,Rainbow Homecare Ltd,Daycare - Private Contractors Payment,37.44,0,VENDOR
03-10-2022,Adults & Health,Rainbow Homecare Ltd,Daycare - Private Contractors Payment,74.88,0,VENDOR
03-10-2022,Adults & Health,Rainbow Homecare Ltd,Home Care - Private Contractors Payment,37.44,0,VENDOR
03-10-2022,Adults & Health,Rainbow Homecare Ltd,Home Care - Private Contractors Payment,18.72,0,VENDOR
03-10-2022,Adults & Health,Rainbow Homecare Ltd,Daycare - Private Contractors Payment,56.16,0,VENDOR
03-10-2022,Adults & Health,Rainbow Homecare Ltd,Home Care - Private Contractors Payment,37.44,0,VENDOR
03-10-2022,Adults & Health,Rainbow Homecare Ltd,Home Care - Private Contractors Payment,37.44,0,VENDOR
03-10-2022,Adults & Health,Rainbow Homecare Ltd,Daycare - Private Contractors Payment,74.88,0,VENDOR
03-10-2022,Adults & Health,Rainbow Homecare Ltd,Home Care - Private Contractors Payment,46.8,0,VENDOR
03-10-2022,Adults & Health,Rainbow Homecare Ltd,Home Care - Private Contractors Payment,28.08,0,VENDOR
03-10-2022,Adults & Health,Rainbow Homecare Ltd,Home Care - Private Contractors Payment,37.44,0,VENDOR
03-10-2022,Adults & Health,Rainbow Homecare Ltd,Home Care - Private Contractors Payment,18.72,0,VENDOR
03-10-2022,Adults & Health,Rainbow Homecare Ltd,Home Care - Private Contractors Payment,65.52,0,VENDOR
03-10-2022,Adults & Health,Rainbow Homecare Ltd,Home Care - Private Contractors Payment,18.72,0,VENDOR
03-10-2022,Adults & Health,Rainbow Homecare Ltd,Home Care - Private Contractors Payment,18.72,0,VENDOR
03-10-2022,Adults & Health,Rainbow Homecare Ltd,Home Care - Private Contractors Payment,65.52,0,VENDOR
03-10-2022,Adults & Health,Rainbow Homecare Ltd,Daycare - Private Contractors Payment,84.24,0,VENDOR
03-10-2022,Adults & Health,Rainbow Homecare Ltd,Daycare - Private Contractors Payment,56.16,0,VENDOR
03-10-2022,Adults & Health,Rainbow Homecare Ltd,Daycare - Private Contractors Payment,18.72,0,VENDOR
03-10-2022,Adults & Health,Rainbow Homecare Ltd,Home Care - Private Contractors Payment,37.44,0,VENDOR
03-10-2022,Adults & Health,Rainbow Homecare Ltd,Home Care - Private Contractors Payment,28.08,0,VENDOR
03-10-2022,Adults & Health,Rainbow Homecare Ltd,Respite Care - Private Contractors Payment,46.8,0,VENDOR
03-10-2022,Adults & Health,Rainbow Homecare Ltd,Daycare - Private Contractors Payment,28.08,0,VENDOR
03-10-2022,Adults & Health,Rainbow Homecare Ltd,Daycare - Private Contractors Payment,18.72,0,VENDOR
03-10-2022,Adults & Health,Rainbow Homecare Ltd,Home Care - Private Contractors Payment,18.72,0,VENDOR
03-10-2022,Adults & Health,Rainbow Homecare Ltd,Daycare - Private Contractors Payment,37.44,0,VENDOR
03-10-2022,Adults & Health,Rainbow Homecare Ltd,Daycare - Private Contractors Payment,37.44,0,VENDOR
03-10-2022,Adults & Health,Rainbow Homecare Ltd,Home Care - Private Contractors Payment,38.32,0,VENDOR
03-10-2022,Adults & Health,Rainbow Homecare Ltd,Daycare - Private Contractors Payment,93.6,0,VENDOR
03-10-2022,Adults & Health,Rainbow Homecare Ltd,Daycare - Private Contractors Payment,37.44,0,VENDOR
03-10-2022,Adults & Health,Rainbow Homecare Ltd,Daycare - Private Contractors Payment,28.08,0,VENDOR
03-10-2022,Adults & Health,Rainbow Homecare Ltd,Home Care - Private Contractors Payment,37.44,0,VENDOR
03-10-2022,Adults & Health,Rainbow Homecare Ltd,Daycare - Private Contractors Payment,38.32,0,VENDOR
03-10-2022,Adults & Health,Rainbow Homecare Ltd,Daycare - Private Contractors Payment,37.44,0,VENDOR
03-10-2022,Adults & Health,Rainbow Homecare Ltd,Daycare - Private Contractors Payment,37.44,0,VENDOR
03-10-2022,Adults & Health,Rainbow Homecare Ltd,Daycare - Private Contractors Payment,56.16,0,VENDOR
03-10-2022,Adults & Health,Rainbow Homecare Ltd,Home Care - Private Contractors Payment,18.72,0,VENDOR
03-10-2022,Adults & Health,Rainbow Homecare Ltd,Daycare - Private Contractors Payment,37.44,0,VENDOR
03-10-2022,Adults & Health,Rainbow Homecare Ltd,Home Care - Private Contractors Payment,28.08,0,VENDOR
03-10-2022,Adults & Health,Rainbow Homecare Ltd,Home Care - Private Contractors Payment,37.44,0,VENDOR
03-10-2022,Adults & Health,Rainbow Homecare Ltd,Daycare - Private Contractors Payment,56.16,0,VENDOR
03-10-2022,Adults & Health,Rainbow Homecare Ltd,Daycare - Private Contractors Payment,38.32,0,VENDOR
03-10-2022,Adults & Health,Rainbow Homecare Ltd,Home Care - Private Contractors Payment,38.32,0,VENDOR
03-10-2022,Adults & Health,Rainbow Homecare Ltd,Daycare - Private Contractors Payment,56.16,0,VENDOR
03-10-2022,Adults & Health,Rainbow Homecare Ltd,Daycare - Private Contractors Payment,5.28,0,VENDOR
03-10-2022,Adults & Health,Rainbow Homecare Ltd,Home Care - Private Contractors Payment,18.72,0,VENDOR
03-10-2022,Adults & Health,Rainbow Homecare Ltd,Respite Care - Private Contractors Payment,112.32,0,VENDOR
03-10-2022,Adults & Health,Rainbow Homecare Ltd,Home Care - Private Contractors Payment,56.16,0,VENDOR
03-10-2022,Adults & Health,Rainbow Homecare Ltd,Daycare - Private Contractors Payment,37.44,0,VENDOR
03-10-2022,Adults & Health,Rainbow Homecare Ltd,Home Care - Private Contractors Payment,16.13,0,VENDOR
03-10-2022,Adults & Health,Rainbow Homecare Ltd,Home Care - Private Contractors Payment,18.72,0,VENDOR
03-10-2022,Adults & Health,Rainbow Homecare Ltd,Home Care - Private Contractors Payment,18.72,0,VENDOR
03-10-2022,Adults & Health,Rainbow Homecare Ltd,Home Care - Private Contractors Payment,1.76,0,VENDOR
03-10-2022,Adults & Health,Rainbow Homecare Ltd,Home Care - Private Contractors Payment,46.8,0,VENDOR
03-10-2022,Adults & Health,Rainbow Homecare Ltd,Home Care - Private Contractors Payment,28.08,0,VENDOR
03-10-2022,Adults & Health,Rainbow Homecare Ltd,Home Care - Private Contractors Payment,28.08,0,VENDOR
03-10-2022,Adults & Health,Rainbow Homecare Ltd,Daycare - Private Contractors Payment,2.64,0,VENDOR
03-10-2022,Adults & Health,Rainbow Homecare Ltd,Daycare - Private Contractors Payment,37.44,0,VENDOR
03-10-2022,Adults & Health,Rainbow Homecare Ltd,Daycare - Private Contractors Payment,28.08,0,VENDOR
03-10-2022,Adults & Health,Rainbow Homecare Ltd,Daycare - Private Contractors Payment,37.44,0,VENDOR
03-10-2022,Adults & Health,Rainbow Homecare Ltd,Home Care - Private Contractors Payment,28.08,0,VENDOR
03-10-2022,Adults & Health,Rainbow Homecare Ltd,Home Care - Private Contractors Payment,37.44,0,VENDOR
03-10-2022,Adults & Health,Rainbow Homecare Ltd,Home Care - Private Contractors Payment,19.16,0,VENDOR
03-10-2022,Adults & Health,Rainbow Homecare Ltd,Daycare - Private Contractors Payment,56.16,0,VENDOR
03-10-2022,Adults & Health,Rainbow Homecare Ltd,Daycare - Private Contractors Payment,38.32,0,VENDOR
03-10-2022,Adults & Health,Rainbow Homecare Ltd,Home Care - Private Contractors Payment,38.32,0,VENDOR
03-10-2022,Adults & Health,Rainbow Homecare Ltd,Home Care - Private Contractors Payment,18.72,0,VENDOR
03-10-2022,Adults & Health,Rainbow Homecare Ltd,Daycare - Private Contractors Payment,37.44,0,VENDOR
03-10-2022,Adults & Health,Rainbow Homecare Ltd,Daycare - Private Contractors Payment,37.44,0,VENDOR
03-10-2022,Adults & Health,Rainbow Homecare Ltd,Respite Care - Private Contractors Payment,74.88,0,VENDOR
03-10-2022,Adults & Health,Rainbow Homecare Ltd,Daycare - Private Contractors Payment,37.44,0,VENDOR
03-10-2022,Adults & Health,Rainbow Homecare Ltd,Home Care - Private Contractors Payment,37.44,0,VENDOR
03-10-2022,Adults & Health,Rainbow Homecare Ltd,Daycare - Private Contractors Payment,168.48,0,VENDOR
03-10-2022,Adults & Health,Rainbow Homecare Ltd,Daycare - Private Contractors Payment,37.44,0,VENDOR
03-10-2022,Adults & Health,Rainbow Homecare Ltd,Daycare - Private Contractors Payment,37.44,0,VENDOR
03-10-2022,Adults & Health,Rainbow Homecare Ltd,Daycare - Private Contractors Payment,37.44,0,VENDOR
03-10-2022,Adults & Health,Rainbow Homecare Ltd,Home Care - Private Contractors Payment,18.72,0,VENDOR
03-10-2022,Adults & Health,Rainbow Homecare Ltd,Home Care - Private Contractors Payment,56.16,0,VENDOR
03-10-2022,Adults & Health,Rainbow Homecare Ltd,Home Care - Private Contractors Payment,37.44,0,VENDOR
03-10-2022,Adults & Health,Rainbow Homecare Ltd,Home Care - Private Contractors Payment,18.72,0,VENDOR
03-10-2022,Adults & Health,Rainbow Homecare Ltd,Home Care - Private Contractors Payment,18.72,0,VENDOR
03-10-2022,Adults & Health,Rainbow Homecare Ltd,Daycare - Private Contractors Payment,56.16,0,VENDOR
03-10-2022,Adults & Health,Rainbow Homecare Ltd,Home Care - Private Contractors Payment,18.72,0,VENDOR
03-10-2022,Adults & Health,Rainbow Homecare Ltd,Daycare - Private Contractors Payment,84.24,0,VENDOR
03-10-2022,Adults & Health,Rainbow Homecare Ltd,Daycare - Private Contractors Payment,56.16,0,VENDOR
03-10-2022,Adults & Health,L & Q Living,Supported Other Accommodation - Private Contractors Payment,1017.92,0,VENDOR
03-10-2022,Adults & Health,L & Q Living,Supported Other Accommodation - Private Contractors Payment,848.88,0,VENDOR
03-10-2022,Adults & Health,L & Q Living,Supported Other Accommodation - Private Contractors Payment,1017.92,0,VENDOR
03-10-2022,Adults & Health,L & Q Living,Supported Other Accommodation - Private Contractors Payment,1017.92,0,VENDOR
03-10-2022,Dedicated Schools Budget,Sheringham Nursery School,Private Contractors Payment - Other,2000,0,VENDOR
03-10-2022,Children and Young People,J J Fastfood Distribution,Catering And Vending Supplies,335.94,0,VENDOR
03-10-2022,Children and Young People,J J Fastfood Distribution,Catering And Vending Supplies,28.98,0,VENDOR
03-10-2022,Adults & Health,Supporting Care,Home Care - Private Contractors Payment,67.06,0,VENDOR
03-10-2022,Adults & Health,Supporting Care,Home Care - Private Contractors Payment,201.18,0,VENDOR
03-10-2022,Adults & Health,Supporting Care,Home Care - Private Contractors Payment,469.42,0,VENDOR
03-10-2022,Adults & Health,Supporting Care,Home Care - Private Contractors Payment,469.42,0,VENDOR
03-10-2022,Adults & Health,Highland Care Uk Ltd,Home Care - Private Contractors Payment,357,0,VENDOR
03-10-2022,Adults & Health,Highland Care Uk Ltd,Home Care - Private Contractors Payment,357,0,VENDOR
03-10-2022,Adults & Health,Highland Care Uk Ltd,Home Care - Private Contractors Payment,12,0,VENDOR
03-10-2022,Adults & Health,Highland Care Uk Ltd,Home Care - Private Contractors Payment,12,0,VENDOR
03-10-2022,Adults & Health,Highland Care Uk Ltd,Home Care - Private Contractors Payment,357,0,VENDOR
03-10-2022,Adults & Health,Highland Care Uk Ltd,Home Care - Private Contractors Payment,12,0,VENDOR
03-10-2022,Adults & Health,Highland Care Uk Ltd,Home Care - Private Contractors Payment,357,0,VENDOR
03-10-2022,Adults & Health,Highland Care Uk Ltd,Home Care - Private Contractors Payment,12,0,VENDOR
03-10-2022,Children and Young People,Atlantic Lodge (Housing) Ltd,Supported Other Accommodation - Private Contractors Payment,71.9,0,COMMERCIAL SUPPLIER
03-10-2022,Children and Young People,Atlantic Lodge (Housing) Ltd,Supported Other Accommodation - Private Contractors Payment,325,0,COMMERCIAL SUPPLIER
03-10-2022,Children and Young People,Atlantic Lodge (Housing) Ltd,Supported Other Accommodation - Private Contractors Payment,325,0,COMMERCIAL SUPPLIER
03-10-2022,Children and Young People,Atlantic Lodge (Housing) Ltd,Supported Other Accommodation - Private Contractors Payment,325,0,COMMERCIAL SUPPLIER
03-10-2022,Children and Young People,Atlantic Lodge (Housing) Ltd,Supported Other Accommodation - Private Contractors Payment,325,0,COMMERCIAL SUPPLIER
03-10-2022,Children and Young People,Hungerburger Ltd T/a Barking Hotel,Supported Other Accommodation - Private Contractors Payment,1470,0,COMMERCIAL SUPPLIER
03-10-2022,Children and Young People,Hungerburger Ltd T/a Barking Hotel,Supported Other Accommodation - Private Contractors Payment,686,0,COMMERCIAL SUPPLIER
03-10-2022,Children and Young People,Hungerburger Ltd T/a Barking Hotel,Supported Other Accommodation - Private Contractors Payment,686,0,COMMERCIAL SUPPLIER
03-10-2022,Adults & Health,East London Care And Support Limited,Home Care - Private Contractors Payment,19.16,0,VENDOR
03-10-2022,Adults & Health,East London Care And Support Limited,Daycare - Private Contractors Payment,76.64,0,VENDOR
03-10-2022,Adults & Health,East London Care And Support Limited,Home Care - Private Contractors Payment,191.6,0,VENDOR
03-10-2022,Adults & Health,East London Care And Support Limited,Home Care - Private Contractors Payment,14.37,0,VENDOR
03-10-2022,Adults & Health,East London Care And Support Limited,Daycare - Private Contractors Payment,40,0,VENDOR
03-10-2022,Adults & Health,East London Care And Support Limited,Daycare - Private Contractors Payment,95.8,0,VENDOR
03-10-2022,Adults & Health,East London Care And Support Limited,Daycare - Private Contractors Payment,479,0,VENDOR
03-10-2022,Adults & Health,East London Care And Support Limited,Daycare - Private Contractors Payment,421.52,0,VENDOR
03-10-2022,Adults & Health,East London Care And Support Limited,Home Care - Private Contractors Payment,76.64,0,VENDOR
03-10-2022,Adults & Health,East London Care And Support Limited,Daycare - Private Contractors Payment,38.32,0,VENDOR
03-10-2022,Adults & Health,East London Care And Support Limited,Daycare - Private Contractors Payment,38.32,0,VENDOR
03-10-2022,Adults & Health,East London Care And Support Limited,Home Care - Private Contractors Payment,191.6,0,VENDOR
03-10-2022,Adults & Health,East London Care And Support Limited,Home Care - Private Contractors Payment,19.16,0,VENDOR
03-10-2022,Adults & Health,East London Care And Support Limited,Home Care - Private Contractors Payment,38.32,0,VENDOR
03-10-2022,Adults & Health,East London Care And Support Limited,Daycare - Private Contractors Payment,28.74,0,VENDOR
03-10-2022,Adults & Health,East London Care And Support Limited,Home Care - Private Contractors Payment,57.48,0,VENDOR
03-10-2022,Adults & Health,East London Care And Support Limited,Daycare - Private Contractors Payment,76.64,0,VENDOR
03-10-2022,Adults & Health,East London Care And Support Limited,Daycare - Private Contractors Payment,67.06,0,VENDOR
03-10-2022,Adults & Health,East London Care And Support Limited,Respite Care - Private Contractors Payment,38.32,0,VENDOR
03-10-2022,Adults & Health,East London Care And Support Limited,Other Social Services Transfer Payments,9,0,VENDOR
03-10-2022,Adults & Health,East London Care And Support Limited,Other Social Services Transfer Payments,21,0,VENDOR
03-10-2022,Adults & Health,East London Care And Support Limited,Daycare - Private Contractors Payment,38.32,0,VENDOR
03-10-2022,Adults & Health,East London Care And Support Limited,Home Care - Private Contractors Payment,38.32,0,VENDOR
03-10-2022,Adults & Health,East London Care And Support Limited,Daycare - Private Contractors Payment,19.16,0,VENDOR
03-10-2022,Adults & Health,East London Care And Support Limited,Home Care - Private Contractors Payment,19.16,0,VENDOR
03-10-2022,Adults & Health,East London Care And Support Limited,Home Care - Private Contractors Payment,19.16,0,VENDOR
03-10-2022,Adults & Health,East London Care And Support Limited,Daycare - Private Contractors Payment,76.64,0,VENDOR
03-10-2022,Adults & Health,East London Care And Support Limited,Daycare - Private Contractors Payment,76.64,0,VENDOR
03-10-2022,Adults & Health,East London Care And Support Limited,Other Social Services Transfer Payments,9,0,VENDOR
03-10-2022,Adults & Health,East London Care And Support Limited,Daycare - Private Contractors Payment,28.74,0,VENDOR
03-10-2022,Adults & Health,East London Care And Support Limited,Daycare - Private Contractors Payment,57.48,0,VENDOR
03-10-2022,Adults & Health,East London Care And Support Limited,Respite Care - Private Contractors Payment,38.32,0,VENDOR
03-10-2022,Adults & Health,East London Care And Support Limited,Daycare - Private Contractors Payment,421.52,0,VENDOR
03-10-2022,Adults & Health,East London Care And Support Limited,Daycare - Private Contractors Payment,40,0,VENDOR
03-10-2022,Adults & Health,East London Care And Support Limited,Daycare - Private Contractors Payment,38.32,0,VENDOR
03-10-2022,Adults & Health,East London Care And Support Limited,Daycare - Private Contractors Payment,95.8,0,VENDOR
03-10-2022,Adults & Health,East London Care And Support Limited,Home Care - Private Contractors Payment,38.32,0,VENDOR
03-10-2022,Adults & Health,East London Care And Support Limited,Home Care - Private Contractors Payment,28.74,0,VENDOR
03-10-2022,Adults & Health,East London Care And Support Limited,Home Care - Private Contractors Payment,268.24,0,VENDOR
03-10-2022,Adults & Health,East London Care And Support Limited,Home Care - Private Contractors Payment,19.16,0,VENDOR
03-10-2022,Adults & Health,East London Care And Support Limited,Daycare - Private Contractors Payment,479,0,VENDOR
03-10-2022,Adults & Health,East London Care And Support Limited,Home Care - Private Contractors Payment,38.32,0,VENDOR
03-10-2022,Adults & Health,East London Care And Support Limited,Daycare - Private Contractors Payment,47.9,0,VENDOR
03-10-2022,Adults & Health,East London Care And Support Limited,Daycare - Private Contractors Payment,40,0,VENDOR
03-10-2022,Adults & Health,East London Care And Support Limited,Home Care - Private Contractors Payment,76.64,0,VENDOR
03-10-2022,Adults & Health,East London Care And Support Limited,Daycare - Private Contractors Payment,57.48,0,VENDOR
03-10-2022,Adults & Health,East London Care And Support Limited,Daycare - Private Contractors Payment,57.48,0,VENDOR
03-10-2022,Adults & Health,East London Care And Support Limited,Daycare - Private Contractors Payment,57.48,0,VENDOR
03-10-2022,Adults & Health,East London Care And Support Limited,Home Care - Private Contractors Payment,19.16,0,VENDOR
03-10-2022,Adults & Health,East London Care And Support Limited,Daycare - Private Contractors Payment,76.64,0,VENDOR
03-10-2022,Adults & Health,East London Care And Support Limited,Home Care - Private Contractors Payment,19.16,0,VENDOR
03-10-2022,Adults & Health,East London Care And Support Limited,Daycare - Private Contractors Payment,191.6,0,VENDOR
03-10-2022,Adults & Health,East London Care And Support Limited,Daycare - Private Contractors Payment,19.16,0,VENDOR
03-10-2022,Adults & Health,East London Care And Support Limited,Respite Care - Private Contractors Payment,57.48,0,VENDOR
03-10-2022,Adults & Health,East London Care And Support Limited,Daycare - Private Contractors Payment,76.64,0,VENDOR
03-10-2022,Adults & Health,East London Care And Support Limited,Daycare - Private Contractors Payment,114.96,0,VENDOR
03-10-2022,Adults & Health,East London Care And Support Limited,Home Care - Private Contractors Payment,76.64,0,VENDOR
03-10-2022,Adults & Health,East London Care And Support Limited,Home Care - Private Contractors Payment,19.16,0,VENDOR
03-10-2022,Adults & Health,East London Care And Support Limited,Home Care - Private Contractors Payment,234.71,0,VENDOR
03-10-2022,Adults & Health,East London Care And Support Limited,Other Social Services Transfer Payments,9,0,VENDOR
03-10-2022,Adults & Health,East London Care And Support Limited,Home Care - Private Contractors Payment,76.64,0,VENDOR
03-10-2022,Adults & Health,East London Care And Support Limited,Home Care - Private Contractors Payment,28.74,0,VENDOR
03-10-2022,Adults & Health,East London Care And Support Limited,Home Care - Private Contractors Payment,905.31,0,VENDOR
03-10-2022,Adults & Health,East London Care And Support Limited,Home Care - Private Contractors Payment,95.8,0,VENDOR
03-10-2022,Adults & Health,East London Care And Support Limited,Daycare - Private Contractors Payment,383.2,0,VENDOR
03-10-2022,Adults & Health,East London Care And Support Limited,Home Care - Private Contractors Payment,14.37,0,VENDOR
03-10-2022,Adults & Health,East London Care And Support Limited,Daycare - Private Contractors Payment,57.48,0,VENDOR
03-10-2022,Adults & Health,East London Care And Support Limited,Daycare - Private Contractors Payment,28.74,0,VENDOR
03-10-2022,Adults & Health,East London Care And Support Limited,Other Social Services Transfer Payments,9,0,VENDOR
03-10-2022,Adults & Health,East London Care And Support Limited,Respite Care - Private Contractors Payment,38.32,0,VENDOR
03-10-2022,Adults & Health,East London Care And Support Limited,Daycare - Private Contractors Payment,95.8,0,VENDOR
03-10-2022,Adults & Health,East London Care And Support Limited,Home Care - Private Contractors Payment,905.31,0,VENDOR
03-10-2022,Adults & Health,East London Care And Support Limited,Home Care - Private Contractors Payment,19.16,0,VENDOR
03-10-2022,Adults & Health,East London Care And Support Limited,Home Care - Private Contractors Payment,95.8,0,VENDOR
03-10-2022,Adults & Health,East London Care And Support Limited,Daycare - Private Contractors Payment,153.28,0,VENDOR
03-10-2022,Adults & Health,East London Care And Support Limited,Home Care - Private Contractors Payment,28.74,0,VENDOR
03-10-2022,Adults & Health,East London Care And Support Limited,Other Social Services Transfer Payments,9,0,VENDOR
03-10-2022,Adults & Health,East London Care And Support Limited,Daycare - Private Contractors Payment,38.32,0,VENDOR
03-10-2022,Adults & Health,East London Care And Support Limited,Daycare - Private Contractors Payment,383.2,0,VENDOR
03-10-2022,Adults & Health,East London Care And Support Limited,Daycare - Private Contractors Payment,57.48,0,VENDOR
03-10-2022,Adults & Health,East London Care And Support Limited,Home Care - Private Contractors Payment,19.16,0,VENDOR
03-10-2022,Adults & Health,East London Care And Support Limited,Home Care - Private Contractors Payment,28.74,0,VENDOR
03-10-2022,Adults & Health,East London Care And Support Limited,Other Social Services Transfer Payments,21,0,VENDOR
03-10-2022,Adults & Health,East London Care And Support Limited,Daycare - Private Contractors Payment,76.64,0,VENDOR
03-10-2022,Adults & Health,East London Care And Support Limited,Home Care - Private Contractors Payment,19.16,0,VENDOR
03-10-2022,Adults & Health,East London Care And Support Limited,Daycare - Private Contractors Payment,124.54,0,VENDOR
03-10-2022,Adults & Health,East London Care And Support Limited,Daycare - Private Contractors Payment,57.48,0,VENDOR
03-10-2022,Adults & Health,East London Care And Support Limited,Home Care - Private Contractors Payment,19.16,0,VENDOR
03-10-2022,Adults & Health,East London Care And Support Limited,Home Care - Private Contractors Payment,19.16,0,VENDOR
03-10-2022,Adults & Health,East London Care And Support Limited,Daycare - Private Contractors Payment,57.48,0,VENDOR
03-10-2022,Adults & Health,East London Care And Support Limited,Respite Care - Private Contractors Payment,57.48,0,VENDOR
03-10-2022,Adults & Health,East London Care And Support Limited,Home Care - Private Contractors Payment,536.48,0,VENDOR
03-10-2022,Adults & Health,East London Care And Support Limited,Daycare - Private Contractors Payment,153.28,0,VENDOR
03-10-2022,Adults & Health,East London Care And Support Limited,Home Care - Private Contractors Payment,19.16,0,VENDOR
03-10-2022,Adults & Health,East London Care And Support Limited,Home Care - Private Contractors Payment,19.16,0,VENDOR
03-10-2022,Adults & Health,East London Care And Support Limited,Home Care - Private Contractors Payment,19.16,0,VENDOR
03-10-2022,Adults & Health,East London Care And Support Limited,Daycare - Private Contractors Payment,19.16,0,VENDOR
03-10-2022,Adults & Health,East London Care And Support Limited,Daycare - Private Contractors Payment,47.9,0,VENDOR
03-10-2022,Adults & Health,East London Care And Support Limited,Daycare - Private Contractors Payment,38.32,0,VENDOR
03-10-2022,Adults & Health,East London Care And Support Limited,Home Care - Private Contractors Payment,19.16,0,VENDOR
03-10-2022,Adults & Health,East London Care And Support Limited,Daycare - Private Contractors Payment,728.08,0,VENDOR
03-10-2022,Adults & Health,East London Care And Support Limited,Daycare - Private Contractors Payment,19.16,0,VENDOR
03-10-2022,Adults & Health,East London Care And Support Limited,Daycare - Private Contractors Payment,95.8,0,VENDOR
03-10-2022,Adults & Health,East London Care And Support Limited,Daycare - Private Contractors Payment,67.06,0,VENDOR
03-10-2022,Adults & Health,East London Care And Support Limited,Home Care - Private Contractors Payment,335.3,0,VENDOR
03-10-2022,Adults & Health,East London Care And Support Limited,Home Care - Private Contractors Payment,28.74,0,VENDOR
03-10-2022,Adults & Health,East London Care And Support Limited,Daycare - Private Contractors Payment,47.9,0,VENDOR
03-10-2022,Adults & Health,East London Care And Support Limited,Home Care - Private Contractors Payment,14.37,0,VENDOR
03-10-2022,Adults & Health,East London Care And Support Limited,Home Care - Private Contractors Payment,57.48,0,VENDOR
03-10-2022,Adults & Health,East London Care And Support Limited,Daycare - Private Contractors Payment,383.2,0,VENDOR
03-10-2022,Adults & Health,East London Care And Support Limited,Daycare - Private Contractors Payment,40,0,VENDOR
03-10-2022,Adults & Health,East London Care And Support Limited,Home Care - Private Contractors Payment,76.64,0,VENDOR
03-10-2022,Adults & Health,East London Care And Support Limited,Home Care - Private Contractors Payment,268.24,0,VENDOR
03-10-2022,Adults & Health,East London Care And Support Limited,Home Care - Private Contractors Payment,57.48,0,VENDOR
03-10-2022,Adults & Health,East London Care And Support Limited,Home Care - Private Contractors Payment,19.16,0,VENDOR
03-10-2022,Adults & Health,East London Care And Support Limited,Home Care - Private Contractors Payment,905.31,0,VENDOR
03-10-2022,Adults & Health,East London Care And Support Limited,Daycare - Private Contractors Payment,76.64,0,VENDOR
03-10-2022,Adults & Health,East London Care And Support Limited,Daycare - Private Contractors Payment,95.8,0,VENDOR
03-10-2022,Adults & Health,East London Care And Support Limited,Daycare - Private Contractors Payment,40,0,VENDOR
03-10-2022,Adults & Health,East London Care And Support Limited,Daycare - Private Contractors Payment,95.8,0,VENDOR
03-10-2022,Adults & Health,East London Care And Support Limited,Home Care - Private Contractors Payment,76.64,0,VENDOR
03-10-2022,Adults & Health,East London Care And Support Limited,Daycare - Private Contractors Payment,67.06,0,VENDOR
03-10-2022,Adults & Health,East London Care And Support Limited,Home Care - Private Contractors Payment,335.3,0,VENDOR
03-10-2022,Adults & Health,East London Care And Support Limited,Home Care - Private Contractors Payment,76.64,0,VENDOR
03-10-2022,Adults & Health,East London Care And Support Limited,Home Care - Private Contractors Payment,28.74,0,VENDOR
03-10-2022,Adults & Health,East London Care And Support Limited,Home Care - Private Contractors Payment,38.32,0,VENDOR
03-10-2022,Adults & Health,East London Care And Support Limited,Home Care - Private Contractors Payment,19.16,0,VENDOR
03-10-2022,Adults & Health,East London Care And Support Limited,Daycare - Private Contractors Payment,114.96,0,VENDOR
03-10-2022,Adults & Health,East London Care And Support Limited,Daycare - Private Contractors Payment,76.64,0,VENDOR
03-10-2022,Adults & Health,East London Care And Support Limited,Home Care - Private Contractors Payment,28.74,0,VENDOR
03-10-2022,Adults & Health,East London Care And Support Limited,Daycare - Private Contractors Payment,38.32,0,VENDOR
03-10-2022,Adults & Health,East London Care And Support Limited,Daycare - Private Contractors Payment,38.32,0,VENDOR
03-10-2022,Adults & Health,East London Care And Support Limited,Daycare - Private Contractors Payment,47.9,0,VENDOR
03-10-2022,Adults & Health,East London Care And Support Limited,Daycare - Private Contractors Payment,268.24,0,VENDOR
03-10-2022,Adults & Health,East London Care And Support Limited,Home Care - Private Contractors Payment,19.16,0,VENDOR
03-10-2022,Adults & Health,East London Care And Support Limited,Home Care - Private Contractors Payment,28.74,0,VENDOR
03-10-2022,Adults & Health,East London Care And Support Limited,Daycare - Private Contractors Payment,57.48,0,VENDOR
03-10-2022,Adults & Health,East London Care And Support Limited,Daycare - Private Contractors Payment,57.48,0,VENDOR
03-10-2022,Adults & Health,East London Care And Support Limited,Home Care - Private Contractors Payment,14.37,0,VENDOR
03-10-2022,Adults & Health,East London Care And Support Limited,Home Care - Private Contractors Payment,57.48,0,VENDOR
03-10-2022,Adults & Health,East London Care And Support Limited,Daycare - Private Contractors Payment,38.32,0,VENDOR
03-10-2022,Adults & Health,East London Care And Support Limited,Home Care - Private Contractors Payment,191.6,0,VENDOR
03-10-2022,Adults & Health,East London Care And Support Limited,Home Care - Private Contractors Payment,38.32,0,VENDOR
03-10-2022,Adults & Health,East London Care And Support Limited,Daycare - Private Contractors Payment,191.6,0,VENDOR
03-10-2022,Adults & Health,East London Care And Support Limited,Daycare - Private Contractors Payment,57.48,0,VENDOR
03-10-2022,Adults & Health,East London Care And Support Limited,Respite Care - Private Contractors Payment,57.48,0,VENDOR
03-10-2022,Adults & Health,East London Care And Support Limited,Daycare - Private Contractors Payment,57.48,0,VENDOR
03-10-2022,Adults & Health,East London Care And Support Limited,Other Social Services Transfer Payments,9,0,VENDOR
03-10-2022,Adults & Health,East London Care And Support Limited,Daycare - Private Contractors Payment,95.8,0,VENDOR
03-10-2022,Adults & Health,East London Care And Support Limited,Daycare - Private Contractors Payment,19.16,0,VENDOR
03-10-2022,Adults & Health,East London Care And Support Limited,Home Care - Private Contractors Payment,191.6,0,VENDOR
03-10-2022,Adults & Health,East London Care And Support Limited,Home Care - Private Contractors Payment,234.71,0,VENDOR
03-10-2022,Adults & Health,East London Care And Support Limited,Home Care - Private Contractors Payment,191.6,0,VENDOR
03-10-2022,Adults & Health,East London Care And Support Limited,Daycare - Private Contractors Payment,57.48,0,VENDOR
03-10-2022,Adults & Health,East London Care And Support Limited,Daycare - Private Contractors Payment,28.74,0,VENDOR
03-10-2022,Adults & Health,East London Care And Support Limited,Daycare - Private Contractors Payment,479,0,VENDOR
03-10-2022,Adults & Health,East London Care And Support Limited,Respite Care - Private Contractors Payment,57.48,0,VENDOR
03-10-2022,Adults & Health,East London Care And Support Limited,Home Care - Private Contractors Payment,19.16,0,VENDOR
03-10-2022,Adults & Health,East London Care And Support Limited,Daycare - Private Contractors Payment,57.48,0,VENDOR
03-10-2022,Adults & Health,East London Care And Support Limited,Daycare - Private Contractors Payment,67.06,0,VENDOR
03-10-2022,Adults & Health,East London Care And Support Limited,Home Care - Private Contractors Payment,191.6,0,VENDOR
03-10-2022,Adults & Health,East London Care And Support Limited,Other Social Services Transfer Payments,35,0,VENDOR
03-10-2022,Adults & Health,East London Care And Support Limited,Daycare - Private Contractors Payment,76.64,0,VENDOR
03-10-2022,Adults & Health,East London Care And Support Limited,Daycare - Private Contractors Payment,28.74,0,VENDOR
03-10-2022,Adults & Health,East London Care And Support Limited,Daycare - Private Contractors Payment,47.9,0,VENDOR
03-10-2022,Adults & Health,East London Care And Support Limited,Home Care - Private Contractors Payment,19.16,0,VENDOR
03-10-2022,Adults & Health,East London Care And Support Limited,Daycare - Private Contractors Payment,114.96,0,VENDOR
03-10-2022,Adults & Health,East London Care And Support Limited,Daycare - Private Contractors Payment,38.32,0,VENDOR
03-10-2022,Adults & Health,East London Care And Support Limited,Home Care - Private Contractors Payment,19.16,0,VENDOR
03-10-2022,Adults & Health,East London Care And Support Limited,Daycare - Private Contractors Payment,114.96,0,VENDOR
03-10-2022,Adults & Health,East London Care And Support Limited,Daycare - Private Contractors Payment,728.08,0,VENDOR
03-10-2022,Adults & Health,East London Care And Support Limited,Home Care - Private Contractors Payment,536.48,0,VENDOR
03-10-2022,Adults & Health,East London Care And Support Limited,Other Social Services Transfer Payments,35,0,VENDOR
03-10-2022,Adults & Health,East London Care And Support Limited,Home Care - Private Contractors Payment,19.16,0,VENDOR
03-10-2022,Adults & Health,East London Care And Support Limited,Home Care - Private Contractors Payment,234.71,0,VENDOR
03-10-2022,Adults & Health,East London Care And Support Limited,Daycare - Private Contractors Payment,728.08,0,VENDOR
03-10-2022,Adults & Health,East London Care And Support Limited,Daycare - Private Contractors Payment,383.2,0,VENDOR
03-10-2022,Adults & Health,East London Care And Support Limited,Daycare - Private Contractors Payment,383.2,0,VENDOR
03-10-2022,Adults & Health,East London Care And Support Limited,Home Care - Private Contractors Payment,19.16,0,VENDOR
03-10-2022,Adults & Health,East London Care And Support Limited,Daycare - Private Contractors Payment,28.74,0,VENDOR
03-10-2022,Adults & Health,East London Care And Support Limited,Home Care - Private Contractors Payment,28.74,0,VENDOR
03-10-2022,Adults & Health,East London Care And Support Limited,Daycare - Private Contractors Payment,76.64,0,VENDOR
03-10-2022,Adults & Health,East London Care And Support Limited,Daycare - Private Contractors Payment,268.24,0,VENDOR
03-10-2022,Adults & Health,East London Care And Support Limited,Home Care - Private Contractors Payment,19.16,0,VENDOR
03-10-2022,Adults & Health,East London Care And Support Limited,Home Care - Private Contractors Payment,19.16,0,VENDOR
03-10-2022,Adults & Health,East London Care And Support Limited,Daycare - Private Contractors Payment,76.64,0,VENDOR
03-10-2022,Adults & Health,East London Care And Support Limited,Home Care - Private Contractors Payment,19.16,0,VENDOR
03-10-2022,Adults & Health,East London Care And Support Limited,Home Care - Private Contractors Payment,905.31,0,VENDOR
03-10-2022,Adults & Health,East London Care And Support Limited,Daycare - Private Contractors Payment,57.48,0,VENDOR
03-10-2022,Adults & Health,East London Care And Support Limited,Home Care - Private Contractors Payment,28.74,0,VENDOR
03-10-2022,Adults & Health,East London Care And Support Limited,Daycare - Private Contractors Payment,28.74,0,VENDOR
03-10-2022,Adults & Health,East London Care And Support Limited,Daycare - Private Contractors Payment,191.6,0,VENDOR
03-10-2022,Adults & Health,East London Care And Support Limited,Daycare - Private Contractors Payment,114.96,0,VENDOR
03-10-2022,Adults & Health,East London Care And Support Limited,Daycare - Private Contractors Payment,153.28,0,VENDOR
03-10-2022,Adults & Health,East London Care And Support Limited,Daycare - Private Contractors Payment,124.54,0,VENDOR
03-10-2022,Adults & Health,East London Care And Support Limited,Daycare - Private Contractors Payment,383.2,0,VENDOR
03-10-2022,Adults & Health,East London Care And Support Limited,Daycare - Private Contractors Payment,76.64,0,VENDOR
03-10-2022,Adults & Health,East London Care And Support Limited,Respite Care - Private Contractors Payment,57.48,0,VENDOR
03-10-2022,Adults & Health,East London Care And Support Limited,Daycare - Private Contractors Payment,28.74,0,VENDOR
03-10-2022,Adults & Health,East London Care And Support Limited,Home Care - Private Contractors Payment,19.16,0,VENDOR
03-10-2022,Adults & Health,East London Care And Support Limited,Daycare - Private Contractors Payment,19.16,0,VENDOR
03-10-2022,Adults & Health,East London Care And Support Limited,Daycare - Private Contractors Payment,57.48,0,VENDOR
03-10-2022,Adults & Health,East London Care And Support Limited,Home Care - Private Contractors Payment,95.8,0,VENDOR
03-10-2022,Adults & Health,East London Care And Support Limited,Home Care - Private Contractors Payment,536.48,0,VENDOR
03-10-2022,Adults & Health,East London Care And Support Limited,Home Care - Private Contractors Payment,19.16,0,VENDOR
03-10-2022,Adults & Health,East London Care And Support Limited,Daycare - Private Contractors Payment,114.96,0,VENDOR
03-10-2022,Adults & Health,East London Care And Support Limited,Daycare - Private Contractors Payment,38.32,0,VENDOR
03-10-2022,Adults & Health,East London Care And Support Limited,Daycare - Private Contractors Payment,57.48,0,VENDOR
03-10-2022,Adults & Health,East London Care And Support Limited,Daycare - Private Contractors Payment,38.32,0,VENDOR
03-10-2022,Adults & Health,East London Care And Support Limited,Home Care - Private Contractors Payment,335.3,0,VENDOR
03-10-2022,Adults & Health,East London Care And Support Limited,Daycare - Private Contractors Payment,38.32,0,VENDOR
03-10-2022,Adults & Health,East London Care And Support Limited,Other Social Services Transfer Payments,21,0,VENDOR
03-10-2022,Adults & Health,East London Care And Support Limited,Respite Care - Private Contractors Payment,38.32,0,VENDOR
03-10-2022,Adults & Health,East London Care And Support Limited,Daycare - Private Contractors Payment,40,0,VENDOR
03-10-2022,Adults & Health,East London Care And Support Limited,Daycare - Private Contractors Payment,76.64,0,VENDOR
03-10-2022,Adults & Health,East London Care And Support Limited,Home Care - Private Contractors Payment,19.16,0,VENDOR
03-10-2022,Adults & Health,East London Care And Support Limited,Home Care - Private Contractors Payment,19.16,0,VENDOR
03-10-2022,Adults & Health,East London Care And Support Limited,Daycare - Private Contractors Payment,421.52,0,VENDOR
03-10-2022,Adults & Health,East London Care And Support Limited,Daycare - Private Contractors Payment,153.28,0,VENDOR
03-10-2022,Adults & Health,East London Care And Support Limited,Daycare - Private Contractors Payment,268.24,0,VENDOR
03-10-2022,Adults & Health,East London Care And Support Limited,Daycare - Private Contractors Payment,57.48,0,VENDOR
03-10-2022,Adults & Health,East London Care And Support Limited,Home Care - Private Contractors Payment,19.16,0,VENDOR
03-10-2022,Adults & Health,East London Care And Support Limited,Daycare - Private Contractors Payment,38.32,0,VENDOR
03-10-2022,Adults & Health,East London Care And Support Limited,Home Care - Private Contractors Payment,19.16,0,VENDOR
03-10-2022,Adults & Health,East London Care And Support Limited,Home Care - Private Contractors Payment,19.16,0,VENDOR
03-10-2022,Adults & Health,East London Care And Support Limited,Daycare - Private Contractors Payment,76.64,0,VENDOR
03-10-2022,Adults & Health,East London Care And Support Limited,Home Care - Private Contractors Payment,234.71,0,VENDOR
03-10-2022,Adults & Health,East London Care And Support Limited,Respite Care - Private Contractors Payment,38.32,0,VENDOR
03-10-2022,Adults & Health,East London Care And Support Limited,Home Care - Private Contractors Payment,19.16,0,VENDOR
03-10-2022,Adults & Health,East London Care And Support Limited,Daycare - Private Contractors Payment,47.9,0,VENDOR
03-10-2022,Adults & Health,East London Care And Support Limited,Home Care - Private Contractors Payment,76.64,0,VENDOR
03-10-2022,Adults & Health,East London Care And Support Limited,Daycare - Private Contractors Payment,124.54,0,VENDOR
03-10-2022,Adults & Health,East London Care And Support Limited,Home Care - Private Contractors Payment,19.16,0,VENDOR
03-10-2022,Adults & Health,East London Care And Support Limited,Daycare - Private Contractors Payment,57.48,0,VENDOR
03-10-2022,Adults & Health,East London Care And Support Limited,Respite Care - Private Contractors Payment,57.48,0,VENDOR
03-10-2022,Adults & Health,East London Care And Support Limited,Home Care - Private Contractors Payment,18.28,0,VENDOR
03-10-2022,Adults & Health,East London Care And Support Limited,Daycare - Private Contractors Payment,76.64,0,VENDOR
03-10-2022,Adults & Health,East London Care And Support Limited,Other Social Services Transfer Payments,35,0,VENDOR
03-10-2022,Adults & Health,East London Care And Support Limited,Daycare - Private Contractors Payment,95.8,0,VENDOR
03-10-2022,Adults & Health,East London Care And Support Limited,Daycare - Private Contractors Payment,76.64,0,VENDOR
03-10-2022,Adults & Health,East London Care And Support Limited,Home Care - Private Contractors Payment,19.16,0,VENDOR
03-10-2022,Adults & Health,East London Care And Support Limited,Other Social Services Transfer Payments,9,0,VENDOR
03-10-2022,Adults & Health,East London Care And Support Limited,Home Care - Private Contractors Payment,191.6,0,VENDOR
03-10-2022,Adults & Health,East London Care And Support Limited,Daycare - Private Contractors Payment,28.74,0,VENDOR
03-10-2022,Adults & Health,East London Care And Support Limited,Daycare - Private Contractors Payment,47.9,0,VENDOR
03-10-2022,Adults & Health,East London Care And Support Limited,Daycare - Private Contractors Payment,38.32,0,VENDOR
03-10-2022,Adults & Health,East London Care And Support Limited,Home Care - Private Contractors Payment,28.74,0,VENDOR
03-10-2022,Adults & Health,East London Care And Support Limited,Daycare - Private Contractors Payment,479,0,VENDOR
03-10-2022,Adults & Health,East London Care And Support Limited,Other Social Services Transfer Payments,9,0,VENDOR
03-10-2022,Adults & Health,East London Care And Support Limited,Daycare - Private Contractors Payment,57.48,0,VENDOR
03-10-2022,Adults & Health,East London Care And Support Limited,Home Care - Private Contractors Payment,19.16,0,VENDOR
03-10-2022,Adults & Health,East London Care And Support Limited,Daycare - Private Contractors Payment,421.52,0,VENDOR
03-10-2022,Adults & Health,East London Care And Support Limited,Daycare - Private Contractors Payment,40,0,VENDOR
03-10-2022,Adults & Health,East London Care And Support Limited,Daycare - Private Contractors Payment,19.16,0,VENDOR
03-10-2022,Adults & Health,East London Care And Support Limited,Home Care - Private Contractors Payment,191.6,0,VENDOR
03-10-2022,Adults & Health,East London Care And Support Limited,Other Social Services Transfer Payments,35,0,VENDOR
03-10-2022,Adults & Health,East London Care And Support Limited,Daycare - Private Contractors Payment,76.64,0,VENDOR
03-10-2022,Adults & Health,East London Care And Support Limited,Home Care - Private Contractors Payment,38.32,0,VENDOR
03-10-2022,Adults & Health,East London Care And Support Limited,Home Care - Private Contractors Payment,172.44,0,VENDOR
03-10-2022,Adults & Health,East London Care And Support Limited,Home Care - Private Contractors Payment,38.32,0,VENDOR
03-10-2022,Adults & Health,East London Care And Support Limited,Daycare - Private Contractors Payment,191.6,0,VENDOR
03-10-2022,Adults & Health,East London Care And Support Limited,Respite Care - Private Contractors Payment,57.48,0,VENDOR
03-10-2022,Adults & Health,East London Care And Support Limited,Daycare - Private Contractors Payment,57.48,0,VENDOR
03-10-2022,Adults & Health,East London Care And Support Limited,Respite Care - Private Contractors Payment,38.32,0,VENDOR
03-10-2022,Adults & Health,East London Care And Support Limited,Daycare - Private Contractors Payment,38.32,0,VENDOR
03-10-2022,Adults & Health,East London Care And Support Limited,Home Care - Private Contractors Payment,19.16,0,VENDOR
03-10-2022,Adults & Health,East London Care And Support Limited,Daycare - Private Contractors Payment,28.74,0,VENDOR
03-10-2022,Adults & Health,East London Care And Support Limited,Daycare - Private Contractors Payment,114.96,0,VENDOR
03-10-2022,Adults & Health,East London Care And Support Limited,Home Care - Private Contractors Payment,38.32,0,VENDOR
03-10-2022,Adults & Health,East London Care And Support Limited,Daycare - Private Contractors Payment,57.48,0,VENDOR
03-10-2022,Adults & Health,East London Care And Support Limited,Daycare - Private Contractors Payment,40,0,VENDOR
03-10-2022,Adults & Health,East London Care And Support Limited,Daycare - Private Contractors Payment,76.64,0,VENDOR
03-10-2022,Adults & Health,East London Care And Support Limited,Home Care - Private Contractors Payment,268.24,0,VENDOR
03-10-2022,Adults & Health,East London Care And Support Limited,Daycare - Private Contractors Payment,124.54,0,VENDOR
03-10-2022,Adults & Health,East London Care And Support Limited,Daycare - Private Contractors Payment,19.16,0,VENDOR
03-10-2022,Adults & Health,East London Care And Support Limited,Daycare - Private Contractors Payment,38.32,0,VENDOR
03-10-2022,Adults & Health,East London Care And Support Limited,Daycare - Private Contractors Payment,76.64,0,VENDOR
03-10-2022,Adults & Health,East London Care And Support Limited,Daycare - Private Contractors Payment,47.9,0,VENDOR
03-10-2022,Adults & Health,East London Care And Support Limited,Home Care - Private Contractors Payment,19.16,0,VENDOR
03-10-2022,Adults & Health,East London Care And Support Limited,Home Care - Private Contractors Payment,268.24,0,VENDOR
03-10-2022,Adults & Health,East London Care And Support Limited,Daycare - Private Contractors Payment,95.8,0,VENDOR
03-10-2022,Adults & Health,East London Care And Support Limited,Daycare - Private Contractors Payment,57.48,0,VENDOR
03-10-2022,Adults & Health,East London Care And Support Limited,Home Care - Private Contractors Payment,19.16,0,VENDOR
03-10-2022,Adults & Health,East London Care And Support Limited,Other Social Services Transfer Payments,21,0,VENDOR
03-10-2022,Adults & Health,East London Care And Support Limited,Home Care - Private Contractors Payment,19.16,0,VENDOR
03-10-2022,Adults & Health,East London Care And Support Limited,Home Care - Private Contractors Payment,19.16,0,VENDOR
03-10-2022,Adults & Health,East London Care And Support Limited,Daycare - Private Contractors Payment,57.48,0,VENDOR
03-10-2022,Adults & Health,East London Care And Support Limited,Daycare - Private Contractors Payment,728.08,0,VENDOR
03-10-2022,Adults & Health,East London Care And Support Limited,Home Care - Private Contractors Payment,95.8,0,VENDOR
03-10-2022,Adults & Health,East London Care And Support Limited,Daycare - Private Contractors Payment,383.2,0,VENDOR
03-10-2022,Adults & Health,East London Care And Support Limited,Daycare - Private Contractors Payment,28.74,0,VENDOR
03-10-2022,Adults & Health,East London Care And Support Limited,Respite Care - Private Contractors Payment,38.32,0,VENDOR
03-10-2022,Adults & Health,East London Care And Support Limited,Daycare - Private Contractors Payment,28.74,0,VENDOR
03-10-2022,Adults & Health,East London Care And Support Limited,Home Care - Private Contractors Payment,335.3,0,VENDOR
03-10-2022,Adults & Health,East London Care And Support Limited,Daycare - Private Contractors Payment,268.24,0,VENDOR
03-10-2022,Adults & Health,East London Care And Support Limited,Respite Care - Private Contractors Payment,38.32,0,VENDOR
03-10-2022,Adults & Health,East London Care And Support Limited,Daycare - Private Contractors Payment,38.32,0,VENDOR
03-10-2022,Adults & Health,East London Care And Support Limited,Daycare - Private Contractors Payment,57.48,0,VENDOR
03-10-2022,Adults & Health,East London Care And Support Limited,Daycare - Private Contractors Payment,114.96,0,VENDOR
03-10-2022,Adults & Health,East London Care And Support Limited,Home Care - Private Contractors Payment,19.16,0,VENDOR
03-10-2022,Adults & Health,East London Care And Support Limited,Home Care - Private Contractors Payment,28.74,0,VENDOR
03-10-2022,Adults & Health,East London Care And Support Limited,Daycare - Private Contractors Payment,57.48,0,VENDOR
03-10-2022,Adults & Health,East London Care And Support Limited,Daycare - Private Contractors Payment,57.48,0,VENDOR
03-10-2022,Adults & Health,East London Care And Support Limited,Daycare - Private Contractors Payment,38.32,0,VENDOR
03-10-2022,Adults & Health,East London Care And Support Limited,Daycare - Private Contractors Payment,57.48,0,VENDOR
03-10-2022,Adults & Health,East London Care And Support Limited,Daycare - Private Contractors Payment,57.48,0,VENDOR
03-10-2022,Adults & Health,East London Care And Support Limited,Home Care - Private Contractors Payment,19.16,0,VENDOR
03-10-2022,Adults & Health,East London Care And Support Limited,Daycare - Private Contractors Payment,383.2,0,VENDOR
03-10-2022,Adults & Health,East London Care And Support Limited,Respite Care - Private Contractors Payment,57.48,0,VENDOR
03-10-2022,Adults & Health,East London Care And Support Limited,Home Care - Private Contractors Payment,536.48,0,VENDOR
03-10-2022,Adults & Health,East London Care And Support Limited,Daycare - Private Contractors Payment,38.32,0,VENDOR
03-10-2022,Adults & Health,East London Care And Support Limited,Home Care - Private Contractors Payment,19.16,0,VENDOR
03-10-2022,Marketing,Sleeping Lapin,Events,8660,0,INDIVIDUALS
03-10-2022,Marketing,Personal Information - Redacted,Events,2201,0,COMMERCIAL SUPPLIER
03-10-2022,Housing Revenue Account,Now Medical,Professional Services - General,1200,0,VENDOR
03-10-2022,Inclusive Economy & Housing,Now Medical,Professional Services - General,1540,0,VENDOR
03-10-2022,Dedicated Schools Budget,Personal Information - Redacted,Schools - Transfer Payment,306006.5,0,NON COMMERCIAL SUPPLIER
03-10-2022,Dedicated Schools Budget,Personal Information - Redacted,Schools - Transfer Payment,104677.5,0,COMMERCIAL SUPPLIER
03-10-2022,Adults & Health,Ebenezer Residential Care Home,Residential Placements - Private Contractors Payment,1400,0,VENDOR
03-10-2022,Adults & Health,Ebenezer Residential Care Home,Residential Placements - Private Contractors Payment,1400,0,VENDOR
03-10-2022,Adults & Health,Ebenezer Residential Care Home,Residential Placements - Private Contractors Payment,1400,0,VENDOR
03-10-2022,Adults & Health,Ebenezer Residential Care Home,Residential Placements - Private Contractors Payment,1400,0,VENDOR
03-10-2022,Adults & Health,Nellsar Care Homes,Residential Care Income,-156.95,0,NON COMMERCIAL SUPPLIER
03-10-2022,Adults & Health,Nellsar Care Homes,Residential Placements - Private Contractors Payment,580,0,NON COMMERCIAL SUPPLIER
03-10-2022,Adults & Health,Nellsar Care Homes,Residential Care Income,-156.95,0,NON COMMERCIAL SUPPLIER
03-10-2022,Adults & Health,Nellsar Care Homes,Residential Placements - Private Contractors Payment,580,0,NON COMMERCIAL SUPPLIER
03-10-2022,Adults & Health,Nellsar Care Homes,Residential Placements - Private Contractors Payment,580,0,NON COMMERCIAL SUPPLIER
03-10-2022,Adults & Health,Nellsar Care Homes,Residential Care Income,-156.95,0,NON COMMERCIAL SUPPLIER
03-10-2022,Adults & Health,Nellsar Care Homes,Residential Care Income,-156.95,0,NON COMMERCIAL SUPPLIER
03-10-2022,Adults & Health,Nellsar Care Homes,Residential Placements - Private Contractors Payment,580,0,NON COMMERCIAL SUPPLIER
03-10-2022,Adults & Health,Sasa Homes Limited,Respite Care - Private Contractors Payment,2500,0,COMMERCIAL SUPPLIER
03-10-2022,Adults & Health,Sasa Homes Limited,Respite Care - Private Contractors Payment,2500,0,COMMERCIAL SUPPLIER
03-10-2022,Adults & Health,Sasa Homes Limited,Respite Care - Private Contractors Payment,2500,0,COMMERCIAL SUPPLIER
03-10-2022,Adults & Health,Sasa Homes Limited,Respite Care - Private Contractors Payment,2500,0,COMMERCIAL SUPPLIER
03-10-2022,Adults & Health,Barchester Healthcare Homes Ltd Re- Ashlar House,Nursing Homes - Private Contractors Payment,834.44,0,NON COMMERCIAL SUPPLIER
03-10-2022,Adults & Health,Barchester Healthcare Homes Ltd Re- Ashlar House,Nursing Homes - Private Contractors Payment,834.44,0,NON COMMERCIAL SUPPLIER
03-10-2022,Adults & Health,Barchester Healthcare Homes Ltd Re- Ashlar House,Nursing Homes - Private Contractors Payment,834.44,0,NON COMMERCIAL SUPPLIER
03-10-2022,Adults & Health,Barchester Healthcare Homes Ltd Re- Ashlar House,Nursing Homes - Private Contractors Payment,834.44,0,NON COMMERCIAL SUPPLIER
03-10-2022,Adults & Health,Woodlands Nursing Home,Nursing Homes - Private Contractors Payment,549.44,0,COMMERCIAL SUPPLIER
03-10-2022,Adults & Health,Woodlands Nursing Home,Nursing Homes - Private Contractors Payment,549.44,0,COMMERCIAL SUPPLIER
03-10-2022,Adults & Health,Woodlands Nursing Home,Nursing Homes - Private Contractors Payment,549.44,0,COMMERCIAL SUPPLIER
03-10-2022,Adults & Health,Woodlands Nursing Home,Nursing Homes - Private Contractors Payment,549.44,0,COMMERCIAL SUPPLIER
03-10-2022,Adults & Health,DMP Healthcare (Cherry Orchard) Ltd,Nursing Homes - Private Contractors Payment,626,0,COMMERCIAL SUPPLIER
03-10-2022,Adults & Health,DMP Healthcare (Cherry Orchard) Ltd,Nursing Homes - Private Contractors Payment,626,0,COMMERCIAL SUPPLIER
03-10-2022,Adults & Health,DMP Healthcare (Cherry Orchard) Ltd,Nursing Homes - Private Contractors Payment,626,0,COMMERCIAL SUPPLIER
03-10-2022,Adults & Health,DMP Healthcare (Cherry Orchard) Ltd,Nursing Homes - Private Contractors Payment,626,0,COMMERCIAL SUPPLIER
03-10-2022,Adults & Health,Rosewood Lodge,Residential Placements - Private Contractors Payment,586.14,0,VENDOR
03-10-2022,Adults & Health,Rosewood Lodge,Residential Placements - Private Contractors Payment,586.14,0,VENDOR
03-10-2022,Adults & Health,Rosewood Lodge,Residential Placements - Private Contractors Payment,586.14,0,VENDOR
03-10-2022,Adults & Health,Rosewood Lodge,Residential Placements - Private Contractors Payment,586.14,0,VENDOR
03-10-2022,Adults & Health,Chosen Care Group Ltd,Home Care - Private Contractors Payment,438.7,0,VENDOR
03-10-2022,Adults & Health,Chosen Care Group Ltd,Home Care - Private Contractors Payment,438.7,0,VENDOR
03-10-2022,Adults & Health,Chosen Care Group Ltd,Home Care - Private Contractors Payment,438.7,0,VENDOR
03-10-2022,Adults & Health,Chosen Care Group Ltd,Home Care - Private Contractors Payment,438.7,0,VENDOR
03-10-2022,Adults & Health,Trees Park (Eastham) Limited,Residential Placements - Private Contractors Payment,604,0,VENDOR
03-10-2022,Adults & Health,Trees Park (Eastham) Limited,Residential Placements - Private Contractors Payment,604,0,VENDOR
03-10-2022,Adults & Health,Trees Park (Eastham) Limited,Residential Placements - Private Contractors Payment,604,0,VENDOR
03-10-2022,Adults & Health,Trees Park (Eastham) Limited,Residential Placements - Private Contractors Payment,604,0,VENDOR
03-10-2022,Adults & Health,Westminster Health Care Limited,Nursing Homes - Private Contractors Payment,702.44,0,COMMERCIAL SUPPLIER
03-10-2022,Adults & Health,Westminster Health Care Limited,Nursing Homes - Private Contractors Payment,702.44,0,COMMERCIAL SUPPLIER
03-10-2022,Adults & Health,Westminster Health Care Limited,Nursing Homes - Private Contractors Payment,702.44,0,COMMERCIAL SUPPLIER
03-10-2022,Adults & Health,Westminster Health Care Limited,Nursing Homes - Private Contractors Payment,702.44,0,COMMERCIAL SUPPLIER
03-10-2022,Adults & Health,Trees Park (Eastham) Limited,Residential Placements - Private Contractors Payment,604,0,VENDOR
03-10-2022,Adults & Health,Trees Park (Eastham) Limited,Residential Placements - Private Contractors Payment,604,0,VENDOR
03-10-2022,Adults & Health,Trees Park (Eastham) Limited,Residential Placements - Private Contractors Payment,604,0,VENDOR
03-10-2022,Adults & Health,Trees Park (Eastham) Limited,Residential Placements - Private Contractors Payment,604,0,VENDOR
03-10-2022,Adults & Health,Trees Park (Eastham) Limited,Residential Placements - Private Contractors Payment,613,0,VENDOR
03-10-2022,Adults & Health,Trees Park (Eastham) Limited,Residential Placements - Private Contractors Payment,613,0,VENDOR
03-10-2022,Adults & Health,Trees Park (Eastham) Limited,Residential Placements - Private Contractors Payment,613,0,VENDOR
03-10-2022,Adults & Health,Trees Park (Eastham) Limited,Residential Placements - Private Contractors Payment,613,0,VENDOR
03-10-2022,Adults & Health,Aldanat Care,Residential Placements - Private Contractors Payment,3668.89,0,VENDOR
03-10-2022,Adults & Health,Aldanat Care,Residential Placements - Private Contractors Payment,3668.89,0,VENDOR
03-10-2022,Adults & Health,Aldanat Care,Residential Placements - Private Contractors Payment,3668.89,0,VENDOR
03-10-2022,Adults & Health,Aldanat Care,Residential Placements - Private Contractors Payment,3668.89,0,VENDOR
03-10-2022,Adults & Health,Voyage 1 Ltd,Residential Placements - Private Contractors Payment,1520,0,COMMERCIAL SUPPLIER
03-10-2022,Adults & Health,Voyage 1 Ltd,Residential Care Income,-143.35,0,COMMERCIAL SUPPLIER
03-10-2022,Adults & Health,Voyage 1 Ltd,Residential Care Income,-143.35,0,COMMERCIAL SUPPLIER
03-10-2022,Adults & Health,Voyage 1 Ltd,Residential Placements - Private Contractors Payment,1520,0,COMMERCIAL SUPPLIER
03-10-2022,Adults & Health,Voyage 1 Ltd,Residential Care Income,-143.35,0,COMMERCIAL SUPPLIER
03-10-2022,Adults & Health,Voyage 1 Ltd,Residential Placements - Private Contractors Payment,1520,0,COMMERCIAL SUPPLIER
03-10-2022,Adults & Health,Voyage 1 Ltd,Residential Care Income,-143.35,0,COMMERCIAL SUPPLIER
03-10-2022,Adults & Health,Voyage 1 Ltd,Residential Placements - Private Contractors Payment,1520,0,COMMERCIAL SUPPLIER
03-10-2022,Adults & Health,Folkestone Nursing Home,Nursing Homes - Private Contractors Payment,825.58,0,VENDOR
03-10-2022,Adults & Health,Folkestone Nursing Home,Nursing Homes - Private Contractors Payment,825.58,0,VENDOR
03-10-2022,Adults & Health,Folkestone Nursing Home,Nursing Homes - Private Contractors Payment,825.58,0,VENDOR
03-10-2022,Adults & Health,Folkestone Nursing Home,Nursing Homes - Private Contractors Payment,825.58,0,VENDOR
03-10-2022,Adults & Health,Trees Park (Eastham) Limited,Nursing Homes - Private Contractors Payment,615,0,VENDOR
03-10-2022,Adults & Health,Trees Park (Eastham) Limited,Nursing Homes - Private Contractors Payment,615,0,VENDOR
03-10-2022,Adults & Health,Trees Park (Eastham) Limited,Nursing Homes - Private Contractors Payment,615,0,VENDOR
03-10-2022,Adults & Health,Trees Park (Eastham) Limited,Nursing Homes - Private Contractors Payment,615,0,VENDOR
03-10-2022,Adults & Health,Caring Homes Healthcare Group t/a Moorlands,Nursing Homes - Private Contractors Payment,750,0,NON COMMERCIAL SUPPLIER
03-10-2022,Adults & Health,Caring Homes Healthcare Group t/a Moorlands,Residential Care Income,-156.95,0,NON COMMERCIAL SUPPLIER
03-10-2022,Adults & Health,Caring Homes Healthcare Group t/a Moorlands,Nursing Homes - Private Contractors Payment,750,0,NON COMMERCIAL SUPPLIER
03-10-2022,Adults & Health,Caring Homes Healthcare Group t/a Moorlands,Residential Care Income,-156.95,0,NON COMMERCIAL SUPPLIER
03-10-2022,Adults & Health,Caring Homes Healthcare Group t/a Moorlands,Residential Care Income,-156.95,0,NON COMMERCIAL SUPPLIER
03-10-2022,Adults & Health,Caring Homes Healthcare Group t/a Moorlands,Nursing Homes - Private Contractors Payment,750,0,NON COMMERCIAL SUPPLIER
03-10-2022,Adults & Health,Caring Homes Healthcare Group t/a Moorlands,Residential Care Income,-156.95,0,NON COMMERCIAL SUPPLIER
03-10-2022,Adults & Health,Caring Homes Healthcare Group t/a Moorlands,Nursing Homes - Private Contractors Payment,750,0,NON COMMERCIAL SUPPLIER
03-10-2022,Adults & Health,L & Q Living,Residential Placements - Private Contractors Payment,3202.29,0,VENDOR
03-10-2022,Adults & Health,L & Q Living,Residential Placements - Private Contractors Payment,3202.29,0,VENDOR
03-10-2022,Adults & Health,L & Q Living,Residential Placements - Private Contractors Payment,3202.29,0,VENDOR
03-10-2022,Adults & Health,L & Q Living,Residential Placements - Private Contractors Payment,3202.29,0,VENDOR
03-10-2022,Adults & Health,Care Support,Home Care - Private Contractors Payment,351.12,0,COMMERCIAL SUPPLIER
03-10-2022,Adults & Health,Care Support,Home Care - Private Contractors Payment,351.12,0,COMMERCIAL SUPPLIER
03-10-2022,Adults & Health,Care Support,Home Care - Private Contractors Payment,351.12,0,COMMERCIAL SUPPLIER
03-10-2022,Adults & Health,Care Support,Home Care - Private Contractors Payment,351.12,0,COMMERCIAL SUPPLIER
03-10-2022,Adults & Health,Care Support,Home Care - Private Contractors Payment,296.78,0,COMMERCIAL SUPPLIER
03-10-2022,Adults & Health,Care Support,Home Care - Private Contractors Payment,296.78,0,COMMERCIAL SUPPLIER
03-10-2022,Adults & Health,Care Support,Home Care - Private Contractors Payment,296.78,0,COMMERCIAL SUPPLIER
03-10-2022,Adults & Health,Care Support,Home Care - Private Contractors Payment,296.78,0,COMMERCIAL SUPPLIER
03-10-2022,Adults & Health,Runwood Homes Plc,Residential Placements - Private Contractors Payment,615,0,VENDOR
03-10-2022,Adults & Health,Runwood Homes Plc,Residential Care Income,-156.95,0,VENDOR
03-10-2022,Adults & Health,Runwood Homes Plc,Residential Placements - Private Contractors Payment,615,0,VENDOR
03-10-2022,Adults & Health,Runwood Homes Plc,Residential Care Income,-156.95,0,VENDOR
03-10-2022,Adults & Health,Runwood Homes Plc,Residential Care Income,-156.95,0,VENDOR
03-10-2022,Adults & Health,Runwood Homes Plc,Residential Placements - Private Contractors Payment,615,0,VENDOR
03-10-2022,Adults & Health,Runwood Homes Plc,Residential Care Income,-156.95,0,VENDOR
03-10-2022,Adults & Health,Runwood Homes Plc,Residential Placements - Private Contractors Payment,615,0,VENDOR
03-10-2022,Adults & Health,Outward Housing,Daycare - Private Contractors Payment,441.45,0,VENDOR
03-10-2022,Adults & Health,Outward Housing,Daycare - Private Contractors Payment,441.45,0,VENDOR
03-10-2022,Adults & Health,Outward Housing,Daycare - Private Contractors Payment,441.45,0,VENDOR
03-10-2022,Adults & Health,Outward Housing,Daycare - Private Contractors Payment,441.45,0,VENDOR
03-10-2022,Adults & Health,Lime Trees Care Group,Residential Placements - Private Contractors Payment,2156,0,NON COMMERCIAL SUPPLIER
03-10-2022,Adults & Health,Lime Trees Care Group,Residential Placements - Private Contractors Payment,2156,0,NON COMMERCIAL SUPPLIER
03-10-2022,Adults & Health,Lime Trees Care Group,Residential Placements - Private Contractors Payment,2156,0,NON COMMERCIAL SUPPLIER
03-10-2022,Adults & Health,Lime Trees Care Group,Residential Placements - Private Contractors Payment,2156,0,NON COMMERCIAL SUPPLIER
03-10-2022,Adults & Health,Folkestone Nursing Home,Residential Placements - Private Contractors Payment,594.97,0,VENDOR
03-10-2022,Adults & Health,Folkestone Nursing Home,Residential Placements - Private Contractors Payment,594.97,0,VENDOR
03-10-2022,Adults & Health,Folkestone Nursing Home,Residential Placements - Private Contractors Payment,594.97,0,VENDOR
03-10-2022,Adults & Health,Folkestone Nursing Home,Residential Placements - Private Contractors Payment,594.97,0,VENDOR
03-10-2022,Adults & Health,First Care Lodge Ltd,Supported Other Accommodation - Private Contractors Payment,2200,0,COMMERCIAL SUPPLIER
03-10-2022,Adults & Health,First Care Lodge Ltd,Supported Other Accommodation - Private Contractors Payment,2200,0,COMMERCIAL SUPPLIER
03-10-2022,Adults & Health,First Care Lodge Ltd,Supported Other Accommodation - Private Contractors Payment,2200,0,COMMERCIAL SUPPLIER
03-10-2022,Adults & Health,First Care Lodge Ltd,Supported Other Accommodation - Private Contractors Payment,2200,0,COMMERCIAL SUPPLIER
03-10-2022,Adults & Health,Westminster Health Care Limited,Nursing Homes - Private Contractors Payment,719.08,0,COMMERCIAL SUPPLIER
03-10-2022,Adults & Health,Westminster Health Care Limited,Nursing Homes - Private Contractors Payment,719.08,0,COMMERCIAL SUPPLIER
03-10-2022,Adults & Health,Westminster Health Care Limited,Nursing Homes - Private Contractors Payment,719.08,0,COMMERCIAL SUPPLIER
03-10-2022,Adults & Health,Westminster Health Care Limited,Nursing Homes - Private Contractors Payment,719.08,0,COMMERCIAL SUPPLIER
03-10-2022,Adults & Health,Sequence Care Ltd,Residential Placements - Private Contractors Payment,1948.29,0,COMMERCIAL SUPPLIER
03-10-2022,Adults & Health,Sequence Care Ltd,Residential Placements - Private Contractors Payment,1948.29,0,COMMERCIAL SUPPLIER
03-10-2022,Adults & Health,Sequence Care Ltd,Residential Placements - Private Contractors Payment,1948.29,0,COMMERCIAL SUPPLIER
03-10-2022,Adults & Health,Sequence Care Ltd,Residential Placements - Private Contractors Payment,1948.29,0,COMMERCIAL SUPPLIER
03-10-2022,Adults & Health,Bondcare(London)The Fountains,Nursing Homes - Private Contractors Payment,800,0,COMMERCIAL SUPPLIER
03-10-2022,Adults & Health,Bondcare(London)The Fountains,Nursing Homes - Private Contractors Payment,800,0,COMMERCIAL SUPPLIER
03-10-2022,Adults & Health,Bondcare(London)The Fountains,Nursing Homes - Private Contractors Payment,800,0,COMMERCIAL SUPPLIER
03-10-2022,Adults & Health,Bondcare(London)The Fountains,Nursing Homes - Private Contractors Payment,800,0,COMMERCIAL SUPPLIER
03-10-2022,Adults & Health,Northbrook Homes Ltd,Residential Care Income,-87.9,0,COMMERCIAL SUPPLIER
03-10-2022,Adults & Health,Northbrook Homes Ltd,Residential Placements - Private Contractors Payment,1275,0,COMMERCIAL SUPPLIER
03-10-2022,Adults & Health,HC-One,Residential Placements - Private Contractors Payment,603.9,0,COMMERCIAL SUPPLIER
03-10-2022,Adults & Health,Northbrook Homes Ltd,Residential Care Income,-87.9,0,COMMERCIAL SUPPLIER
03-10-2022,Adults & Health,Northbrook Homes Ltd,Residential Placements - Private Contractors Payment,1275,0,COMMERCIAL SUPPLIER
03-10-2022,Adults & Health,HC-One,Residential Placements - Private Contractors Payment,603.9,0,COMMERCIAL SUPPLIER
03-10-2022,Adults & Health,Northbrook Homes Ltd,Residential Care Income,-87.9,0,COMMERCIAL SUPPLIER
03-10-2022,Adults & Health,Northbrook Homes Ltd,Residential Placements - Private Contractors Payment,1275,0,COMMERCIAL SUPPLIER
03-10-2022,Adults & Health,HC-One,Residential Placements - Private Contractors Payment,603.9,0,COMMERCIAL SUPPLIER
03-10-2022,Adults & Health,Northbrook Homes Ltd,Residential Care Income,-87.9,0,COMMERCIAL SUPPLIER
03-10-2022,Adults & Health,Northbrook Homes Ltd,Residential Placements - Private Contractors Payment,1275,0,COMMERCIAL SUPPLIER
03-10-2022,Adults & Health,HC-One,Residential Placements - Private Contractors Payment,603.9,0,COMMERCIAL SUPPLIER
03-10-2022,Adults & Health,Birling House,Residential Placements - Private Contractors Payment,1600,0,NON COMMERCIAL SUPPLIER
03-10-2022,Adults & Health,Birling House,Residential Care Income,-109.7,0,NON COMMERCIAL SUPPLIER
03-10-2022,Adults & Health,Birling House,Residential Care Income,-109.7,0,NON COMMERCIAL SUPPLIER
03-10-2022,Adults & Health,Birling House,Residential Placements - Private Contractors Payment,1600,0,NON COMMERCIAL SUPPLIER
03-10-2022,Adults & Health,Birling House,Residential Care Income,-109.7,0,NON COMMERCIAL SUPPLIER
03-10-2022,Adults & Health,Birling House,Residential Placements - Private Contractors Payment,1600,0,NON COMMERCIAL SUPPLIER
03-10-2022,Adults & Health,Birling House,Residential Care Income,-109.7,0,NON COMMERCIAL SUPPLIER
03-10-2022,Adults & Health,Birling House,Residential Placements - Private Contractors Payment,1600,0,NON COMMERCIAL SUPPLIER
03-10-2022,Adults & Health,L & Q Living,Residential Placements - Private Contractors Payment,1457,0,VENDOR
03-10-2022,Adults & Health,L & Q Living,Residential Placements - Private Contractors Payment,1457,0,VENDOR
03-10-2022,Adults & Health,L & Q Living,Residential Placements - Private Contractors Payment,1457,0,VENDOR
03-10-2022,Adults & Health,L & Q Living,Residential Placements - Private Contractors Payment,1457,0,VENDOR
03-10-2022,Adults & Health,DMP Healthcare (Cherry Orchard) Ltd,Nursing Homes - Private Contractors Payment,716.08,0,COMMERCIAL SUPPLIER
03-10-2022,Adults & Health,DMP Healthcare (Cherry Orchard) Ltd,Nursing Homes - Private Contractors Payment,716.08,0,COMMERCIAL SUPPLIER
03-10-2022,Adults & Health,DMP Healthcare (Cherry Orchard) Ltd,Nursing Homes - Private Contractors Payment,716.08,0,COMMERCIAL SUPPLIER
03-10-2022,Adults & Health,DMP Healthcare (Cherry Orchard) Ltd,Nursing Homes - Private Contractors Payment,716.08,0,COMMERCIAL SUPPLIER
03-10-2022,Adults & Health,Chosen Care Group Ltd,Home Care - Private Contractors Payment,284.24,0,VENDOR
03-10-2022,Adults & Health,Chosen Care Group Ltd,Home Care - Private Contractors Payment,284.24,0,VENDOR
03-10-2022,Adults & Health,Chosen Care Group Ltd,Home Care - Private Contractors Payment,284.24,0,VENDOR
03-10-2022,Adults & Health,Chosen Care Group Ltd,Home Care - Private Contractors Payment,284.24,0,VENDOR
03-10-2022,Adults & Health,Havelock Court Nursing Centre,Nursing Homes - Private Contractors Payment,1002.69,0,VENDOR
03-10-2022,Adults & Health,Havelock Court Nursing Centre,Nursing Homes - Private Contractors Payment,1002.69,0,VENDOR
03-10-2022,Adults & Health,Havelock Court Nursing Centre,Nursing Homes - Private Contractors Payment,1002.69,0,VENDOR
03-10-2022,Adults & Health,Havelock Court Nursing Centre,Nursing Homes - Private Contractors Payment,1002.69,0,VENDOR
03-10-2022,Adults & Health,Four Seasons 2000 Limited-Marlborough Court Care Home,Nursing Homes - Private Contractors Payment,617.44,0,NON COMMERCIAL SUPPLIER
03-10-2022,Adults & Health,Appletree Court,Nursing Homes - Private Contractors Payment,550.76,0,NON COMMERCIAL SUPPLIER
03-10-2022,Adults & Health,Moreland House,Residential Care Income,-178.31,0,COMMERCIAL SUPPLIER
03-10-2022,Adults & Health,Moreland House,Nursing Homes - Private Contractors Payment,535.92,0,COMMERCIAL SUPPLIER
03-10-2022,Adults & Health,Westminster Health Care Limited,Residential Care Income,-145.55,0,COMMERCIAL SUPPLIER
03-10-2022,Adults & Health,Westminster Health Care Limited,Nursing Homes - Private Contractors Payment,598.85,0,COMMERCIAL SUPPLIER
03-10-2022,Adults & Health,Appletree Court,Nursing Homes - Private Contractors Payment,550.76,0,NON COMMERCIAL SUPPLIER
03-10-2022,Adults & Health,Moreland House,Residential Care Income,-178.31,0,COMMERCIAL SUPPLIER
03-10-2022,Adults & Health,Moreland House,Nursing Homes - Private Contractors Payment,535.92,0,COMMERCIAL SUPPLIER
03-10-2022,Adults & Health,Westminster Health Care Limited,Residential Care Income,-145.55,0,COMMERCIAL SUPPLIER
03-10-2022,Adults & Health,Westminster Health Care Limited,Nursing Homes - Private Contractors Payment,598.85,0,COMMERCIAL SUPPLIER
03-10-2022,Adults & Health,Four Seasons 2000 Limited-Marlborough Court Care Home,Nursing Homes - Private Contractors Payment,617.44,0,NON COMMERCIAL SUPPLIER
03-10-2022,Adults & Health,Moreland House,Residential Care Income,-178.31,0,COMMERCIAL SUPPLIER
03-10-2022,Adults & Health,Moreland House,Nursing Homes - Private Contractors Payment,535.92,0,COMMERCIAL SUPPLIER
03-10-2022,Adults & Health,Westminster Health Care Limited,Residential Care Income,-145.55,0,COMMERCIAL SUPPLIER
03-10-2022,Adults & Health,Westminster Health Care Limited,Nursing Homes - Private Contractors Payment,598.85,0,COMMERCIAL SUPPLIER
03-10-2022,Adults & Health,Four Seasons 2000 Limited-Marlborough Court Care Home,Nursing Homes - Private Contractors Payment,617.44,0,NON COMMERCIAL SUPPLIER
03-10-2022,Adults & Health,Appletree Court,Nursing Homes - Private Contractors Payment,550.76,0,NON COMMERCIAL SUPPLIER
03-10-2022,Adults & Health,Four Seasons 2000 Limited-Marlborough Court Care Home,Nursing Homes - Private Contractors Payment,617.44,0,NON COMMERCIAL SUPPLIER
03-10-2022,Adults & Health,Appletree Court,Nursing Homes - Private Contractors Payment,550.76,0,NON COMMERCIAL SUPPLIER
03-10-2022,Adults & Health,Moreland House,Nursing Homes - Private Contractors Payment,535.92,0,COMMERCIAL SUPPLIER
03-10-2022,Adults & Health,Moreland House,Residential Care Income,-178.31,0,COMMERCIAL SUPPLIER
03-10-2022,Adults & Health,Westminster Health Care Limited,Residential Care Income,-145.55,0,COMMERCIAL SUPPLIER
03-10-2022,Adults & Health,Westminster Health Care Limited,Nursing Homes - Private Contractors Payment,598.85,0,COMMERCIAL SUPPLIER
03-10-2022,Adults & Health,Leyton House Community Care Ltd,Supported Other Accommodation - Private Contractors Payment,502.43,0,COMMERCIAL SUPPLIER
03-10-2022,Adults & Health,Leyton House Community Care Ltd,Supported Other Accommodation - Private Contractors Payment,502.43,0,COMMERCIAL SUPPLIER
03-10-2022,Adults & Health,Chosen Care Group Ltd,Home Care - Private Contractors Payment,355.3,0,VENDOR
03-10-2022,Adults & Health,Leyton House Community Care Ltd,Supported Other Accommodation - Private Contractors Payment,502.43,0,COMMERCIAL SUPPLIER
03-10-2022,Adults & Health,Chosen Care Group Ltd,Home Care - Private Contractors Payment,355.3,0,VENDOR
03-10-2022,Adults & Health,Chosen Care Group Ltd,Home Care - Private Contractors Payment,355.3,0,VENDOR
03-10-2022,Adults & Health,Leyton House Community Care Ltd,Supported Other Accommodation - Private Contractors Payment,502.43,0,COMMERCIAL SUPPLIER
03-10-2022,Adults & Health,Chosen Care Group Ltd,Home Care - Private Contractors Payment,355.3,0,VENDOR
03-10-2022,Adults & Health,Abbeyfield Society,Residential Care Income,-156.95,0,COMMERCIAL SUPPLIER
03-10-2022,Adults & Health,Abbeyfield Society,Residential Placements - Private Contractors Payment,602.65,0,COMMERCIAL SUPPLIER
03-10-2022,Adults & Health,Oakwood Lodge,Residential Placements - Private Contractors Payment,850,0,VENDOR
03-10-2022,Adults & Health,Abbeyfield Society,Residential Care Income,-156.95,0,COMMERCIAL SUPPLIER
03-10-2022,Adults & Health,Abbeyfield Society,Residential Placements - Private Contractors Payment,602.65,0,COMMERCIAL SUPPLIER
03-10-2022,Adults & Health,Oakwood Lodge,Residential Placements - Private Contractors Payment,850,0,VENDOR
03-10-2022,Adults & Health,Abbeyfield Society,Residential Placements - Private Contractors Payment,602.65,0,COMMERCIAL SUPPLIER
03-10-2022,Adults & Health,Abbeyfield Society,Residential Care Income,-156.95,0,COMMERCIAL SUPPLIER
03-10-2022,Adults & Health,Oakwood Lodge,Residential Placements - Private Contractors Payment,850,0,VENDOR
03-10-2022,Adults & Health,Abbeyfield Society,Residential Care Income,-156.95,0,COMMERCIAL SUPPLIER
03-10-2022,Adults & Health,Abbeyfield Society,Residential Placements - Private Contractors Payment,602.65,0,COMMERCIAL SUPPLIER
03-10-2022,Adults & Health,Oakwood Lodge,Residential Placements - Private Contractors Payment,850,0,VENDOR
03-10-2022,Adults & Health,Leyton House Community Care Ltd,Supported Other Accommodation - Private Contractors Payment,659.75,0,COMMERCIAL SUPPLIER
03-10-2022,Adults & Health,Leyton House Community Care Ltd,Supported Other Accommodation - Private Contractors Payment,761.25,0,COMMERCIAL SUPPLIER
03-10-2022,Adults & Health,Orchid Lodge Ltd,Supported Other Accommodation - Private Contractors Payment,609,0,VENDOR
03-10-2022,Adults & Health,Wortley Lodge,Residential Placements - Private Contractors Payment,1365.32,0,VENDOR
03-10-2022,Adults & Health,CMG Limited,Residential Placements - Private Contractors Payment,1448.65,0,VENDOR
03-10-2022,Adults & Health,Maison Moti Ltd,Supported Other Accommodation - Private Contractors Payment,639.45,0,COMMERCIAL SUPPLIER
03-10-2022,Adults & Health,Alpam Homes,Residential Placements - Private Contractors Payment,1753.07,0,VENDOR
03-10-2022,Adults & Health,Alpam Homes,Residential Care Income,-109.7,0,VENDOR
03-10-2022,Adults & Health,Ambient Support Ltd,Supported Other Accommodation - Private Contractors Payment,1996.13,0,VENDOR
03-10-2022,Adults & Health,Orchid Lodge Ltd,Supported Other Accommodation - Private Contractors Payment,609,0,VENDOR
03-10-2022,Adults & Health,TLC Care Homes Ltd,Residential Placements - Private Contractors Payment,913.5,0,COMMERCIAL SUPPLIER
03-10-2022,Adults & Health,TLC Care Homes Ltd,Residential Care Income,-91.95,0,COMMERCIAL SUPPLIER
03-10-2022,Adults & Health,CMG Limited,Residential Placements - Private Contractors Payment,1448.65,0,VENDOR
03-10-2022,Adults & Health,Alpam Homes,Residential Placements - Private Contractors Payment,1753.07,0,VENDOR
03-10-2022,Adults & Health,Alpam Homes,Residential Care Income,-109.7,0,VENDOR
03-10-2022,Adults & Health,Ambient Support Ltd,Supported Other Accommodation - Private Contractors Payment,1996.13,0,VENDOR
03-10-2022,Adults & Health,Supported Living Services Ltd,Supported Other Accommodation - Private Contractors Payment,669.9,0,COMMERCIAL SUPPLIER
03-10-2022,Adults & Health,Leyton House Community Care Ltd,Supported Other Accommodation - Private Contractors Payment,659.75,0,COMMERCIAL SUPPLIER
03-10-2022,Adults & Health,Orchid Lodge Ltd,Supported Other Accommodation - Private Contractors Payment,609,0,VENDOR
03-10-2022,Adults & Health,Maison Moti Ltd,Supported Other Accommodation - Private Contractors Payment,639.45,0,COMMERCIAL SUPPLIER
03-10-2022,Adults & Health,TLC Care Homes Ltd,Residential Placements - Private Contractors Payment,913.5,0,COMMERCIAL SUPPLIER
03-10-2022,Adults & Health,TLC Care Homes Ltd,Residential Care Income,-91.95,0,COMMERCIAL SUPPLIER
03-10-2022,Adults & Health,Ambient Support Ltd,Supported Other Accommodation - Private Contractors Payment,1996.13,0,VENDOR
03-10-2022,Adults & Health,Supported Living Services Ltd,Supported Other Accommodation - Private Contractors Payment,669.9,0,COMMERCIAL SUPPLIER
03-10-2022,Adults & Health,Saffron Care Homes,Residential Placements - Private Contractors Payment,2255.84,0,VENDOR
03-10-2022,Adults & Health,Saffron Care Homes,Residential Care Income,-109.7,0,VENDOR
03-10-2022,Adults & Health,Wortley Lodge,Residential Placements - Private Contractors Payment,1365.32,0,VENDOR
03-10-2022,Adults & Health,Leyton House Community Care Ltd,Supported Other Accommodation - Private Contractors Payment,659.75,0,COMMERCIAL SUPPLIER
03-10-2022,Adults & Health,Leyton House Community Care Ltd,Supported Other Accommodation - Private Contractors Payment,761.25,0,COMMERCIAL SUPPLIER
03-10-2022,Adults & Health,Orchid Lodge Ltd,Supported Other Accommodation - Private Contractors Payment,609,0,VENDOR
03-10-2022,Adults & Health,CMG Limited,Residential Placements - Private Contractors Payment,1448.65,0,VENDOR
03-10-2022,Adults & Health,Maison Moti Ltd,Supported Other Accommodation - Private Contractors Payment,639.45,0,COMMERCIAL SUPPLIER
03-10-2022,Adults & Health,TLC Care Homes Ltd,Residential Care Income,-91.95,0,COMMERCIAL SUPPLIER
03-10-2022,Adults & Health,TLC Care Homes Ltd,Residential Placements - Private Contractors Payment,913.5,0,COMMERCIAL SUPPLIER
03-10-2022,Adults & Health,Alpam Homes,Residential Care Income,-109.7,0,VENDOR
03-10-2022,Adults & Health,Alpam Homes,Residential Placements - Private Contractors Payment,1753.07,0,VENDOR
03-10-2022,Adults & Health,Supported Living Services Ltd,Supported Other Accommodation - Private Contractors Payment,669.9,0,COMMERCIAL SUPPLIER
03-10-2022,Adults & Health,Saffron Care Homes,Residential Care Income,-109.7,0,VENDOR
03-10-2022,Adults & Health,Saffron Care Homes,Residential Placements - Private Contractors Payment,2255.84,0,VENDOR
03-10-2022,Adults & Health,Wortley Lodge,Residential Placements - Private Contractors Payment,1365.32,0,VENDOR
03-10-2022,Adults & Health,Leyton House Community Care Ltd,Supported Other Accommodation - Private Contractors Payment,761.25,0,COMMERCIAL SUPPLIER
03-10-2022,Adults & Health,Leyton House Community Care Ltd,Supported Other Accommodation - Private Contractors Payment,659.75,0,COMMERCIAL SUPPLIER
03-10-2022,Adults & Health,CMG Limited,Residential Placements - Private Contractors Payment,1448.65,0,VENDOR
03-10-2022,Adults & Health,Maison Moti Ltd,Supported Other Accommodation - Private Contractors Payment,639.45,0,COMMERCIAL SUPPLIER
03-10-2022,Adults & Health,TLC Care Homes Ltd,Residential Care Income,-91.95,0,COMMERCIAL SUPPLIER
